BODY,BODY NAME,Entry Date,Posting Date,Transaction Reference Code,Their Ref, Amount(Transaction Line Amount) ,Customer/Supplier Name,Customer/Supplier Code,9CCN - Level 9 Cost Centre Name,9AN - Level 9 Account Name,9AC - Level 9 Account Code,
http://statistics.data.gov.uk/id/local-authority/12UE,Huntingdonshire District Council,06/09/2017,06/09/2017,216596,," 1,584,000.00 ",CAMBRIDGESHIRE COUNTY COUNCIL,CR017440,Corporate Finance,Pensions,P16,
http://statistics.data.gov.uk/id/local-authority/12UE,Huntingdonshire District Council,12/09/2017,13/09/2017,217066,10748566," 79,238.00 ",CAMBRIDGESHIRE COUNTY COUNCIL,CR006678,Car Parks Operational Mgt,Contribution (Paid Out),810,
http://statistics.data.gov.uk/id/local-authority/12UE,Huntingdonshire District Council,12/09/2017,12/09/2017,615309,," 57,850.00 ",CITIZENS ADVICE RURAL CAMBS,CR423941,Voluntary Sector Grants,Grants (Paid Out),800,
http://statistics.data.gov.uk/id/local-authority/12UE,Huntingdonshire District Council,21/09/2017,21/09/2017,217449,197983," 51,933.00 ",CAMBRIDGE CITY COUNCIL,CR017896,Disabled Facilities Grants,Home Improvement Agency Fees,724,
http://statistics.data.gov.uk/id/local-authority/12UE,Huntingdonshire District Council,08/09/2017,11/09/2017,216850,," 36,600.00 ",ESSEX COUNTY COUNCIL,CR410677,Transformation Programme,Salary Gross Pay,P01,
http://statistics.data.gov.uk/id/local-authority/12UE,Huntingdonshire District Council,12/09/2017,12/09/2017,615308,," 31,150.00 ",HUNTS FORUM OF VOLUNTARY ORGANISATIONS,CR030582,Voluntary Sector Grants,Grants (Paid Out),800,
http://statistics.data.gov.uk/id/local-authority/12UE,Huntingdonshire District Council,20/09/2017,21/09/2017,217365,12529," 27,963.20 ",CERTAS ENERGY T/A PACE FUELCARE,CR455975,Operations Diesel Stock,Stock Purchases,980,
http://statistics.data.gov.uk/id/local-authority/12UE,Huntingdonshire District Council,20/09/2017,21/09/2017,217364,12529," 27,949.86 ",CERTAS ENERGY T/A PACE FUELCARE,CR455975,Operations Diesel Stock,Stock Purchases,980,
http://statistics.data.gov.uk/id/local-authority/12UE,Huntingdonshire District Council,20/09/2017,21/09/2017,217362,12529," 27,396.00 ",CERTAS ENERGY T/A PACE FUELCARE,CR455975,Operations Diesel Stock,Stock Purchases,980,
http://statistics.data.gov.uk/id/local-authority/12UE,Huntingdonshire District Council,12/09/2017,25/09/2017,216966,SINV00115332," 25,945.60 ",CDW,CR423950,Imd Shared Service,Other I T Hardware,203,
http://statistics.data.gov.uk/id/local-authority/12UE,Huntingdonshire District Council,21/09/2017,25/09/2017,217491,923469-083B," 20,000.00 ",PHOENIX SOFTWARE LTD,CR031918,Ict Capital Projects (Interim),Consultants,711,
http://statistics.data.gov.uk/id/local-authority/12UE,Huntingdonshire District Council,14/09/2017,14/09/2017,217121,532180," 19,346.00 ",BSG PROPERTY SERVICES LTD,CR089905,Disabled Facilities Grants,Mandatory Grants,801,
http://statistics.data.gov.uk/id/local-authority/12UE,Huntingdonshire District Council,27/09/2017,29/09/2017,217821,3021," 18,527.67 ",BURMOR CONSTRUCTION,CR032423,Hunt Leis C -Gen Improve (Cs),Building Mtce,303,
http://statistics.data.gov.uk/id/local-authority/12UE,Huntingdonshire District Council,12/09/2017,25/09/2017,216962,PSINV01968838," 18,000.00 ",VUELIO,CR424898,Imd Shared Service,Software,206,
http://statistics.data.gov.uk/id/local-authority/12UE,Huntingdonshire District Council,06/09/2017,06/09/2017,216592,SINV00114659," 16,499.13 ",ZURICH MUNICIPAL,CR477397,Insurance Engineering,Ins (Service Related),260,
http://statistics.data.gov.uk/id/local-authority/12UE,Huntingdonshire District Council,28/09/2017,28/09/2017,217519,377096," 15,350.00 ",CAMBRIDGE CITY COUNCIL,CR017896,Housing Strategy,Contribution (Paid Out),810,
http://statistics.data.gov.uk/id/local-authority/12UE,Huntingdonshire District Council,21/09/2017,25/09/2017,217406,PS10035567," 14,500.00 ",IEG4 LIMITED,CR453919,Ccity Recharge Invoices,Software,206,
http://statistics.data.gov.uk/id/local-authority/12UE,Huntingdonshire District Council,07/09/2017,07/09/2017,216224,SI33991," 13,908.00 ",SSI SCHAEFER LTD,CR407190,Wheeled Bins,Recycling Bins,525,
http://statistics.data.gov.uk/id/local-authority/12UE,Huntingdonshire District Council,06/09/2017,07/09/2017,216538,PERSONAL DATA REDACTED, 675.00 ,RENT CONNECT,CR424138,Homelessness,Bed & Breakfast Payment,818,
http://statistics.data.gov.uk/id/local-authority/12UE,Huntingdonshire District Council,06/09/2017,07/09/2017,216538,RC-HDC019, 570.00 ,RENT CONNECT,CR424138,Homelessness,Bed & Breakfast Payment,818,
http://statistics.data.gov.uk/id/local-authority/12UE,Huntingdonshire District Council,06/09/2017,07/09/2017,216538,RC-HDC019, 825.00 ,RENT CONNECT,CR424138,Homelessness,Bed & Breakfast Payment,818,
http://statistics.data.gov.uk/id/local-authority/12UE,Huntingdonshire District Council,06/09/2017,07/09/2017,216538,384/806, 675.00 ,RENT CONNECT,CR424138,Homelessness,Bed & Breakfast Payment,818,
http://statistics.data.gov.uk/id/local-authority/12UE,Huntingdonshire District Council,06/09/2017,07/09/2017,216538,384/808, 675.00 ,RENT CONNECT,CR424138,Homelessness,Bed & Breakfast Payment,818,
http://statistics.data.gov.uk/id/local-authority/12UE,Huntingdonshire District Council,06/09/2017,07/09/2017,216538,RC-HDC019, 825.00 ,RENT CONNECT,CR424138,Homelessness,Bed & Breakfast Payment,818,
http://statistics.data.gov.uk/id/local-authority/12UE,Huntingdonshire District Council,06/09/2017,07/09/2017,216538,RC-HDC018, 675.00 ,RENT CONNECT,CR424138,Homelessness,Bed & Breakfast Payment,818,
http://statistics.data.gov.uk/id/local-authority/12UE,Huntingdonshire District Council,06/09/2017,07/09/2017,216538,296, 900.00 ,RENT CONNECT,CR424138,Homelessness,Bed & Breakfast Payment,818,
http://statistics.data.gov.uk/id/local-authority/12UE,Huntingdonshire District Council,06/09/2017,07/09/2017,216538,298, 900.00 ,RENT CONNECT,CR424138,Homelessness,Bed & Breakfast Payment,818,
http://statistics.data.gov.uk/id/local-authority/12UE,Huntingdonshire District Council,06/09/2017,07/09/2017,216538,296, 675.00 ,RENT CONNECT,CR424138,Homelessness,Bed & Breakfast Payment,818,
http://statistics.data.gov.uk/id/local-authority/12UE,Huntingdonshire District Council,06/09/2017,07/09/2017,216538,EC1718, 55.00 ,RENT CONNECT,CR424138,Homelessness,Bed & Breakfast Payment,818,
http://statistics.data.gov.uk/id/local-authority/12UE,Huntingdonshire District Council,06/09/2017,07/09/2017,216538,384/809, 675.00 ,RENT CONNECT,CR424138,Homelessness,Bed & Breakfast Payment,818,
http://statistics.data.gov.uk/id/local-authority/12UE,Huntingdonshire District Council,06/09/2017,07/09/2017,216538,RC-HDC019, 675.00 ,RENT CONNECT,CR424138,Homelessness,Bed & Breakfast Payment,818,
http://statistics.data.gov.uk/id/local-authority/12UE,Huntingdonshire District Council,06/09/2017,07/09/2017,216538,384/812, 675.00 ,RENT CONNECT,CR424138,Homelessness,Bed & Breakfast Payment,818,
http://statistics.data.gov.uk/id/local-authority/12UE,Huntingdonshire District Council,06/09/2017,07/09/2017,216538,295, 675.00 ,RENT CONNECT,CR424138,Homelessness,Bed & Breakfast Payment,818,
http://statistics.data.gov.uk/id/local-authority/12UE,Huntingdonshire District Council,06/09/2017,07/09/2017,216538,297, 675.00 ,RENT CONNECT,CR424138,Homelessness,Bed & Breakfast Payment,818,
http://statistics.data.gov.uk/id/local-authority/12UE,Huntingdonshire District Council,06/09/2017,07/09/2017,216538,RC-HDC019, 825.00 ,RENT CONNECT,CR424138,Homelessness,Bed & Breakfast Payment,818,
http://statistics.data.gov.uk/id/local-authority/12UE,Huntingdonshire District Council,06/09/2017,07/09/2017,216538,RC-HDC018, 825.00 ,RENT CONNECT,CR424138,Homelessness,Bed & Breakfast Payment,818,
http://statistics.data.gov.uk/id/local-authority/12UE,Huntingdonshire District Council,06/09/2017,07/09/2017,216538,384/806, 825.00 ,RENT CONNECT,CR424138,Homelessness,Bed & Breakfast Payment,818,
http://statistics.data.gov.uk/id/local-authority/12UE,Huntingdonshire District Council,06/09/2017,07/09/2017,216538,296, 570.00 ,RENT CONNECT,CR424138,Homelessness,Bed & Breakfast Payment,818,
http://statistics.data.gov.uk/id/local-authority/12UE,Huntingdonshire District Council,07/09/2017,07/09/2017,216226,SI33308," 13,651.80 ",SSI SCHAEFER LTD,CR407190,Wheeled Bins,Recycling Bins,525,
http://statistics.data.gov.uk/id/local-authority/12UE,Huntingdonshire District Council,21/09/2017,21/09/2017,217353,PERSONAL DATA REDACTED, 675.00 ,RENT CONNECT,CR424138,Homelessness,Bed & Breakfast Payment,818,
http://statistics.data.gov.uk/id/local-authority/12UE,Huntingdonshire District Council,21/09/2017,21/09/2017,217353,Aug-17, 570.00 ,RENT CONNECT,CR424138,Homelessness,Bed & Breakfast Payment,818,
http://statistics.data.gov.uk/id/local-authority/12UE,Huntingdonshire District Council,21/09/2017,21/09/2017,217353,EC1718, 55.00 ,RENT CONNECT,CR424138,Homelessness,Bed & Breakfast Payment,818,
http://statistics.data.gov.uk/id/local-authority/12UE,Huntingdonshire District Council,21/09/2017,21/09/2017,217353,384/804, 825.00 ,RENT CONNECT,CR424138,Homelessness,Bed & Breakfast Payment,818,
http://statistics.data.gov.uk/id/local-authority/12UE,Huntingdonshire District Council,21/09/2017,21/09/2017,217353,384/811, 675.00 ,RENT CONNECT,CR424138,Homelessness,Bed & Breakfast Payment,818,
http://statistics.data.gov.uk/id/local-authority/12UE,Huntingdonshire District Council,21/09/2017,21/09/2017,217353,RC-HDC018, 675.00 ,RENT CONNECT,CR424138,Homelessness,Bed & Breakfast Payment,818,
http://statistics.data.gov.uk/id/local-authority/12UE,Huntingdonshire District Council,21/09/2017,21/09/2017,217353,RC-HDC018, 495.00 ,RENT CONNECT,CR424138,Homelessness,Bed & Breakfast Payment,818,
http://statistics.data.gov.uk/id/local-authority/12UE,Huntingdonshire District Council,21/09/2017,21/09/2017,217353,RC-HDC019, 675.00 ,RENT CONNECT,CR424138,Homelessness,Bed & Breakfast Payment,818,
http://statistics.data.gov.uk/id/local-authority/12UE,Huntingdonshire District Council,21/09/2017,21/09/2017,217353,297, 900.00 ,RENT CONNECT,CR424138,Homelessness,Bed & Breakfast Payment,818,
http://statistics.data.gov.uk/id/local-authority/12UE,Huntingdonshire District Council,21/09/2017,21/09/2017,217353,RC-HDC018, 900.00 ,RENT CONNECT,CR424138,Homelessness,Bed & Breakfast Payment,818,
http://statistics.data.gov.uk/id/local-authority/12UE,Huntingdonshire District Council,21/09/2017,21/09/2017,217353,297, 675.00 ,RENT CONNECT,CR424138,Homelessness,Bed & Breakfast Payment,818,
http://statistics.data.gov.uk/id/local-authority/12UE,Huntingdonshire District Council,21/09/2017,21/09/2017,217353,RC-HDC018, 675.00 ,RENT CONNECT,CR424138,Homelessness,Bed & Breakfast Payment,818,
http://statistics.data.gov.uk/id/local-authority/12UE,Huntingdonshire District Council,21/09/2017,21/09/2017,217353,384/807, 675.00 ,RENT CONNECT,CR424138,Homelessness,Bed & Breakfast Payment,818,
http://statistics.data.gov.uk/id/local-authority/12UE,Huntingdonshire District Council,21/09/2017,21/09/2017,217353,RC-HDC018, 675.00 ,RENT CONNECT,CR424138,Homelessness,Bed & Breakfast Payment,818,
http://statistics.data.gov.uk/id/local-authority/12UE,Huntingdonshire District Council,21/09/2017,21/09/2017,217353,296, 675.00 ,RENT CONNECT,CR424138,Homelessness,Bed & Breakfast Payment,818,
http://statistics.data.gov.uk/id/local-authority/12UE,Huntingdonshire District Council,21/09/2017,21/09/2017,217353,RC-HDC018, 675.00 ,RENT CONNECT,CR424138,Homelessness,Bed & Breakfast Payment,818,
http://statistics.data.gov.uk/id/local-authority/12UE,Huntingdonshire District Council,21/09/2017,21/09/2017,217353,RC-HDC018, 825.00 ,RENT CONNECT,CR424138,Homelessness,Bed & Breakfast Payment,818,
http://statistics.data.gov.uk/id/local-authority/12UE,Huntingdonshire District Council,21/09/2017,21/09/2017,217353,RC-HDC019, 825.00 ,RENT CONNECT,CR424138,Homelessness,Bed & Breakfast Payment,818,
http://statistics.data.gov.uk/id/local-authority/12UE,Huntingdonshire District Council,21/09/2017,21/09/2017,217353,RC-HDC018, 275.00 ,RENT CONNECT,CR424138,Homelessness,Bed & Breakfast Payment,818,
http://statistics.data.gov.uk/id/local-authority/12UE,Huntingdonshire District Council,21/09/2017,21/09/2017,217353,297, 570.00 ,RENT CONNECT,CR424138,Homelessness,Bed & Breakfast Payment,818,
http://statistics.data.gov.uk/id/local-authority/12UE,Huntingdonshire District Council,21/09/2017,21/09/2017,217353,296, 275.00 ,RENT CONNECT,CR424138,Homelessness,Bed & Breakfast Payment,818,
http://statistics.data.gov.uk/id/local-authority/12UE,Huntingdonshire District Council,28/09/2017,28/09/2017,217649,SO85068844," 12,851.00 ",STANNAH LTD Ref(20HU025),CR000759,Disabled Facilities Grants,Mandatory Grants,801,
http://statistics.data.gov.uk/id/local-authority/12UE,Huntingdonshire District Council,06/09/2017,06/09/2017,216595,," 12,642.00 ",SOUTH CAMBRIDGESHIRE DISTRICT COUNCIL,CR405127,Strategic Transformation,Consultants,711,
http://statistics.data.gov.uk/id/local-authority/12UE,Huntingdonshire District Council,06/09/2017,06/09/2017,216583,118244," 12,400.00 ",DOBSON UK LLP,CR423450,Street Cleansing,Subcontractors,777,
http://statistics.data.gov.uk/id/local-authority/12UE,Huntingdonshire District Council,13/09/2017,22/09/2017,217007,R022910," 12,096.00 ",ADVANTAGE RESOURCING,CR424715,Imd Shared Service,Hired Staff,100,
http://statistics.data.gov.uk/id/local-authority/12UE,Huntingdonshire District Council,19/09/2017,19/09/2017,217337,7.42878E+11," 12,060.00 ",TECHNOGYM UK LTD,CR033037,Impressions,Equipment,500,
http://statistics.data.gov.uk/id/local-authority/12UE,Huntingdonshire District Council,12/09/2017,13/09/2017,217035,CN-4771," 11,981.55 ",AMEYCESPA (EAST) LTD,CR127636,Recycling Collections,Recycling Collections,747,
http://statistics.data.gov.uk/id/local-authority/12UE,Huntingdonshire District Council,19/09/2017,21/09/2017,216901,823646203," 1,171.71 ",HI-SPEC FACILITIES SERVICES PLC,CR423413,Eastfield House,Building Cleaning,440,
http://statistics.data.gov.uk/id/local-authority/12UE,Huntingdonshire District Council,19/09/2017,21/09/2017,216901,," 1,663.83 ",HI-SPEC FACILITIES SERVICES PLC,CR423413,Site & Centre Management,Building Cleaning,440,
http://statistics.data.gov.uk/id/local-authority/12UE,Huntingdonshire District Council,19/09/2017,21/09/2017,216901,9837," 1,781.00 ",HI-SPEC FACILITIES SERVICES PLC,CR423413,Site & Centre Management,Building Cleaning,440,
http://statistics.data.gov.uk/id/local-authority/12UE,Huntingdonshire District Council,19/09/2017,21/09/2017,216901,18425, 656.16 ,HI-SPEC FACILITIES SERVICES PLC,CR423413,Site & Centre Management,Building Cleaning,440,
http://statistics.data.gov.uk/id/local-authority/12UE,Huntingdonshire District Council,19/09/2017,21/09/2017,216901,9855," 2,296.56 ",HI-SPEC FACILITIES SERVICES PLC,CR423413,Site & Centre Management,Building Cleaning,440,
http://statistics.data.gov.uk/id/local-authority/12UE,Huntingdonshire District Council,19/09/2017,21/09/2017,216901,, 515.56 ,HI-SPEC FACILITIES SERVICES PLC,CR423413,Site & Centre Management,Building Cleaning,440,
http://statistics.data.gov.uk/id/local-authority/12UE,Huntingdonshire District Council,19/09/2017,21/09/2017,216901,10521329, 538.99 ,HI-SPEC FACILITIES SERVICES PLC,CR423413,Site & Centre Management,Building Cleaning,440,
http://statistics.data.gov.uk/id/local-authority/12UE,Huntingdonshire District Council,19/09/2017,21/09/2017,216901,972275941," 3,280.80 ",HI-SPEC FACILITIES SERVICES PLC,CR423413,Pathfinder House,Building Cleaning,440,
http://statistics.data.gov.uk/id/local-authority/12UE,Huntingdonshire District Council,21/09/2017,22/09/2017,217477,1132791073, 526.08 ,VIRGIN MEDIA BUSINESS/CPSN,CR455148,Cctv Shared Service Hosting,I T Line Rental,248,
http://statistics.data.gov.uk/id/local-authority/12UE,Huntingdonshire District Council,21/09/2017,22/09/2017,217477,7.42878E+11," 11,186.72 ",VIRGIN MEDIA BUSINESS/CPSN,CR455148,Imd Shared Service,I T Line Rental,248,
http://statistics.data.gov.uk/id/local-authority/12UE,Huntingdonshire District Council,13/09/2017,14/09/2017,216680,341053," 11,179.31 ",MARSHALL OF KNEBWORTH,CR424060,Vehicles & Plant,Vehicles Purchased,600,
http://statistics.data.gov.uk/id/local-authority/12UE,Huntingdonshire District Council,13/09/2017,14/09/2017,216681,341054," 11,179.31 ",MARSHALL OF KNEBWORTH,CR424060,Vehicles & Plant,Vehicles Purchased,600,
http://statistics.data.gov.uk/id/local-authority/12UE,Huntingdonshire District Council,13/09/2017,14/09/2017,216682,341052," 11,179.31 ",MARSHALL OF KNEBWORTH,CR424060,Vehicles & Plant,Vehicles Purchased,600,
http://statistics.data.gov.uk/id/local-authority/12UE,Huntingdonshire District Council,14/09/2017,14/09/2017,215330,INV000128," 10,485.00 ",SQUIRES & SON LTD,CR478185,Disabled Facilities Grants,Mandatory Grants,801,
http://statistics.data.gov.uk/id/local-authority/12UE,Huntingdonshire District Council,13/09/2017,22/09/2017,217022,91394986," 9,972.25 ",VIRGIN MEDIA,CR412057,Ccity Recharge Invoices,I T Line Rental,248,
http://statistics.data.gov.uk/id/local-authority/12UE,Huntingdonshire District Council,13/09/2017,22/09/2017,217020,91395740," 9,754.46 ",CIVICA UK LTD,CR415826,Scdc Recharge Invoices,Software,206,
http://statistics.data.gov.uk/id/local-authority/12UE,Huntingdonshire District Council,21/09/2017,22/09/2017,217474,224978," 9,652.98 ",VIRGIN MEDIA BUSINESS/CPSN,CR455148,Ccity Recharge Invoices,Telephone &Mobile Phonecharges,240,
http://statistics.data.gov.uk/id/local-authority/12UE,Huntingdonshire District Council,27/09/2017,28/09/2017,217815,, 301.95 ,VIRGIN MEDIA BUSINESS/CPSN,CR455148,Ict Capital Projects (Interim),Other I T Hardware,203,
http://statistics.data.gov.uk/id/local-authority/12UE,Huntingdonshire District Council,27/09/2017,28/09/2017,217815,," 9,000.00 ",VIRGIN MEDIA BUSINESS/CPSN,CR455148,Ict Capital Projects (Interim),Other I T Hardware,203,
http://statistics.data.gov.uk/id/local-authority/12UE,Huntingdonshire District Council,27/09/2017,28/09/2017,217822,, 301.95 ,VIRGIN MEDIA BUSINESS/CPSN,CR455148,Ict Capital Projects (Interim),Other I T Hardware,203,
http://statistics.data.gov.uk/id/local-authority/12UE,Huntingdonshire District Council,27/09/2017,28/09/2017,217822,," 9,000.00 ",VIRGIN MEDIA BUSINESS/CPSN,CR455148,Ict Capital Projects (Interim),Other I T Hardware,203,
http://statistics.data.gov.uk/id/local-authority/12UE,Huntingdonshire District Council,13/09/2017,13/09/2017,217112,24823," 9,224.71 ",HAVEN POWER LTD,CR455940,Pathfinder House,Electricity,420,
http://statistics.data.gov.uk/id/local-authority/12UE,Huntingdonshire District Council,06/09/2017,06/09/2017,216598,224228," 9,024.00 ",ERNST & YOUNG,CR411950,Corporate Finance,Audit Fees,701,
http://statistics.data.gov.uk/id/local-authority/12UE,Huntingdonshire District Council,06/09/2017,06/09/2017,216578,INTERIM PAYMENT," 8,400.00 ",PERSONAL DATA REDACTED,CR424887,Disabled Facilities Grants,Mandatory Grants,801,
http://statistics.data.gov.uk/id/local-authority/12UE,Huntingdonshire District Council,13/09/2017,13/09/2017,217115,519486," 8,053.04 ",HAVEN POWER LTD,CR455940,Swimming,Electricity,420,
http://statistics.data.gov.uk/id/local-authority/12UE,Huntingdonshire District Council,14/09/2017,14/09/2017,214662,63569," 7,845.00 ",GASWISE,CR423458,Disabled Facilities Grants,Mandatory Grants,801,
http://statistics.data.gov.uk/id/local-authority/12UE,Huntingdonshire District Council,06/09/2017,06/09/2017,216433,INV000127," 7,572.00 ",SQUIRES & SON LTD,CR478185,Disabled Facilities Grants,Mandatory Grants,801,
http://statistics.data.gov.uk/id/local-authority/12UE,Huntingdonshire District Council,28/09/2017,28/09/2017,217771,AC0214325," 7,337.58 ",ASHCO BUILDING & MAINTENANCE SERVICES LTD,CR422300,Disabled Facilities Grants,Mandatory Grants,801,
http://statistics.data.gov.uk/id/local-authority/12UE,Huntingdonshire District Council,05/09/2017,07/09/2017,216532,3555943," 7,010.00 ",MODERN MINDSET LTD,CR424781,Hdc Recharge Invoices,Software,206,
http://statistics.data.gov.uk/id/local-authority/12UE,Huntingdonshire District Council,14/09/2017,14/09/2017,207571,S30248," 7,001.00 ",BSG PROPERTY SERVICES LTD,CR089905,Disabled Facilities Grants,Mandatory Grants,801,
http://statistics.data.gov.uk/id/local-authority/12UE,Huntingdonshire District Council,14/09/2017,14/09/2017,216866,20671," 6,756.43 ",M WATSON CONSTRUCTION LTD,CR480595,Disabled Facilities Grants,Mandatory Grants,801,
http://statistics.data.gov.uk/id/local-authority/12UE,Huntingdonshire District Council,05/09/2017,07/09/2017,216446,3532499," 6,249.00 ",ADVANCED POWER TECHNOLOGY LTD,CR423568,Scdc Recharge Invoices,Other I T Hardware,203,
http://statistics.data.gov.uk/id/local-authority/12UE,Huntingdonshire District Council,14/09/2017,14/09/2017,217119,2219," 6,239.56 ",CLOVER CONSERVATORIES & CONSTRUCTION,CR424697,Disabled Facilities Grants,Mandatory Grants,801,
http://statistics.data.gov.uk/id/local-authority/12UE,Huntingdonshire District Council,21/09/2017,21/09/2017,217508,SEP17/18PRECEPT," 6,187.15 ",CAMBRIDGESHIRE COUNTY COUNCIL,CR006678,Trade Refuse,Waste Disposal,763,
http://statistics.data.gov.uk/id/local-authority/12UE,Huntingdonshire District Council,14/09/2017,14/09/2017,217169,65922, 196.50 ,GLADSTONE MRM,CR405717,Site & Centre Management,Equipment Hire,507,
http://statistics.data.gov.uk/id/local-authority/12UE,Huntingdonshire District Council,14/09/2017,14/09/2017,217169,17832, 196.50 ,GLADSTONE MRM,CR405717,Leisure Centre Corporate Mngmt,Equipment Hire,507,
http://statistics.data.gov.uk/id/local-authority/12UE,Huntingdonshire District Council,14/09/2017,14/09/2017,217169,817340009," 1,179.00 ",GLADSTONE MRM,CR405717,Site & Centre Management,Equipment Hire,507,
http://statistics.data.gov.uk/id/local-authority/12UE,Huntingdonshire District Council,14/09/2017,14/09/2017,217169,4578973," 1,179.00 ",GLADSTONE MRM,CR405717,Site & Centre Management,Equipment Hire,507,
http://statistics.data.gov.uk/id/local-authority/12UE,Huntingdonshire District Council,14/09/2017,14/09/2017,217169,8353, 661.25 ,GLADSTONE MRM,CR405717,Burgess Bar,Equipment Hire,507,
http://statistics.data.gov.uk/id/local-authority/12UE,Huntingdonshire District Council,14/09/2017,14/09/2017,217169,14830, 982.50 ,GLADSTONE MRM,CR405717,One Leisure Call Centre Income,Equipment Hire,507,
http://statistics.data.gov.uk/id/local-authority/12UE,Huntingdonshire District Council,14/09/2017,14/09/2017,217169,4567636,-199.00 ,GLADSTONE MRM,CR405717,Site & Centre Management,Software,206,
http://statistics.data.gov.uk/id/local-authority/12UE,Huntingdonshire District Council,14/09/2017,14/09/2017,217169,," 1,179.00 ",GLADSTONE MRM,CR405717,Site & Centre Management,Equipment Hire,507,
http://statistics.data.gov.uk/id/local-authority/12UE,Huntingdonshire District Council,14/09/2017,14/09/2017,217169,12409090790, 393.00 ,GLADSTONE MRM,CR405717,Site & Centre Management,Equipment Hire,507,
http://statistics.data.gov.uk/id/local-authority/12UE,Huntingdonshire District Council,14/09/2017,14/09/2017,217169,62883, 393.00 ,GLADSTONE MRM,CR405717,Site & Centre Management,Equipment Hire,507,
http://statistics.data.gov.uk/id/local-authority/12UE,Huntingdonshire District Council,14/09/2017,14/09/2017,213287,531426," 6,140.50 ",BSG PROPERTY SERVICES LTD,CR089905,Disabled Facilities Grants,Mandatory Grants,801,
http://statistics.data.gov.uk/id/local-authority/12UE,Huntingdonshire District Council,05/09/2017,07/09/2017,216445,SINV00115662," 6,047.13 ",CACI LIMITED,CR409683,Hdc Recharge Invoices,Software,206,
http://statistics.data.gov.uk/id/local-authority/12UE,Huntingdonshire District Council,13/09/2017,13/09/2017,217114,13178," 5,578.30 ",HAVEN POWER LTD,CR455940,Site & Centre Management,Electricity,420,
http://statistics.data.gov.uk/id/local-authority/12UE,Huntingdonshire District Council,14/09/2017,14/09/2017,216914,SI-58," 5,555.00 ",HD PROPERTY SERVICES,CR422148,Disabled Facilities Grants,Mandatory Grants,801,
http://statistics.data.gov.uk/id/local-authority/12UE,Huntingdonshire District Council,07/09/2017,07/09/2017,216689,," 5,441.00 ",CAMBRIDGESHIRE COUNTY COUNCIL,CR017440,St Ives Enterprise Centre,Profit Share Payable,805,
http://statistics.data.gov.uk/id/local-authority/12UE,Huntingdonshire District Council,06/09/2017,07/09/2017,216657,519887, 26.74 ,BRAMBLE HUB LTD,CR478176,The Club Alconbury Weald,Materials,550,
http://statistics.data.gov.uk/id/local-authority/12UE,Huntingdonshire District Council,06/09/2017,07/09/2017,216657,," 1,330.40 ",BRAMBLE HUB LTD,CR478176,Site & Centre Management,Materials,550,
http://statistics.data.gov.uk/id/local-authority/12UE,Huntingdonshire District Council,06/09/2017,07/09/2017,216657,," 1,330.40 ",BRAMBLE HUB LTD,CR478176,Site & Centre Management,Materials,550,
http://statistics.data.gov.uk/id/local-authority/12UE,Huntingdonshire District Council,06/09/2017,07/09/2017,216657,CREDIT REF," 1,330.40 ",BRAMBLE HUB LTD,CR478176,Site & Centre Management,Materials,550,
http://statistics.data.gov.uk/id/local-authority/12UE,Huntingdonshire District Council,06/09/2017,07/09/2017,216657,400503000, 665.20 ,BRAMBLE HUB LTD,CR478176,Site & Centre Management,Materials,550,
http://statistics.data.gov.uk/id/local-authority/12UE,Huntingdonshire District Council,06/09/2017,07/09/2017,216657,12489088700, 665.20 ,BRAMBLE HUB LTD,CR478176,Site & Centre Management,Materials,550,
http://statistics.data.gov.uk/id/local-authority/12UE,Huntingdonshire District Council,06/09/2017,06/09/2017,216431,S1-50," 5,326.00 ",HD PROPERTY SERVICES,CR422148,Disabled Facilities Grants,Mandatory Grants,801,
http://statistics.data.gov.uk/id/local-authority/12UE,Huntingdonshire District Council,27/09/2017,28/09/2017,217802,," 4,750.00 ",HORNBILL SERVICE MANAGEMENT LIMITED,CR423491,Imd Shared Service,Consultants,711,
http://statistics.data.gov.uk/id/local-authority/12UE,Huntingdonshire District Council,27/09/2017,28/09/2017,217802,, 475.00 ,HORNBILL SERVICE MANAGEMENT LIMITED,CR423491,Imd Shared Service,Travel Expenses,636,
http://statistics.data.gov.uk/id/local-authority/12UE,Huntingdonshire District Council,21/09/2017,21/09/2017,217512,PTRECEPT 2017/1," 5,105.34 ",CAMBRIDGESHIRE COUNTY COUNCIL,CR006678,Trade Refuse,Waste Disposal,763,
http://statistics.data.gov.uk/id/local-authority/12UE,Huntingdonshire District Council,06/09/2017,06/09/2017,213290,63571," 5,016.00 ",GASWISE,CR423458,Disabled Facilities Grants,Mandatory Grants,801,
http://statistics.data.gov.uk/id/local-authority/12UE,Huntingdonshire District Council,06/09/2017,06/09/2017,215312,S31811," 5,005.00 ",BSG PROPERTY SERVICES LTD,CR089905,Disabled Facilities Grants,Mandatory Grants,801,
http://statistics.data.gov.uk/id/local-authority/12UE,Huntingdonshire District Council,13/09/2017,13/09/2017,615312,2017/18 - 9," 5,000.00 ",BARNABAS OLEY CHURCH OF ENGLAND SCHOOL,CR424908,Voluntary Sector Grants,Grants (Paid Out),800,
http://statistics.data.gov.uk/id/local-authority/12UE,Huntingdonshire District Council,14/09/2017,14/09/2017,216870,SIN1708AT033025," 4,902.54 ",HUGH STEEPER LTD,CR407049,Disabled Facilities Grants,Mandatory Grants,801,
http://statistics.data.gov.uk/id/local-authority/12UE,Huntingdonshire District Council,27/09/2017,28/09/2017,217447,1318353," 4,880.00 ",LATTENBURY SERVICES,CR406847,Sewer Ditches/Village Drains,Sitework,359,
http://statistics.data.gov.uk/id/local-authority/12UE,Huntingdonshire District Council,06/09/2017,06/09/2017,216481,63074," 4,857.00 ",GASWISE,CR423458,Disabled Facilities Grants,Mandatory Grants,801,
http://statistics.data.gov.uk/id/local-authority/12UE,Huntingdonshire District Council,06/09/2017,06/09/2017,216587,238503," 4,764.34 ",INTELLIGENT PLANS AND EXAMINATIONS (IPE) LTD,CR424810,Neighbourhood Planning,Consultants,711,
http://statistics.data.gov.uk/id/local-authority/12UE,Huntingdonshire District Council,06/09/2017,06/09/2017,216577,609," 4,680.00 ",B P MORSE,CR030128,Disabled Facilities Grants,Mandatory Grants,801,
http://statistics.data.gov.uk/id/local-authority/12UE,Huntingdonshire District Council,28/09/2017,28/09/2017,217703,611," 4,650.00 ",B P MORSE,CR030128,Disabled Facilities Grants,Mandatory Grants,801,
http://statistics.data.gov.uk/id/local-authority/12UE,Huntingdonshire District Council,05/09/2017,07/09/2017,216441,930635-042A," 4,600.00 ",INSIGHT DIRECT UK LTD,CR000242,Scdc Recharge Invoices,Other I T Hardware,203,
http://statistics.data.gov.uk/id/local-authority/12UE,Huntingdonshire District Council,04/09/2017,07/09/2017,216092,IN16PS17004478, 273.43 ,WHISTL UK LTD,CR424061,Electoral Registration,Postage,231,
http://statistics.data.gov.uk/id/local-authority/12UE,Huntingdonshire District Council,04/09/2017,07/09/2017,216092,IN16PS17004478, 620.22 ,WHISTL UK LTD,CR424061,Electoral Registration,Postage,231,
http://statistics.data.gov.uk/id/local-authority/12UE,Huntingdonshire District Council,04/09/2017,07/09/2017,216092,IN16PS17004478, 50.39 ,WHISTL UK LTD,CR424061,Electoral Registration,Postage,231,
http://statistics.data.gov.uk/id/local-authority/12UE,Huntingdonshire District Council,04/09/2017,07/09/2017,216092,, 825.46 ,WHISTL UK LTD,CR424061,Post Handling,Postage,231,
http://statistics.data.gov.uk/id/local-authority/12UE,Huntingdonshire District Council,04/09/2017,07/09/2017,216092,61619670, 306.03 ,WHISTL UK LTD,CR424061,Burgess Hall,Postage,231,
http://statistics.data.gov.uk/id/local-authority/12UE,Huntingdonshire District Council,04/09/2017,07/09/2017,216092,THTMC025," 1,348.25 ",WHISTL UK LTD,CR424061,Closedcounciltax Mgmt-Use Hb85,Postage,231,
http://statistics.data.gov.uk/id/local-authority/12UE,Huntingdonshire District Council,04/09/2017,07/09/2017,216092,CH111/2017, 959.97 ,WHISTL UK LTD,CR424061,Closedcounciltax Mgmt-Use Hb85,Postage,231,
http://statistics.data.gov.uk/id/local-authority/12UE,Huntingdonshire District Council,04/09/2017,07/09/2017,216092,, 198.96 ,WHISTL UK LTD,CR424061,Closedcounciltax Mgmt-Use Hb85,Postage,231,
http://statistics.data.gov.uk/id/local-authority/12UE,Huntingdonshire District Council,13/09/2017,13/09/2017,217117,59663," 4,546.10 ",HAVEN POWER LTD,CR455940,Site & Centre Management,Electricity,420,
http://statistics.data.gov.uk/id/local-authority/12UE,Huntingdonshire District Council,14/09/2017,14/09/2017,615313,PERSONAL DATA REDACTED," 4,421.91 ",PERSONAL DATA REDACTED,CR175605,Disabled Facilities Grants,Mandatory Grants,801,
http://statistics.data.gov.uk/id/local-authority/12UE,Huntingdonshire District Council,28/09/2017,28/09/2017,216886,IN0618254," 4,319.92 ",STAFFLINE GROUP,CR416827,Domestic Waste Collection,Hired Staff,100,
http://statistics.data.gov.uk/id/local-authority/12UE,Huntingdonshire District Council,27/09/2017,27/09/2017,217823,K1816," 3,750.00 ",HELLIER LANGSTON LIMITED,CR424943,Commercial Investment Strategy,Consultants,711,
http://statistics.data.gov.uk/id/local-authority/12UE,Huntingdonshire District Council,27/09/2017,27/09/2017,217823,564394, 460.00 ,HELLIER LANGSTON LIMITED,CR424943,Commercial Investment Strategy,Consultants,711,
http://statistics.data.gov.uk/id/local-authority/12UE,Huntingdonshire District Council,06/09/2017,06/09/2017,216432,SIN124799," 4,122.07 ",PRINCEBUILD LTD,CR000645,Disabled Facilities Grants,Mandatory Grants,801,
http://statistics.data.gov.uk/id/local-authority/12UE,Huntingdonshire District Council,28/09/2017,28/09/2017,615713,96346497," 4,046.40 ",LITTLE PAXTON PARISH COUNCIL,CR002473,S106 Agreements Exp & Inc,Contribution (Paid Out),810,
http://statistics.data.gov.uk/id/local-authority/12UE,Huntingdonshire District Council,20/09/2017,21/09/2017,216902,16115," 4,029.90 ",JADE SECURITY SERVICES LTD,CR422256,Car Parks Operational Mgt,Cash Collection,702,
http://statistics.data.gov.uk/id/local-authority/12UE,Huntingdonshire District Council,14/09/2017,14/09/2017,216869,S32175," 4,014.00 ",BSG PROPERTY SERVICES LTD,CR089905,Disabled Facilities Grants,Mandatory Grants,801,
http://statistics.data.gov.uk/id/local-authority/12UE,Huntingdonshire District Council,20/09/2017,21/09/2017,217374,B3121719," 3,928.32 ",BEMROSE MOBILE LTD,CR422668,Car Parks Operational Mgt,Telephone &Mobile Phonecharges,240,
http://statistics.data.gov.uk/id/local-authority/12UE,Huntingdonshire District Council,27/09/2017,28/09/2017,217806,," 3,921.30 ",IT TALENT SOLUTIONS LTD,CR482676,Imd Shared Service,Recruitment Costs,120,
http://statistics.data.gov.uk/id/local-authority/12UE,Huntingdonshire District Council,28/09/2017,28/09/2017,217648,SIN1709AT036941," 3,830.79 ",HUGH STEEPER LTD,CR407049,Disabled Facilities Grants,Mandatory Grants,801,
http://statistics.data.gov.uk/id/local-authority/12UE,Huntingdonshire District Council,21/09/2017,25/09/2017,217379,," 3,426.30 ",PHOENIX SOFTWARE LTD,CR031918,Hdc Recharge Invoices,Software,206,
http://statistics.data.gov.uk/id/local-authority/12UE,Huntingdonshire District Council,21/09/2017,25/09/2017,217379,, 293.68 ,PHOENIX SOFTWARE LTD,CR031918,Hdc Recharge Invoices,Software,206,
http://statistics.data.gov.uk/id/local-authority/12UE,Huntingdonshire District Council,04/09/2017,07/09/2017,216094,9054999753," 3,654.51 ",ROYAL MAIL,CR027083,Electoral Registration,Postage,231,
http://statistics.data.gov.uk/id/local-authority/12UE,Huntingdonshire District Council,04/09/2017,07/09/2017,216094,IN16PS17004478, 65.46 ,ROYAL MAIL,CR027083,Post Handling,Postage,231,
http://statistics.data.gov.uk/id/local-authority/12UE,Huntingdonshire District Council,21/09/2017,22/09/2017,217450,S300357," 3,675.00 ",IT TALENT SOLUTIONS LTD,CR482676,Imd Shared Service,Hired Staff,100,
http://statistics.data.gov.uk/id/local-authority/12UE,Huntingdonshire District Council,28/09/2017,28/09/2017,217880,PERSONAL DATA REDACTED," 3,601.00 ",STAGE RIGHT PROMOTIONS LTD,CR424954,Burgess Hall,Entertainments Inc Cable Tv,744,
http://statistics.data.gov.uk/id/local-authority/12UE,Huntingdonshire District Council,12/09/2017,25/09/2017,216440,100580," 3,600.00 ",INSIGHT DIRECT UK LTD,CR000242,Imd Shared Service,Other I T Hardware,203,
http://statistics.data.gov.uk/id/local-authority/12UE,Huntingdonshire District Council,14/09/2017,14/09/2017,615307,EC1716, 490.00 ,COACH & HORSES,CR410824,Homelessness,Bed & Breakfast Payment,818,
http://statistics.data.gov.uk/id/local-authority/12UE,Huntingdonshire District Council,14/09/2017,14/09/2017,615307,RC-HDC018, 280.00 ,COACH & HORSES,CR410824,Homelessness,Bed & Breakfast Payment,818,
http://statistics.data.gov.uk/id/local-authority/12UE,Huntingdonshire District Council,14/09/2017,14/09/2017,615307,297, 245.00 ,COACH & HORSES,CR410824,Homelessness,Bed & Breakfast Payment,818,
http://statistics.data.gov.uk/id/local-authority/12UE,Huntingdonshire District Council,14/09/2017,14/09/2017,615307,297, 245.00 ,COACH & HORSES,CR410824,Homelessness,Bed & Breakfast Payment,818,
http://statistics.data.gov.uk/id/local-authority/12UE,Huntingdonshire District Council,14/09/2017,14/09/2017,615307,RC-HDC018, 245.00 ,COACH & HORSES,CR410824,Homelessness,Bed & Breakfast Payment,818,
http://statistics.data.gov.uk/id/local-authority/12UE,Huntingdonshire District Council,14/09/2017,14/09/2017,615307,297, 245.00 ,COACH & HORSES,CR410824,Homelessness,Bed & Breakfast Payment,818,
http://statistics.data.gov.uk/id/local-authority/12UE,Huntingdonshire District Council,14/09/2017,14/09/2017,615307,RC-HDC018, 245.00 ,COACH & HORSES,CR410824,Homelessness,Bed & Breakfast Payment,818,
http://statistics.data.gov.uk/id/local-authority/12UE,Huntingdonshire District Council,14/09/2017,14/09/2017,615307,RC-HDC019, 245.00 ,COACH & HORSES,CR410824,Homelessness,Bed & Breakfast Payment,818,
http://statistics.data.gov.uk/id/local-authority/12UE,Huntingdonshire District Council,14/09/2017,14/09/2017,615307,RC-HDC018, 385.00 ,COACH & HORSES,CR410824,Homelessness,Bed & Breakfast Payment,818,
http://statistics.data.gov.uk/id/local-authority/12UE,Huntingdonshire District Council,14/09/2017,14/09/2017,615307,RC-HDC018, 245.00 ,COACH & HORSES,CR410824,Homelessness,Bed & Breakfast Payment,818,
http://statistics.data.gov.uk/id/local-authority/12UE,Huntingdonshire District Council,14/09/2017,14/09/2017,615307,298, 455.00 ,COACH & HORSES,CR410824,Homelessness,Bed & Breakfast Payment,818,
http://statistics.data.gov.uk/id/local-authority/12UE,Huntingdonshire District Council,14/09/2017,14/09/2017,615307,297, 270.00 ,COACH & HORSES,CR410824,Homelessness,Bed & Breakfast Payment,818,
http://statistics.data.gov.uk/id/local-authority/12UE,Huntingdonshire District Council,21/09/2017,21/09/2017,615349,EC1717, 350.00 ,COACH & HORSES,CR410824,Homelessness,Bed & Breakfast Payment,818,
http://statistics.data.gov.uk/id/local-authority/12UE,Huntingdonshire District Council,21/09/2017,21/09/2017,615349,RC-HDC019, 280.00 ,COACH & HORSES,CR410824,Homelessness,Bed & Breakfast Payment,818,
http://statistics.data.gov.uk/id/local-authority/12UE,Huntingdonshire District Council,21/09/2017,21/09/2017,615349,298, 245.00 ,COACH & HORSES,CR410824,Homelessness,Bed & Breakfast Payment,818,
http://statistics.data.gov.uk/id/local-authority/12UE,Huntingdonshire District Council,21/09/2017,21/09/2017,615349,298, 70.00 ,COACH & HORSES,CR410824,Homelessness,Bed & Breakfast Payment,818,
http://statistics.data.gov.uk/id/local-authority/12UE,Huntingdonshire District Council,21/09/2017,21/09/2017,615349,RC-HDC019, 245.00 ,COACH & HORSES,CR410824,Homelessness,Bed & Breakfast Payment,818,
http://statistics.data.gov.uk/id/local-authority/12UE,Huntingdonshire District Council,21/09/2017,21/09/2017,615349,298, 245.00 ,COACH & HORSES,CR410824,Homelessness,Bed & Breakfast Payment,818,
http://statistics.data.gov.uk/id/local-authority/12UE,Huntingdonshire District Council,21/09/2017,21/09/2017,615349,RC-HDC019, 245.00 ,COACH & HORSES,CR410824,Homelessness,Bed & Breakfast Payment,818,
http://statistics.data.gov.uk/id/local-authority/12UE,Huntingdonshire District Council,21/09/2017,21/09/2017,615349,Oct-17, 35.00 ,COACH & HORSES,CR410824,Homelessness,Bed & Breakfast Payment,818,
http://statistics.data.gov.uk/id/local-authority/12UE,Huntingdonshire District Council,21/09/2017,21/09/2017,615349,RC-HDC019, 385.00 ,COACH & HORSES,CR410824,Homelessness,Bed & Breakfast Payment,818,
http://statistics.data.gov.uk/id/local-authority/12UE,Huntingdonshire District Council,21/09/2017,21/09/2017,615349,RC-HDC019, 245.00 ,COACH & HORSES,CR410824,Homelessness,Bed & Breakfast Payment,818,
http://statistics.data.gov.uk/id/local-authority/12UE,Huntingdonshire District Council,21/09/2017,21/09/2017,615349,384/805, 455.00 ,COACH & HORSES,CR410824,Homelessness,Bed & Breakfast Payment,818,
http://statistics.data.gov.uk/id/local-authority/12UE,Huntingdonshire District Council,21/09/2017,21/09/2017,615349,298, 315.00 ,COACH & HORSES,CR410824,Homelessness,Bed & Breakfast Payment,818,
http://statistics.data.gov.uk/id/local-authority/12UE,Huntingdonshire District Council,21/09/2017,21/09/2017,615349,296, 225.00 ,COACH & HORSES,CR410824,Homelessness,Bed & Breakfast Payment,818,
http://statistics.data.gov.uk/id/local-authority/12UE,Huntingdonshire District Council,21/09/2017,21/09/2017,615349,298, 90.00 ,COACH & HORSES,CR410824,Homelessness,Bed & Breakfast Payment,818,
http://statistics.data.gov.uk/id/local-authority/12UE,Huntingdonshire District Council,07/09/2017,07/09/2017,216507,," 3,427.93 ",STAFFLINE GROUP,CR416827,Recycling Collections,Hired Staff,100,
http://statistics.data.gov.uk/id/local-authority/12UE,Huntingdonshire District Council,07/09/2017,07/09/2017,216501,427114," 3,386.38 ",STAFFLINE GROUP,CR416827,Domestic Waste Collection,Hired Staff,100,
http://statistics.data.gov.uk/id/local-authority/12UE,Huntingdonshire District Council,28/09/2017,28/09/2017,216888,IN0617970," 3,352.46 ",STAFFLINE GROUP,CR416827,Recycling Collections,Hired Staff,100,
http://statistics.data.gov.uk/id/local-authority/12UE,Huntingdonshire District Council,07/09/2017,07/09/2017,216707,T27440," 3,315.00 ",ADAMS AUTOS,CR422066,Ph & Hc Vechicles,Vehicle Inspection,618,
http://statistics.data.gov.uk/id/local-authority/12UE,Huntingdonshire District Council,13/09/2017,13/09/2017,217110,1028," 3,306.05 ",HAVEN POWER LTD,CR455940,Site & Centre Management,Electricity,420,
http://statistics.data.gov.uk/id/local-authority/12UE,Huntingdonshire District Council,28/09/2017,28/09/2017,217689,IN0619195," 3,303.03 ",STAFFLINE GROUP,CR416827,Domestic Waste Collection,Hired Staff,100,
http://statistics.data.gov.uk/id/local-authority/12UE,Huntingdonshire District Council,28/09/2017,28/09/2017,615562,295, 280.00 ,COACH & HORSES,CR410824,Homelessness,Bed & Breakfast Payment,818,
http://statistics.data.gov.uk/id/local-authority/12UE,Huntingdonshire District Council,28/09/2017,28/09/2017,615562,295, 245.00 ,COACH & HORSES,CR410824,Homelessness,Bed & Breakfast Payment,818,
http://statistics.data.gov.uk/id/local-authority/12UE,Huntingdonshire District Council,28/09/2017,28/09/2017,615562,295, 245.00 ,COACH & HORSES,CR410824,Homelessness,Bed & Breakfast Payment,818,
http://statistics.data.gov.uk/id/local-authority/12UE,Huntingdonshire District Council,28/09/2017,28/09/2017,615562,295, 245.00 ,COACH & HORSES,CR410824,Homelessness,Bed & Breakfast Payment,818,
http://statistics.data.gov.uk/id/local-authority/12UE,Huntingdonshire District Council,28/09/2017,28/09/2017,615562,295, 245.00 ,COACH & HORSES,CR410824,Homelessness,Bed & Breakfast Payment,818,
http://statistics.data.gov.uk/id/local-authority/12UE,Huntingdonshire District Council,28/09/2017,28/09/2017,615562,295, 385.00 ,COACH & HORSES,CR410824,Homelessness,Bed & Breakfast Payment,818,
http://statistics.data.gov.uk/id/local-authority/12UE,Huntingdonshire District Council,28/09/2017,28/09/2017,615562,295, 245.00 ,COACH & HORSES,CR410824,Homelessness,Bed & Breakfast Payment,818,
http://statistics.data.gov.uk/id/local-authority/12UE,Huntingdonshire District Council,28/09/2017,28/09/2017,615562,295, 455.00 ,COACH & HORSES,CR410824,Homelessness,Bed & Breakfast Payment,818,
http://statistics.data.gov.uk/id/local-authority/12UE,Huntingdonshire District Council,28/09/2017,28/09/2017,615562,RC-HDC019, 315.00 ,COACH & HORSES,CR410824,Homelessness,Bed & Breakfast Payment,818,
http://statistics.data.gov.uk/id/local-authority/12UE,Huntingdonshire District Council,28/09/2017,28/09/2017,615562,297, 315.00 ,COACH & HORSES,CR410824,Homelessness,Bed & Breakfast Payment,818,
http://statistics.data.gov.uk/id/local-authority/12UE,Huntingdonshire District Council,28/09/2017,28/09/2017,615562,297, 315.00 ,COACH & HORSES,CR410824,Homelessness,Bed & Breakfast Payment,818,
http://statistics.data.gov.uk/id/local-authority/12UE,Huntingdonshire District Council,13/09/2017,13/09/2017,217111,968," 3,257.94 ",HAVEN POWER LTD,CR455940,Eastfield House,Electricity,420,
http://statistics.data.gov.uk/id/local-authority/12UE,Huntingdonshire District Council,27/09/2017,28/09/2017,217805,," 3,250.00 ",PROOFID,CR424717,Imd Shared Service,Consultants,711,
http://statistics.data.gov.uk/id/local-authority/12UE,Huntingdonshire District Council,04/09/2017,07/09/2017,216457,126362," 3,161.06 ",CALE ACCESS UK LTD,CR401137,Car Parks Operational Mgt,Equipment,500,
http://statistics.data.gov.uk/id/local-authority/12UE,Huntingdonshire District Council,19/09/2017,25/09/2017,217368,," 3,155.00 ",NORTHGATEPUBLIC SERVICES UK LTD,CR028925,Benefits Management,Software,206,
http://statistics.data.gov.uk/id/local-authority/12UE,Huntingdonshire District Council,05/09/2017,07/09/2017,216542,, 144.78 ,ARCHANT COMMUNITY MEDIA LTD,CR452143,Dm Application Processing,Advertising - Statutory Notice,257,
http://statistics.data.gov.uk/id/local-authority/12UE,Huntingdonshire District Council,05/09/2017,07/09/2017,216542,1082," 3,000.00 ",ARCHANT COMMUNITY MEDIA LTD,CR452143,Business & Enterprise Support,Contribution (Paid Out),810,
http://statistics.data.gov.uk/id/local-authority/12UE,Huntingdonshire District Council,12/09/2017,25/09/2017,216922,3514993," 3,080.00 ",INSIGHT DIRECT UK LTD,CR000242,Ccity Recharge Invoices,Other I T Hardware,203,
http://statistics.data.gov.uk/id/local-authority/12UE,Huntingdonshire District Council,07/09/2017,07/09/2017,216700,1319808," 3,000.50 ",QUADRANT SECURITY GROUP,CR027775,Cctv Shared Service Hosting,Equipment Maintenance,511,
http://statistics.data.gov.uk/id/local-authority/12UE,Huntingdonshire District Council,12/09/2017,25/09/2017,216958,33492," 3,000.00 ",VUELIO,CR424898,Imd Shared Service,Software,206,
http://statistics.data.gov.uk/id/local-authority/12UE,Huntingdonshire District Council,21/09/2017,21/09/2017,217472,," 3,000.00 ",LAGOM ASSOCIATES LTD,CR424939,Corporate Finance,Consultants,711,
http://statistics.data.gov.uk/id/local-authority/12UE,Huntingdonshire District Council,21/09/2017,22/09/2017,217473,," 3,000.00 ",VIRGIN MEDIA BUSINESS/CPSN,CR455148,Ccity Recharge Invoices,Telephone &Mobile Phonecharges,240,
http://statistics.data.gov.uk/id/local-authority/12UE,Huntingdonshire District Council,06/09/2017,07/09/2017,615125,384/810, 280.00 ,COACH & HORSES,CR410824,Homelessness,Bed & Breakfast Payment,818,
http://statistics.data.gov.uk/id/local-authority/12UE,Huntingdonshire District Council,06/09/2017,07/09/2017,615125,296, 245.00 ,COACH & HORSES,CR410824,Homelessness,Bed & Breakfast Payment,818,
http://statistics.data.gov.uk/id/local-authority/12UE,Huntingdonshire District Council,06/09/2017,07/09/2017,615125,296, 245.00 ,COACH & HORSES,CR410824,Homelessness,Bed & Breakfast Payment,818,
http://statistics.data.gov.uk/id/local-authority/12UE,Huntingdonshire District Council,06/09/2017,07/09/2017,615125,RC-HDC019, 200.00 ,COACH & HORSES,CR410824,Homelessness,Bed & Breakfast Payment,818,
http://statistics.data.gov.uk/id/local-authority/12UE,Huntingdonshire District Council,06/09/2017,07/09/2017,615125,295, 245.00 ,COACH & HORSES,CR410824,Homelessness,Bed & Breakfast Payment,818,
http://statistics.data.gov.uk/id/local-authority/12UE,Huntingdonshire District Council,06/09/2017,07/09/2017,615125,296, 245.00 ,COACH & HORSES,CR410824,Homelessness,Bed & Breakfast Payment,818,
http://statistics.data.gov.uk/id/local-authority/12UE,Huntingdonshire District Council,06/09/2017,07/09/2017,615125,RC-HDC019, 245.00 ,COACH & HORSES,CR410824,Homelessness,Bed & Breakfast Payment,818,
http://statistics.data.gov.uk/id/local-authority/12UE,Huntingdonshire District Council,06/09/2017,07/09/2017,615125,RC-HDC018, 245.00 ,COACH & HORSES,CR410824,Homelessness,Bed & Breakfast Payment,818,
http://statistics.data.gov.uk/id/local-authority/12UE,Huntingdonshire District Council,06/09/2017,07/09/2017,615125,RC-HDC019, 385.00 ,COACH & HORSES,CR410824,Homelessness,Bed & Breakfast Payment,818,
http://statistics.data.gov.uk/id/local-authority/12UE,Huntingdonshire District Council,06/09/2017,07/09/2017,615125,298, 245.00 ,COACH & HORSES,CR410824,Homelessness,Bed & Breakfast Payment,818,
http://statistics.data.gov.uk/id/local-authority/12UE,Huntingdonshire District Council,06/09/2017,07/09/2017,615125,297, 390.00 ,COACH & HORSES,CR410824,Homelessness,Bed & Breakfast Payment,818,
http://statistics.data.gov.uk/id/local-authority/12UE,Huntingdonshire District Council,13/09/2017,13/09/2017,216980,CD970070093," 2,950.65 ",E-ON ENERGY,CR416430,Site & Centre Management,Gas,421,
http://statistics.data.gov.uk/id/local-authority/12UE,Huntingdonshire District Council,14/09/2017,14/09/2017,216868,S1-1677," 2,936.00 ",HD PROPERTY SERVICES,CR422148,Disabled Facilities Grants,Mandatory Grants,801,
http://statistics.data.gov.uk/id/local-authority/12UE,Huntingdonshire District Council,21/09/2017,21/09/2017,217422,," 2,925.81 ",SWALEC,CR407130,Mobile Home Park,Electricity,420,
http://statistics.data.gov.uk/id/local-authority/12UE,Huntingdonshire District Council,28/09/2017,28/09/2017,217691,IN0619198," 2,892.66 ",STAFFLINE GROUP,CR416827,Recycling Collections,Hired Staff,100,
http://statistics.data.gov.uk/id/local-authority/12UE,Huntingdonshire District Council,05/09/2017,07/09/2017,216547,," 2,850.00 ",RAPLEYS LLP,CR157687,Business & Enterprise Support,Consultants,711,
http://statistics.data.gov.uk/id/local-authority/12UE,Huntingdonshire District Council,05/09/2017,07/09/2017,216535,PS10035657," 2,833.00 ",PREMIER BUSINESS AUDIO,CR424900,Ccity Recharge Invoices,Equipment Maintenance,511,
http://statistics.data.gov.uk/id/local-authority/12UE,Huntingdonshire District Council,07/09/2017,07/09/2017,216498,SIN0640981," 2,829.82 ",STAFFLINE GROUP,CR416827,Domestic Waste Collection,Hired Staff,100,
http://statistics.data.gov.uk/id/local-authority/12UE,Huntingdonshire District Council,28/09/2017,28/09/2017,217688,IN0619196," 2,814.14 ",STAFFLINE GROUP,CR416827,Domestic Waste Collection,Hired Staff,100,
http://statistics.data.gov.uk/id/local-authority/12UE,Huntingdonshire District Council,28/09/2017,28/09/2017,217690,IN0619194," 2,812.01 ",STAFFLINE GROUP,CR416827,Recycling Collections,Hired Staff,100,
http://statistics.data.gov.uk/id/local-authority/12UE,Huntingdonshire District Council,21/09/2017,22/09/2017,217493,S300995," 2,808.00 ",ADVANTAGE RESOURCING,CR424715,Imd Shared Service,Hired Staff,100,
http://statistics.data.gov.uk/id/local-authority/12UE,Huntingdonshire District Council,28/09/2017,28/09/2017,217698,," 2,785.73 ",STAFFLINE GROUP,CR416827,Street Cleansing,Hired Staff,100,
http://statistics.data.gov.uk/id/local-authority/12UE,Huntingdonshire District Council,07/09/2017,07/09/2017,216495,," 2,785.38 ",STAFFLINE GROUP,CR416827,Domestic Waste Collection,Hired Staff,100,
http://statistics.data.gov.uk/id/local-authority/12UE,Huntingdonshire District Council,27/09/2017,27/09/2017,217782,9054589617," 2,754.22 ",ROYAL MAIL,CR027083,Parliamentary  Elections,Postage,231,
http://statistics.data.gov.uk/id/local-authority/12UE,Huntingdonshire District Council,21/09/2017,22/09/2017,217468,," 2,751.03 ",VIRGIN MEDIA BUSINESS/CPSN,CR455148,Scdc Recharge Invoices,Hired Staff,100,
http://statistics.data.gov.uk/id/local-authority/12UE,Huntingdonshire District Council,21/09/2017,21/09/2017,217426,INV0084," 2,710.19 ",SWALEC,CR407130,Site & Centre Management,Electricity,420,
http://statistics.data.gov.uk/id/local-authority/12UE,Huntingdonshire District Council,06/09/2017,06/09/2017,216479,S32176," 2,703.60 ",BSG PROPERTY SERVICES LTD,CR089905,Disabled Facilities Grants,Mandatory Grants,801,
http://statistics.data.gov.uk/id/local-authority/12UE,Huntingdonshire District Council,27/09/2017,28/09/2017,217790,," 2,700.00 ",DATRIX TRAINING,CR424950,Imd Shared Service,Training,130,
http://statistics.data.gov.uk/id/local-authority/12UE,Huntingdonshire District Council,21/09/2017,21/09/2017,216919,PERSONAL DATA REDACTED," 2,697.54 ",SWALEC,CR407130,Site & Centre Management,Electricity,420,
http://statistics.data.gov.uk/id/local-authority/12UE,Huntingdonshire District Council,07/09/2017,07/09/2017,216496,424155," 2,692.60 ",STAFFLINE GROUP,CR416827,Domestic Waste Collection,Hired Staff,100,
http://statistics.data.gov.uk/id/local-authority/12UE,Huntingdonshire District Council,05/09/2017,07/09/2017,216529,S299113," 2,675.00 ",PREMIER IT RECRUITMENT LTD,CR454029,Imd Shared Service,Hired Staff,100,
http://statistics.data.gov.uk/id/local-authority/12UE,Huntingdonshire District Council,13/09/2017,22/09/2017,217000,," 2,675.00 ",PREMIER IT RECRUITMENT LTD,CR454029,Imd Shared Service,Hired Staff,100,
http://statistics.data.gov.uk/id/local-authority/12UE,Huntingdonshire District Council,07/09/2017,07/09/2017,216503,," 2,668.84 ",STAFFLINE GROUP,CR416827,Recycling Collections,Hired Staff,100,
http://statistics.data.gov.uk/id/local-authority/12UE,Huntingdonshire District Council,05/09/2017,07/09/2017,216525,S301570," 2,625.00 ",IT TALENT SOLUTIONS LTD,CR482676,Imd Shared Service,Hired Staff,100,
http://statistics.data.gov.uk/id/local-authority/12UE,Huntingdonshire District Council,13/09/2017,22/09/2017,217001,," 2,625.00 ",IT TALENT SOLUTIONS LTD,CR482676,Imd Shared Service,Hired Staff,100,
http://statistics.data.gov.uk/id/local-authority/12UE,Huntingdonshire District Council,21/09/2017,22/09/2017,217408,125971," 2,625.00 ",IT TALENT SOLUTIONS LTD,CR482676,Imd Shared Service,Hired Staff,100,
http://statistics.data.gov.uk/id/local-authority/12UE,Huntingdonshire District Council,26/09/2017,28/09/2017,217369,S000406, 868.50 ,DTS SOLUTIONS (UK) LTD,CR001981,Car Parks Operational Mgt,Vehicle Parts & Fittings,625,
http://statistics.data.gov.uk/id/local-authority/12UE,Huntingdonshire District Council,26/09/2017,28/09/2017,217369,S000406, 868.50 ,DTS SOLUTIONS (UK) LTD,CR001981,Car Parks Operational Mgt,Vehicle Parts & Fittings,625,
http://statistics.data.gov.uk/id/local-authority/12UE,Huntingdonshire District Council,26/09/2017,28/09/2017,217369,PRECEPT2017/18, 868.50 ,DTS SOLUTIONS (UK) LTD,CR001981,Trade Refuse,Vehicle Parts & Fittings,625,
http://statistics.data.gov.uk/id/local-authority/12UE,Huntingdonshire District Council,14/09/2017,14/09/2017,217172,," 2,600.00 ",HAYS,CR423917,Property Development And Mgt,Hired Staff,100,
http://statistics.data.gov.uk/id/local-authority/12UE,Huntingdonshire District Council,21/09/2017,21/09/2017,217486,HDC072," 2,600.00 ",HAYS,CR423917,Property Development And Mgt,Hired Staff,100,
http://statistics.data.gov.uk/id/local-authority/12UE,Huntingdonshire District Council,07/09/2017,07/09/2017,216511,IN0618256," 2,562.06 ",STAFFLINE GROUP,CR416827,Domestic Waste Collection,Hired Staff,100,
http://statistics.data.gov.uk/id/local-authority/12UE,Huntingdonshire District Council,05/09/2017,07/09/2017,216533,," 2,560.00 ",NORTHGATEPUBLIC SERVICES UK LTD,CR028925,Hdc Recharge Invoices,Software,206,
http://statistics.data.gov.uk/id/local-authority/12UE,Huntingdonshire District Council,07/09/2017,07/09/2017,215812,96346432, 765.24 ,RED FORGE LTD,CR405690,Recycling Collections,Vehicle Parts & Fittings,625,
http://statistics.data.gov.uk/id/local-authority/12UE,Huntingdonshire District Council,07/09/2017,07/09/2017,215812,INV17408," 1,785.54 ",RED FORGE LTD,CR405690,Domestic Waste Collection,Vehicle Parts & Fittings,625,
http://statistics.data.gov.uk/id/local-authority/12UE,Huntingdonshire District Council,14/09/2017,14/09/2017,216865,20672," 2,542.99 ",M WATSON CONSTRUCTION LTD,CR480595,Disabled Facilities Grants,Mandatory Grants,801,
http://statistics.data.gov.uk/id/local-authority/12UE,Huntingdonshire District Council,07/09/2017,07/09/2017,216497,424657," 2,532.80 ",STAFFLINE GROUP,CR416827,Domestic Waste Collection,Hired Staff,100,
http://statistics.data.gov.uk/id/local-authority/12UE,Huntingdonshire District Council,06/09/2017,06/09/2017,216549,S085066764," 2,524.00 ",STANNAH LTD Ref(20HU025),CR000759,Disabled Facilities Grants,Mandatory Grants,801,
http://statistics.data.gov.uk/id/local-authority/12UE,Huntingdonshire District Council,28/09/2017,28/09/2017,216890,IN0618255," 2,508.91 ",STAFFLINE GROUP,CR416827,Domestic Waste Collection,Hired Staff,100,
http://statistics.data.gov.uk/id/local-authority/12UE,Huntingdonshire District Council,11/09/2017,11/09/2017,216874,," 2,502.50 ",HAYS,CR423917,Transformation - Customers,Hired Staff,100,
http://statistics.data.gov.uk/id/local-authority/12UE,Huntingdonshire District Council,05/09/2017,07/09/2017,216524,90441725," 2,500.00 ",CAPITA RESOURCING LTD,CR030165,Imd Shared Service,Hired Staff,100,
http://statistics.data.gov.uk/id/local-authority/12UE,Huntingdonshire District Council,07/09/2017,07/09/2017,216505,," 2,454.75 ",STAFFLINE GROUP,CR416827,Recycling Collections,Hired Staff,100,
http://statistics.data.gov.uk/id/local-authority/12UE,Huntingdonshire District Council,20/09/2017,21/09/2017,217434,HBKA," 2,443.40 ",PEACOCK ENGINEERING,CR410043,Paxton Pits,Sitework,359,
http://statistics.data.gov.uk/id/local-authority/12UE,Huntingdonshire District Council,13/09/2017,14/09/2017,212359,4617, 225.00 ,NOVUS COMPLIANCE SERVICES LTD,CR423524,Huntingdon High Street Ccc,Sitework,359,
http://statistics.data.gov.uk/id/local-authority/12UE,Huntingdonshire District Council,13/09/2017,14/09/2017,212359,4617, 150.00 ,NOVUS COMPLIANCE SERVICES LTD,CR423524,Godmanchester Bridge Place,Sitework,359,
http://statistics.data.gov.uk/id/local-authority/12UE,Huntingdonshire District Council,13/09/2017,14/09/2017,212359,, 998.00 ,NOVUS COMPLIANCE SERVICES LTD,CR423524,Env Imps Management,Sitework,359,
http://statistics.data.gov.uk/id/local-authority/12UE,Huntingdonshire District Council,13/09/2017,14/09/2017,212359,BN290817, 286.00 ,NOVUS COMPLIANCE SERVICES LTD,CR423524,Hinchingbrooke Park Cafe,Building Mtce,303,
http://statistics.data.gov.uk/id/local-authority/12UE,Huntingdonshire District Council,13/09/2017,14/09/2017,212359,4615, 420.00 ,NOVUS COMPLIANCE SERVICES LTD,CR423524,Parks & Open Spaces,Building Mtce,303,
http://statistics.data.gov.uk/id/local-authority/12UE,Huntingdonshire District Council,13/09/2017,14/09/2017,212359,238503, 361.00 ,NOVUS COMPLIANCE SERVICES LTD,CR423524,Bus Station Pc - Huntingdon,Building Mtce,303,
http://statistics.data.gov.uk/id/local-authority/12UE,Huntingdonshire District Council,05/09/2017,07/09/2017,216582,," 2,439.38 ",HACT,CR455657,Concessionary Fares,Contribution (Paid Out),810,
http://statistics.data.gov.uk/id/local-authority/12UE,Huntingdonshire District Council,05/09/2017,07/09/2017,216521,LA454461," 2,392.32 ",STR GROUP,CR424704,Imd Shared Service,Hired Staff,100,
http://statistics.data.gov.uk/id/local-authority/12UE,Huntingdonshire District Council,07/09/2017,07/09/2017,216510,409999," 2,388.31 ",STAFFLINE GROUP,CR416827,Domestic Waste Collection,Hired Staff,100,
http://statistics.data.gov.uk/id/local-authority/12UE,Huntingdonshire District Council,28/09/2017,28/09/2017,217697,," 2,382.56 ",STAFFLINE GROUP,CR416827,Street Cleansing,Hired Staff,100,
http://statistics.data.gov.uk/id/local-authority/12UE,Huntingdonshire District Council,27/09/2017,27/09/2017,217788,82771715," 2,380.00 ",CORNERSTONE BARRISTERS,CR455436,Dm Appeals,Consultants,711,
http://statistics.data.gov.uk/id/local-authority/12UE,Huntingdonshire District Council,07/09/2017,07/09/2017,216699,," 2,367.36 ",QUADRANT SECURITY GROUP,CR027775,Cctv Shared Service Hosting,Equipment Maintenance,511,
http://statistics.data.gov.uk/id/local-authority/12UE,Huntingdonshire District Council,12/09/2017,25/09/2017,216929,3514891," 2,344.80 ",INSIGHT DIRECT UK LTD,CR000242,Scdc Recharge Invoices,Other I T Hardware,203,
http://statistics.data.gov.uk/id/local-authority/12UE,Huntingdonshire District Council,14/09/2017,14/09/2017,216867,532174," 2,328.00 ",BSG PROPERTY SERVICES LTD,CR089905,Disabled Facilities Grants,Mandatory Grants,801,
http://statistics.data.gov.uk/id/local-authority/12UE,Huntingdonshire District Council,28/09/2017,28/09/2017,217770,AC0214288," 2,296.14 ",ASHCO BUILDING & MAINTENANCE SERVICES LTD,CR422300,Disabled Facilities Grants,Mandatory Grants,801,
http://statistics.data.gov.uk/id/local-authority/12UE,Huntingdonshire District Council,07/09/2017,07/09/2017,216513,IN0621201," 2,285.23 ",STAFFLINE GROUP,CR416827,Domestic Waste Collection,Hired Staff,100,
http://statistics.data.gov.uk/id/local-authority/12UE,Huntingdonshire District Council,12/09/2017,13/09/2017,216853,82768278," 2,264.71 ",PERFORMING RIGHT SOCIETY,CR033495,Burgess Hall,Licences,730,
http://statistics.data.gov.uk/id/local-authority/12UE,Huntingdonshire District Council,21/09/2017,21/09/2017,217492,,-306.00 ,CENTRE THEATRE PLAYERS,CR006851,Burgess Hall,Commission,A06,
http://statistics.data.gov.uk/id/local-authority/12UE,Huntingdonshire District Council,21/09/2017,21/09/2017,217492,,-500.00 ,CENTRE THEATRE PLAYERS,CR006851,Burgess Hall,Room Hire,A21,
http://statistics.data.gov.uk/id/local-authority/12UE,Huntingdonshire District Council,21/09/2017,21/09/2017,217492,," 3,060.00 ",CENTRE THEATRE PLAYERS,CR006851,Site & Centre Management,Charity Collections,A85,
http://statistics.data.gov.uk/id/local-authority/12UE,Huntingdonshire District Council,04/09/2017,04/09/2017,216478,," 2,223.00 ",FREETHS  LLP,CR480787,Committee Management,Shredding,773,
http://statistics.data.gov.uk/id/local-authority/12UE,Huntingdonshire District Council,19/09/2017,21/09/2017,217366,9718," 2,125.00 ",CAMBRIDGE MARKET RESEARCH LIMITED,CR424861,Car Parks Operational Mgt,Equipment,500,
http://statistics.data.gov.uk/id/local-authority/12UE,Huntingdonshire District Council,29/09/2017,29/09/2017,218094,," 2,125.00 ",MAGENTA COACHING SOLUTIONS,CR480942,Hr & Payroll Services,Training,130,
http://statistics.data.gov.uk/id/local-authority/12UE,Huntingdonshire District Council,27/09/2017,28/09/2017,217751,," 2,111.20 ",NISBETS,CR412311,Burgess Bar,Equipment,500,
http://statistics.data.gov.uk/id/local-authority/12UE,Huntingdonshire District Council,28/09/2017,28/09/2017,217692,IN0621200," 2,099.26 ",STAFFLINE GROUP,CR416827,Domestic Waste Collection,Hired Staff,100,
http://statistics.data.gov.uk/id/local-authority/12UE,Huntingdonshire District Council,13/09/2017,13/09/2017,216990,519105," 2,068.22 ",E-ON ENERGY,CR416430,Swimming,Gas,421,
http://statistics.data.gov.uk/id/local-authority/12UE,Huntingdonshire District Council,14/09/2017,14/09/2017,217009,20678," 2,041.62 ",M WATSON CONSTRUCTION LTD,CR480595,Disabled Facilities Grants,Mandatory Grants,801,
http://statistics.data.gov.uk/id/local-authority/12UE,Huntingdonshire District Council,13/09/2017,22/09/2017,217008,3537526," 2,033.78 ",ALIGNED ASSESTS LTD,CR482341,Scdc Recharge Invoices,Software,206,
http://statistics.data.gov.uk/id/local-authority/12UE,Huntingdonshire District Council,05/09/2017,07/09/2017,216448,," 2,000.00 ",AGILE APPLICATIONS,CR424777,Imd Shared Service,Consultants,711,
http://statistics.data.gov.uk/id/local-authority/12UE,Huntingdonshire District Council,27/09/2017,28/09/2017,217741,381834," 1,980.00 ",REPLAY MAINTENANCE LTD,CR422074,Outdoor Sports,Grounds Mtce Contractors,351,
http://statistics.data.gov.uk/id/local-authority/12UE,Huntingdonshire District Council,13/09/2017,22/09/2017,217015,20681," 1,967.13 ",NORTHGATEPUBLIC SERVICES UK LTD,CR028925,Scdc Recharge Invoices,Software,206,
http://statistics.data.gov.uk/id/local-authority/12UE,Huntingdonshire District Council,04/09/2017,07/09/2017,216455,IN16PS17004575, 533.52 ,WHISTL UK LTD,CR424061,Electoral Registration,Postage,231,
http://statistics.data.gov.uk/id/local-authority/12UE,Huntingdonshire District Council,04/09/2017,07/09/2017,216455,9054994094, 788.80 ,WHISTL UK LTD,CR424061,Post Handling,Postage,231,
http://statistics.data.gov.uk/id/local-authority/12UE,Huntingdonshire District Council,04/09/2017,07/09/2017,216455,, 625.77 ,WHISTL UK LTD,CR424061,Closedcounciltax Mgmt-Use Hb85,Postage,231,
http://statistics.data.gov.uk/id/local-authority/12UE,Huntingdonshire District Council,28/09/2017,28/09/2017,217682,4615," 1,946.25 ",TERBERG MATEC UK LTD,CR402183,Recycling Collections,Vehicle Maintenance External,619,
http://statistics.data.gov.uk/id/local-authority/12UE,Huntingdonshire District Council,13/09/2017,22/09/2017,217025,, 5.75 ,VIRGIN MEDIA BUSINESS,CR033120,Member Allowances & Support,I T Line Rental,248,
http://statistics.data.gov.uk/id/local-authority/12UE,Huntingdonshire District Council,13/09/2017,22/09/2017,217025,INV13420," 1,121.34 ",VIRGIN MEDIA BUSINESS,CR033120,Imd Shared Service,Telephone &Mobile Phonecharges,240,
http://statistics.data.gov.uk/id/local-authority/12UE,Huntingdonshire District Council,13/09/2017,22/09/2017,217025,7.42879E+11, 796.37 ,VIRGIN MEDIA BUSINESS,CR033120,Imd Shared Service,I T Line Rental,248,
http://statistics.data.gov.uk/id/local-authority/12UE,Huntingdonshire District Council,13/09/2017,22/09/2017,217025,4578973, 1.58 ,VIRGIN MEDIA BUSINESS,CR033120,Site & Centre Management,Telephone &Mobile Phonecharges,240,
http://statistics.data.gov.uk/id/local-authority/12UE,Huntingdonshire District Council,13/09/2017,22/09/2017,217025,972284095, 8.00 ,VIRGIN MEDIA BUSINESS,CR033120,Site & Centre Management,I T Line Rental,248,
http://statistics.data.gov.uk/id/local-authority/12UE,Huntingdonshire District Council,14/09/2017,14/09/2017,216891,," 1,908.08 ",STAFFLINE GROUP,CR416827,Street Cleansing,Hired Staff,100,
http://statistics.data.gov.uk/id/local-authority/12UE,Huntingdonshire District Council,19/09/2017,21/09/2017,217380,S172651," 1,900.00 ",CHIPSIDE,CR479533,Car Parks Operational Mgt,Software,206,
http://statistics.data.gov.uk/id/local-authority/12UE,Huntingdonshire District Council,27/09/2017,28/09/2017,217794,SINV00115590," 1,900.00 ",IDOX,CR481134,Imd Shared Service,Software,206,
http://statistics.data.gov.uk/id/local-authority/12UE,Huntingdonshire District Council,27/09/2017,27/09/2017,217824,562658," 1,900.00 ",ION CONSULTING SERVICES LTD,CR424942,Commercial Investment Strategy,Consultants,711,
http://statistics.data.gov.uk/id/local-authority/12UE,Huntingdonshire District Council,05/09/2017,07/09/2017,216442,923469-83B," 1,840.00 ",INSIGHT DIRECT UK LTD,CR000242,Ccity Recharge Invoices,Other I T Hardware,203,
http://statistics.data.gov.uk/id/local-authority/12UE,Huntingdonshire District Council,25/09/2017,28/09/2017,217879,722023," 1,832.48 ",MAGENTA HR CONSULTING LTD,CR424853,Ramsey Neighbourhood,Consultants,711,
http://statistics.data.gov.uk/id/local-authority/12UE,Huntingdonshire District Council,13/09/2017,13/09/2017,217113,9848," 1,805.68 ",HAVEN POWER LTD,CR455940,Site & Centre Management,Electricity,420,
http://statistics.data.gov.uk/id/local-authority/12UE,Huntingdonshire District Council,27/09/2017,27/09/2017,217789,7803/17/502/PA," 1,800.00 ",CORNERSTONE BARRISTERS,CR455436,Dm Appeals,Consultants,711,
http://statistics.data.gov.uk/id/local-authority/12UE,Huntingdonshire District Council,13/09/2017,13/09/2017,615311,2017/18 37," 1,800.00 ",LITTLE MIRACLES RAMSEY,CR424906,Voluntary Sector Grants,Grants (Paid Out),800,
http://statistics.data.gov.uk/id/local-authority/12UE,Huntingdonshire District Council,07/09/2017,07/09/2017,216514,IN0622771," 1,790.74 ",STAFFLINE GROUP,CR416827,Domestic Waste Collection,Hired Staff,100,
http://statistics.data.gov.uk/id/local-authority/12UE,Huntingdonshire District Council,07/09/2017,07/09/2017,210291,INV17408," 1,782.00 ",DTS SOLUTIONS (UK) LTD,CR001981,Domestic Waste Collection,Vehicle Parts & Fittings,625,
http://statistics.data.gov.uk/id/local-authority/12UE,Huntingdonshire District Council,21/09/2017,22/09/2017,217462,33492," 1,751.50 ",PCF,CR411949,Imd Shared Service,Software,206,
http://statistics.data.gov.uk/id/local-authority/12UE,Huntingdonshire District Council,21/09/2017,25/09/2017,217393,4541267," 1,748.97 ",BIST,CR422733,Transformation - Worksmart,Software,206,
http://statistics.data.gov.uk/id/local-authority/12UE,Huntingdonshire District Council,20/09/2017,20/09/2017,216878,IN16PS17004743, 332.71 ,WHISTL UK LTD,CR424061,Electoral Registration,Postage,231,
http://statistics.data.gov.uk/id/local-authority/12UE,Huntingdonshire District Council,20/09/2017,20/09/2017,216878,IN16PS17004575, 798.06 ,WHISTL UK LTD,CR424061,Post Handling,Postage,231,
http://statistics.data.gov.uk/id/local-authority/12UE,Huntingdonshire District Council,20/09/2017,20/09/2017,216878,, 193.77 ,WHISTL UK LTD,CR424061,Benefits Management,Postage,231,
http://statistics.data.gov.uk/id/local-authority/12UE,Huntingdonshire District Council,20/09/2017,20/09/2017,216878,, 424.22 ,WHISTL UK LTD,CR424061,Closedcounciltax Mgmt-Use Hb85,Postage,231,
http://statistics.data.gov.uk/id/local-authority/12UE,Huntingdonshire District Council,13/09/2017,14/09/2017,217068,," 1,740.00 ",BIDWELLS LLP,CR416529,Development Management,Consultants,711,
http://statistics.data.gov.uk/id/local-authority/12UE,Huntingdonshire District Council,27/09/2017,27/09/2017,217775,9055045372," 1,737.95 ",ROYAL MAIL,CR027083,Parliamentary  Elections,Postage,231,
http://statistics.data.gov.uk/id/local-authority/12UE,Huntingdonshire District Council,07/09/2017,07/09/2017,216605,18424, 35.00 ,ROGER WILSON ELECTRONICS,CR028041,Site & Centre Management,Building Mtce,303,
http://statistics.data.gov.uk/id/local-authority/12UE,Huntingdonshire District Council,07/09/2017,07/09/2017,216605,4205, 35.00 ,ROGER WILSON ELECTRONICS,CR028041,Site & Centre Management,Building Mtce,303,
http://statistics.data.gov.uk/id/local-authority/12UE,Huntingdonshire District Council,07/09/2017,07/09/2017,216605,63020," 1,647.00 ",ROGER WILSON ELECTRONICS,CR028041,Site & Centre Management,Equipment,500,
http://statistics.data.gov.uk/id/local-authority/12UE,Huntingdonshire District Council,21/09/2017,22/09/2017,217454,126003," 1,704.50 ",L A INTERNATIONAL COMPUTER CONSULTANTS LTD,CR424731,Imd Shared Service,Hired Staff,100,
http://statistics.data.gov.uk/id/local-authority/12UE,Huntingdonshire District Council,21/09/2017,22/09/2017,217455,LA453352," 1,704.50 ",L A INTERNATIONAL COMPUTER CONSULTANTS LTD,CR424731,Imd Shared Service,Hired Staff,100,
http://statistics.data.gov.uk/id/local-authority/12UE,Huntingdonshire District Council,27/09/2017,28/09/2017,217820,126070," 1,704.50 ",L A INTERNATIONAL COMPUTER CONSULTANTS LTD,CR424731,Imd Shared Service,Hired Staff,100,
http://statistics.data.gov.uk/id/local-authority/12UE,Huntingdonshire District Council,07/09/2017,07/09/2017,216516,," 1,689.21 ",STAFFLINE GROUP,CR416827,Street Cleansing,Hired Staff,100,
http://statistics.data.gov.uk/id/local-authority/12UE,Huntingdonshire District Council,14/09/2017,14/09/2017,216871,16/12/M092," 1,681.60 ",ASSET FINELINE,CR404114,Disabled Facilities Grants,Mandatory Grants,801,
http://statistics.data.gov.uk/id/local-authority/12UE,Huntingdonshire District Council,13/09/2017,13/09/2017,217116,9855," 1,676.34 ",HAVEN POWER LTD,CR455940,Site & Centre Management,Electricity,420,
http://statistics.data.gov.uk/id/local-authority/12UE,Huntingdonshire District Council,12/09/2017,13/09/2017,216712,," 1,662.50 ",FLEXEREFRIGERATION LTD,CR422336,Site & Centre Management,Building Mtce,303,
http://statistics.data.gov.uk/id/local-authority/12UE,Huntingdonshire District Council,19/09/2017,21/09/2017,217382,S172650," 1,649.47 ",CHIPSIDE,CR479533,Car Parks Operational Mgt,Software,206,
http://statistics.data.gov.uk/id/local-authority/12UE,Huntingdonshire District Council,20/09/2017,20/09/2017,217057,IN16PS17004850, 316.41 ,WHISTL UK LTD,CR424061,Electoral Registration,Postage,231,
http://statistics.data.gov.uk/id/local-authority/12UE,Huntingdonshire District Council,20/09/2017,20/09/2017,217057,IN16PS17004743," 1,076.66 ",WHISTL UK LTD,CR424061,Post Handling,Postage,231,
http://statistics.data.gov.uk/id/local-authority/12UE,Huntingdonshire District Council,20/09/2017,20/09/2017,217057,, 249.72 ,WHISTL UK LTD,CR424061,Closedcounciltax Mgmt-Use Hb85,Postage,231,
http://statistics.data.gov.uk/id/local-authority/12UE,Huntingdonshire District Council,21/09/2017,21/09/2017,217498,20745," 1,632.00 ",M WATSON CONSTRUCTION LTD,CR480595,Disabled Facilities Grants,Mandatory Grants,801,
http://statistics.data.gov.uk/id/local-authority/12UE,Huntingdonshire District Council,26/09/2017,28/09/2017,216896,276745I," 1,606.16 ",DENNIS EAGLE LTD,CR000200,Domestic Waste Collection,Vehicle Parts & Fittings,625,
http://statistics.data.gov.uk/id/local-authority/12UE,Huntingdonshire District Council,28/09/2017,28/09/2017,217695,IN0624354," 1,599.65 ",STAFFLINE GROUP,CR416827,Domestic Waste Collection,Hired Staff,100,
http://statistics.data.gov.uk/id/local-authority/12UE,Huntingdonshire District Council,19/09/2017,19/09/2017,216856,," 1,569.00 ",APSE,CR479836,Head Of Operations,Corporate Subscriptions,754,
http://statistics.data.gov.uk/id/local-authority/12UE,Huntingdonshire District Council,14/09/2017,14/09/2017,217143,17678," 1,546.41 ",KING STREET HOUSING SOCIETY,CR409301,Homelessness,Management Charge,733,
http://statistics.data.gov.uk/id/local-authority/12UE,Huntingdonshire District Council,21/09/2017,21/09/2017,217424,20746," 1,540.25 ",M WATSON CONSTRUCTION LTD,CR480595,Disabled Facilities Grants,Mandatory Grants,801,
http://statistics.data.gov.uk/id/local-authority/12UE,Huntingdonshire District Council,21/09/2017,21/09/2017,217460,," 1,500.00 ",MACDONALD & COMPANY FREELANCE LTD,CR424684,Property Development And Mgt,Hired Staff,100,
http://statistics.data.gov.uk/id/local-authority/12UE,Huntingdonshire District Council,28/09/2017,28/09/2017,217882,PERSONAL DATA REDACTED," 1,500.00 ",LUMINUS HOMES,CR401276,Homelessness,Incentive Payment,816,
http://statistics.data.gov.uk/id/local-authority/12UE,Huntingdonshire District Council,14/09/2017,14/09/2017,217154,10526753," 1,481.58 ",CHUBB FIRE AND SECURITY LTD,CR478924,Site & Centre Management,Fire & Security,450,
http://statistics.data.gov.uk/id/local-authority/12UE,Huntingdonshire District Council,05/09/2017,07/09/2017,216528,ELECTIONS STAFF," 1,480.00 ",PREMIER IT RECRUITMENT LTD,CR454029,Imd Shared Service,Hired Staff,100,
http://statistics.data.gov.uk/id/local-authority/12UE,Huntingdonshire District Council,13/09/2017,22/09/2017,216999,," 1,480.00 ",PREMIER IT RECRUITMENT LTD,CR454029,Imd Shared Service,Hired Staff,100,
http://statistics.data.gov.uk/id/local-authority/12UE,Huntingdonshire District Council,21/09/2017,21/09/2017,216920,102024," 1,477.18 ",SWALEC,CR407130,Swimming,Electricity,420,
http://statistics.data.gov.uk/id/local-authority/12UE,Huntingdonshire District Council,07/09/2017,07/09/2017,216517,," 1,450.61 ",STAFFLINE GROUP,CR416827,Street Cleansing,Hired Staff,100,
http://statistics.data.gov.uk/id/local-authority/12UE,Huntingdonshire District Council,14/09/2017,14/09/2017,216520,," 1,441.23 ",STAFFLINE GROUP,CR416827,Street Cleansing,Hired Staff,100,
http://statistics.data.gov.uk/id/local-authority/12UE,Huntingdonshire District Council,12/09/2017,13/09/2017,216955,591, 717.50 ,FOCUS CONSULTANTS 2010 LLP,CR424869,Ol St Neots Pool Building,Consultants,711,
http://statistics.data.gov.uk/id/local-authority/12UE,Huntingdonshire District Council,12/09/2017,13/09/2017,216955,591, 717.50 ,FOCUS CONSULTANTS 2010 LLP,CR424869,Ol St Ives Burgess Hall,Consultants,711,
http://statistics.data.gov.uk/id/local-authority/12UE,Huntingdonshire District Council,27/09/2017,28/09/2017,217795,134821," 1,425.00 ",IDOX,CR481134,Imd Shared Service,Software,206,
http://statistics.data.gov.uk/id/local-authority/12UE,Huntingdonshire District Council,14/09/2017,14/09/2017,217145,311010834," 1,415.00 ",LATTA HIRE LIMITED,CR424915,Site & Centre Management,Building Mtce,303,
http://statistics.data.gov.uk/id/local-authority/12UE,Huntingdonshire District Council,07/09/2017,07/09/2017,216692,," 1,410.00 ",CFL ESTATE SERVICES,CR455208,Property Development And Mgt,Hired Staff,100,
http://statistics.data.gov.uk/id/local-authority/12UE,Huntingdonshire District Council,19/09/2017,20/09/2017,216627,17/23," 1,400.00 ",JBA CONSTRUCTION & MANAGEMENT SERVICES,CR416716,Ol Huntingdon Expansion,Consultants,711,
http://statistics.data.gov.uk/id/local-authority/12UE,Huntingdonshire District Council,04/09/2017,07/09/2017,216469,9055053817," 1,342.42 ",ROYAL MAIL,CR027083,Electoral Registration,Postage,231,
http://statistics.data.gov.uk/id/local-authority/12UE,Huntingdonshire District Council,04/09/2017,07/09/2017,216469,9054999753, 36.18 ,ROYAL MAIL,CR027083,Post Handling,Postage,231,
http://statistics.data.gov.uk/id/local-authority/12UE,Huntingdonshire District Council,27/09/2017,28/09/2017,217787,9055167796, 712.88 ,ROYAL MAIL,CR027083,Electoral Registration,Postage,231,
http://statistics.data.gov.uk/id/local-authority/12UE,Huntingdonshire District Council,27/09/2017,28/09/2017,217787,, 664.24 ,ROYAL MAIL,CR027083,Post Handling,Stationery,225,
http://statistics.data.gov.uk/id/local-authority/12UE,Huntingdonshire District Council,19/09/2017,21/09/2017,217370,," 1,371.03 ",ANGLIAN WATER,CR000071,Swimming,Water & Sewerage,432,
http://statistics.data.gov.uk/id/local-authority/12UE,Huntingdonshire District Council,13/09/2017,22/09/2017,217003,," 1,363.60 ",L A INTERNATIONAL COMPUTER CONSULTANTS LTD,CR424731,Imd Shared Service,Hired Staff,100,
http://statistics.data.gov.uk/id/local-authority/12UE,Huntingdonshire District Council,07/09/2017,07/09/2017,216518,," 1,357.83 ",STAFFLINE GROUP,CR416827,Street Cleansing,Hired Staff,100,
http://statistics.data.gov.uk/id/local-authority/12UE,Huntingdonshire District Council,14/09/2017,14/09/2017,217176,," 1,350.00 ",MACDONALD & COMPANY FREELANCE LTD,CR424684,Property Development And Mgt,Hired Staff,100,
http://statistics.data.gov.uk/id/local-authority/12UE,Huntingdonshire District Council,14/09/2017,14/09/2017,217177,," 1,350.00 ",MACDONALD & COMPANY FREELANCE LTD,CR424684,Property Development And Mgt,Hired Staff,100,
http://statistics.data.gov.uk/id/local-authority/12UE,Huntingdonshire District Council,19/09/2017,20/09/2017,217340,7304," 1,340.00 ",A & K FENCING CONTRACTORS LTD,CR178977,St Ivo Lc-Outdoor Gen Mtce(Cs),Building Mtce,303,
http://statistics.data.gov.uk/id/local-authority/12UE,Huntingdonshire District Council,12/09/2017,25/09/2017,216935,930635-043B," 1,304.00 ",INSIGHT DIRECT UK LTD,CR000242,Scdc Recharge Invoices,Other I T Hardware,203,
http://statistics.data.gov.uk/id/local-authority/12UE,Huntingdonshire District Council,27/09/2017,27/09/2017,217780,9054750158," 1,290.83 ",ROYAL MAIL,CR027083,Parliamentary  Elections,Postage,231,
http://statistics.data.gov.uk/id/local-authority/12UE,Huntingdonshire District Council,13/09/2017,13/09/2017,216991,9055101094," 1,272.37 ",E-ON ENERGY,CR416430,Swimming,Gas,421,
http://statistics.data.gov.uk/id/local-authority/12UE,Huntingdonshire District Council,14/09/2017,14/09/2017,216994,39171," 1,265.13 ",TRINITY ENGINEERING & COMPONENT SUPPLIES LTD,CR455479,Vehicle Maintenance,Materials,550,
http://statistics.data.gov.uk/id/local-authority/12UE,Huntingdonshire District Council,04/09/2017,07/09/2017,216237,276829I," 1,262.58 ",DENNIS EAGLE LTD,CR000200,Domestic Waste Collection,Vehicle Parts & Fittings,625,
http://statistics.data.gov.uk/id/local-authority/12UE,Huntingdonshire District Council,27/09/2017,28/09/2017,217874,," 1,250.00 ",FOCUS CONSULTANTS 2010 LLP,CR424641,Customer Service Centres,Building Construction,300,
http://statistics.data.gov.uk/id/local-authority/12UE,Huntingdonshire District Council,07/09/2017,07/09/2017,615134,2017/18 -19," 1,250.00 ",ST IVES TOWN CRICKET CLUB,CR424884,Voluntary Sector Grants,Grants (Paid Out),800,
http://statistics.data.gov.uk/id/local-authority/12UE,Huntingdonshire District Council,06/09/2017,07/09/2017,216575,INV-5852," 1,198.54 ",LACONS,CR422174,Hospitality,Bar Provisions,558,
http://statistics.data.gov.uk/id/local-authority/12UE,Huntingdonshire District Council,06/09/2017,07/09/2017,216575,381834, 32.00 ,LACONS,CR422174,Hospitality,Gas Cylinders (Incl. Bars),567,
http://statistics.data.gov.uk/id/local-authority/12UE,Huntingdonshire District Council,26/09/2017,28/09/2017,217377,308629," 1,226.62 ",DENNIS EAGLE LTD,CR000200,Domestic Waste Collection,Vehicle Parts & Fittings,625,
http://statistics.data.gov.uk/id/local-authority/12UE,Huntingdonshire District Council,11/09/2017,14/09/2017,216581,343869/380575/3," 1,212.00 ",APSE,CR479836,Head Of Community,Corporate Subscriptions,754,
http://statistics.data.gov.uk/id/local-authority/12UE,Huntingdonshire District Council,19/09/2017,19/09/2017,216855,," 1,212.00 ",APSE,CR479836,Head Of Operations,Corporate Subscriptions,754,
http://statistics.data.gov.uk/id/local-authority/12UE,Huntingdonshire District Council,14/09/2017,14/09/2017,217175,," 1,200.00 ",MACDONALD & COMPANY FREELANCE LTD,CR424684,Property Development And Mgt,Hired Staff,100,
http://statistics.data.gov.uk/id/local-authority/12UE,Huntingdonshire District Council,27/09/2017,28/09/2017,217448,9797," 1,200.00 ",LATTENBURY SERVICES,CR406847,Huntingdon Multi-Storey,Plant & Equipment Maintenance,380,
http://statistics.data.gov.uk/id/local-authority/12UE,Huntingdonshire District Council,21/09/2017,21/09/2017,217461,," 1,200.00 ",MACDONALD & COMPANY FREELANCE LTD,CR424684,Property Development And Mgt,Hired Staff,100,
http://statistics.data.gov.uk/id/local-authority/12UE,Huntingdonshire District Council,04/09/2017,07/09/2017,216093,9054994094, 326.80 ,ROYAL MAIL,CR027083,Electoral Registration,Postage,231,
http://statistics.data.gov.uk/id/local-authority/12UE,Huntingdonshire District Council,04/09/2017,07/09/2017,216093,, 856.48 ,ROYAL MAIL,CR027083,Post Handling,Postage,231,
http://statistics.data.gov.uk/id/local-authority/12UE,Huntingdonshire District Council,12/09/2017,13/09/2017,216862,18008," 1,138.22 ",ANGLIAN WATER,CR000071,Site & Centre Management,Water & Sewerage,432,
http://statistics.data.gov.uk/id/local-authority/12UE,Huntingdonshire District Council,07/09/2017,07/09/2017,216691,28674," 1,130.00 ",BARKER STOREY MATTHEWS,CR400788,Industrial Properties,Consultants,711,
http://statistics.data.gov.uk/id/local-authority/12UE,Huntingdonshire District Council,21/09/2017,21/09/2017,217485,HDC071," 1,125.00 ",HAYS,CR423917,Property Development And Mgt,Hired Staff,100,
http://statistics.data.gov.uk/id/local-authority/12UE,Huntingdonshire District Council,06/09/2017,06/09/2017,216593,6154," 1,123.00 ",GALLAGHER BASSET INTERNATIONAL LTD,CR423576,Grounds Maintenance,Insurance Excess,797,
http://statistics.data.gov.uk/id/local-authority/12UE,Huntingdonshire District Council,20/09/2017,20/09/2017,217125,9055143110," 1,102.25 ",ROYAL MAIL,CR027083,Electoral Registration,Postage,231,
http://statistics.data.gov.uk/id/local-authority/12UE,Huntingdonshire District Council,20/09/2017,20/09/2017,217125,9055081544, 19.34 ,ROYAL MAIL,CR027083,Post Handling,Postage,231,
http://statistics.data.gov.uk/id/local-authority/12UE,Huntingdonshire District Council,20/09/2017,21/09/2017,217441,," 1,119.09 ",M & N VEHICLE SERVICES,CR480661,Recycling Collections,Vehicle Mot,622,
http://statistics.data.gov.uk/id/local-authority/12UE,Huntingdonshire District Council,14/09/2017,14/09/2017,216880,20679," 1,117.08 ",M WATSON CONSTRUCTION LTD,CR480595,Disabled Facilities Grants,Mandatory Grants,801,
http://statistics.data.gov.uk/id/local-authority/12UE,Huntingdonshire District Council,27/09/2017,27/09/2017,217781,9054633521," 1,115.42 ",ROYAL MAIL,CR027083,Parliamentary  Elections,Postage,231,
http://statistics.data.gov.uk/id/local-authority/12UE,Huntingdonshire District Council,18/09/2017,18/09/2017,217318,, 292.95 ,JADE SECURITY SERVICES LTD,CR422256,Corporate Finance (Non Cm),Cash Collection,702,
http://statistics.data.gov.uk/id/local-authority/12UE,Huntingdonshire District Council,18/09/2017,18/09/2017,217318,SI486704-1, 334.80 ,JADE SECURITY SERVICES LTD,CR422256,Site & Centre Management,Cash Collection,702,
http://statistics.data.gov.uk/id/local-authority/12UE,Huntingdonshire District Council,18/09/2017,18/09/2017,217318,42359, 209.25 ,JADE SECURITY SERVICES LTD,CR422256,Site & Centre Management,Cash Collection,702,
http://statistics.data.gov.uk/id/local-authority/12UE,Huntingdonshire District Council,18/09/2017,18/09/2017,217318,9055101094, 139.50 ,JADE SECURITY SERVICES LTD,CR422256,Site & Centre Management,Cash Collection,702,
http://statistics.data.gov.uk/id/local-authority/12UE,Huntingdonshire District Council,18/09/2017,18/09/2017,217318,7264, 55.80 ,JADE SECURITY SERVICES LTD,CR422256,Site & Centre Management,Cash Collection,702,
http://statistics.data.gov.uk/id/local-authority/12UE,Huntingdonshire District Council,18/09/2017,18/09/2017,217318,226631, 41.85 ,JADE SECURITY SERVICES LTD,CR422256,Site & Centre Management,Cash Collection,702,
http://statistics.data.gov.uk/id/local-authority/12UE,Huntingdonshire District Council,18/09/2017,18/09/2017,217318,56411, 27.90 ,JADE SECURITY SERVICES LTD,CR422256,Hinchingbrooke Park Cafe,Cash Collection,702,
http://statistics.data.gov.uk/id/local-authority/12UE,Huntingdonshire District Council,05/09/2017,07/09/2017,216526,LA452755," 1,100.00 ",IT TALENT SOLUTIONS LTD,CR482676,Imd Shared Service,Hired Staff,100,
http://statistics.data.gov.uk/id/local-authority/12UE,Huntingdonshire District Council,12/09/2017,13/09/2017,216960,590, 550.00 ,FOCUS CONSULTANTS 2010 LLP,CR424869,Ol St Neots Pool Building,Consultants,711,
http://statistics.data.gov.uk/id/local-authority/12UE,Huntingdonshire District Council,12/09/2017,13/09/2017,216960,590, 550.00 ,FOCUS CONSULTANTS 2010 LLP,CR424869,Ol St Ives Burgess Hall,Consultants,711,
http://statistics.data.gov.uk/id/local-authority/12UE,Huntingdonshire District Council,21/09/2017,25/09/2017,217487,INV-0417," 1,100.00 ",EDRM SYSTEMS LTD,CR416278,Imd Shared Service,I C T Services,731,
http://statistics.data.gov.uk/id/local-authority/12UE,Huntingdonshire District Council,27/09/2017,28/09/2017,217875,8058899925," 1,100.00 ",FOCUS CONSULTANTS 2010 LLP,CR424641,Customer Service Centres,Building Construction,300,
http://statistics.data.gov.uk/id/local-authority/12UE,Huntingdonshire District Council,25/09/2017,25/09/2017,217712,," 1,058.55 ",MORGAN HUNT PUBLIC UK LTD,CR415693,Benefits Management,Hired Staff,100,
http://statistics.data.gov.uk/id/local-authority/12UE,Huntingdonshire District Council,06/09/2017,06/09/2017,216590,," 1,055.70 ",ZURICH MUNICIPAL,CR477397,Insurance Engineering,Ins (Service Related),260,
http://statistics.data.gov.uk/id/local-authority/12UE,Huntingdonshire District Council,06/09/2017,06/09/2017,216591,," 1,055.70 ",ZURICH MUNICIPAL,CR477397,Insurance Engineering,Ins (Service Related),260,
http://statistics.data.gov.uk/id/local-authority/12UE,Huntingdonshire District Council,21/09/2017,25/09/2017,217389,3517854," 1,052.00 ",STORM TECHNOLOGIES,CR480909,Imd Shared Service,Other I T Hardware,203,
http://statistics.data.gov.uk/id/local-authority/12UE,Huntingdonshire District Council,18/09/2017,21/09/2017,217317,1223947," 1,024.00 ",MOGO UK,CR410378,Ph & Hc Vechicles,Licence Plates,564,
http://statistics.data.gov.uk/id/local-authority/12UE,Huntingdonshire District Council,18/09/2017,21/09/2017,217317,, 19.90 ,MOGO UK,CR410378,Ph & Hc Vechicles,Postage,231,
http://statistics.data.gov.uk/id/local-authority/12UE,Huntingdonshire District Council,21/09/2017,22/09/2017,217456,2017366," 1,038.46 ",TWOFOLD CONSULTING,CR453929,Hdc Recharge Invoices,Equipment Maintenance,511,
http://statistics.data.gov.uk/id/local-authority/12UE,Huntingdonshire District Council,20/09/2017,20/09/2017,216879,9055081544, 477.72 ,ROYAL MAIL,CR027083,Electoral Registration,Postage,231,
http://statistics.data.gov.uk/id/local-authority/12UE,Huntingdonshire District Council,20/09/2017,20/09/2017,216879,9055053817, 552.95 ,ROYAL MAIL,CR027083,Post Handling,Postage,231,
http://statistics.data.gov.uk/id/local-authority/12UE,Huntingdonshire District Council,14/09/2017,14/09/2017,217155,," 1,026.00 ",COUNTRY LEISURE FIBREGLASS LTD,CR423162,Swimming,Equipment Maintenance,511,
http://statistics.data.gov.uk/id/local-authority/12UE,Huntingdonshire District Council,19/09/2017,21/09/2017,216907,," 1,018.31 ",BEEBYS LIMITED,CR415822,Huntingdon Bus Station,Building Cleaning,440,
http://statistics.data.gov.uk/id/local-authority/12UE,Huntingdonshire District Council,05/09/2017,07/09/2017,216534,," 1,008.00 ",THE INFORMATION LAB,CR423551,Hdc Recharge Invoices,Software,206,
http://statistics.data.gov.uk/id/local-authority/12UE,Huntingdonshire District Council,21/09/2017,22/09/2017,217465,LA453533," 1,005.00 ",PCF,CR411949,Imd Shared Service,Hired Staff,100,
http://statistics.data.gov.uk/id/local-authority/12UE,Huntingdonshire District Council,12/09/2017,13/09/2017,216918,18015," 1,004.62 ",ANGLIAN WATER,CR000071,Site & Centre Management,Water & Sewerage,432,
http://statistics.data.gov.uk/id/local-authority/12UE,Huntingdonshire District Council,13/09/2017,14/09/2017,217070,309983, 994.62 ,M & N VEHICLE SERVICES,CR480661,Domestic Waste Collection,Vehicle Parts & Fittings,625,
http://statistics.data.gov.uk/id/local-authority/12UE,Huntingdonshire District Council,21/09/2017,22/09/2017,217458,5096, 984.33 ,TWOFOLD CONSULTING,CR453929,Hdc Recharge Invoices,Equipment Maintenance,511,
http://statistics.data.gov.uk/id/local-authority/12UE,Huntingdonshire District Council,28/09/2017,28/09/2017,217711,, 980.00 ,SMI GROUP,CR423139,Domestic Waste Collection,Protective Clothing & Uniforms,163,
http://statistics.data.gov.uk/id/local-authority/12UE,Huntingdonshire District Council,21/09/2017,21/09/2017,217054,972153450, 976.50 ,SHB HIRE LTD,CR416566,Street Cleansing,Vehicle Hire,607,
http://statistics.data.gov.uk/id/local-authority/12UE,Huntingdonshire District Council,21/09/2017,21/09/2017,217056,972275941, 976.50 ,SHB HIRE LTD,CR416566,Domestic Waste Collection,Vehicle Hire,607,
http://statistics.data.gov.uk/id/local-authority/12UE,Huntingdonshire District Council,27/09/2017,28/09/2017,217827,17845, 975.00 ,KOM,CR424784,Leisure Centre Corporate Mngmt,Advertising/Promoting Services,255,
http://statistics.data.gov.uk/id/local-authority/12UE,Huntingdonshire District Council,04/09/2017,07/09/2017,216626,39815, 965.00 ,C-WAY DRIVER TRAINING,CR423428,Street Cleansing,Vehicle Hire,607,
http://statistics.data.gov.uk/id/local-authority/12UE,Huntingdonshire District Council,04/09/2017,07/09/2017,216635,972153450, 965.00 ,C-WAY DRIVER TRAINING,CR423428,Street Cleansing,Vehicle Hire,607,
http://statistics.data.gov.uk/id/local-authority/12UE,Huntingdonshire District Council,13/09/2017,14/09/2017,217128,HCP001, 960.00 ,R N J FABRICATIONS LTD,CR424916,Hinchingbrooke Park Management,Materials,550,
http://statistics.data.gov.uk/id/local-authority/12UE,Huntingdonshire District Council,26/09/2017,28/09/2017,217378,6682, 320.00 ,D & H SIGN & DISPLAY SERVICES,CR030353,Car Parks Operational Mgt,Vehicle Parts & Fittings,625,
http://statistics.data.gov.uk/id/local-authority/12UE,Huntingdonshire District Council,26/09/2017,28/09/2017,217378,6682, 320.00 ,D & H SIGN & DISPLAY SERVICES,CR030353,Car Parks Operational Mgt,Vehicle Parts & Fittings,625,
http://statistics.data.gov.uk/id/local-authority/12UE,Huntingdonshire District Council,26/09/2017,28/09/2017,217378,PRECEPT2017/18, 320.00 ,D & H SIGN & DISPLAY SERVICES,CR030353,Trade Refuse,Vehicle Accident Damage,623,
http://statistics.data.gov.uk/id/local-authority/12UE,Huntingdonshire District Council,19/09/2017,20/09/2017,217336,2066667, 940.00 ,BIGPRINTING,CR416383,Leisure Centre Corporate Mngmt,Advertising/Promoting Services,255,
http://statistics.data.gov.uk/id/local-authority/12UE,Huntingdonshire District Council,04/09/2017,04/09/2017,216480,, 936.10 ,MORGAN HUNT PUBLIC UK LTD,CR415693,Benefits Management,Hired Staff,100,
http://statistics.data.gov.uk/id/local-authority/12UE,Huntingdonshire District Council,06/09/2017,06/09/2017,216665,, 931.80 ,MORGAN HUNT PUBLIC UK LTD,CR415693,Benefits Management,Hired Staff,100,
http://statistics.data.gov.uk/id/local-authority/12UE,Huntingdonshire District Council,21/09/2017,22/09/2017,217453,126020, 930.00 ,L A INTERNATIONAL COMPUTER CONSULTANTS LTD,CR424731,Imd Shared Service,Hired Staff,100,
http://statistics.data.gov.uk/id/local-authority/12UE,Huntingdonshire District Council,12/09/2017,13/09/2017,216863,18015, 920.97 ,ANGLIAN WATER,CR000071,Site & Centre Management,Water & Sewerage,432,
http://statistics.data.gov.uk/id/local-authority/12UE,Huntingdonshire District Council,05/09/2017,07/09/2017,216444,923469-83B, 920.00 ,INSIGHT DIRECT UK LTD,CR000242,Ccity Recharge Invoices,Other I T Hardware,203,
http://statistics.data.gov.uk/id/local-authority/12UE,Huntingdonshire District Council,01/09/2017,01/09/2017,216436,, 916.42 ,NEWLYN PLC,CR409114,Closedcounciltax Mgmt-Use Hb85,Bailiffs,703,
http://statistics.data.gov.uk/id/local-authority/12UE,Huntingdonshire District Council,30/09/2017,02/10/2017,218097,924466, 910.00 ,G&G MOBILITY SERVICES LTD,CR424929,Hinchingbrooke Park Management,Equipment Maintenance,511,
http://statistics.data.gov.uk/id/local-authority/12UE,Huntingdonshire District Council,13/09/2017,14/09/2017,212330,COUNTRYSIDE, 402.00 ,NOVUS COMPLIANCE SERVICES LTD,CR423524,Parks & Open Spaces,Building Mtce,303,
http://statistics.data.gov.uk/id/local-authority/12UE,Huntingdonshire District Council,13/09/2017,14/09/2017,212330,102064, 501.00 ,NOVUS COMPLIANCE SERVICES LTD,CR423524,St Ives Bus Station,Building Mtce,303,
http://statistics.data.gov.uk/id/local-authority/12UE,Huntingdonshire District Council,05/09/2017,07/09/2017,216447,159164, 900.00 ,BIST,CR422733,Hdc Recharge Invoices,Equipment Maintenance,511,
http://statistics.data.gov.uk/id/local-authority/12UE,Huntingdonshire District Council,25/09/2017,25/09/2017,217518,, 450.00 ,IDOX,CR481134,Licensing Common Costs,Training,130,
http://statistics.data.gov.uk/id/local-authority/12UE,Huntingdonshire District Council,25/09/2017,25/09/2017,217518,, 450.00 ,IDOX,CR481134,Licensing Common Costs,Training,130,
http://statistics.data.gov.uk/id/local-authority/12UE,Huntingdonshire District Council,28/09/2017,28/09/2017,217674,18004, 900.00 ,WHITESPACE WORK SOFTWARE LIMITED,CR424883,Parks & Open Spaces,Equipment,500,
http://statistics.data.gov.uk/id/local-authority/12UE,Huntingdonshire District Council,14/09/2017,14/09/2017,214425,INV17408, 443.74 ,DENNIS EAGLE LTD,CR000200,Recycling Collections,Vehicle Parts & Fittings,625,
http://statistics.data.gov.uk/id/local-authority/12UE,Huntingdonshire District Council,14/09/2017,14/09/2017,214425,96344192, 454.06 ,DENNIS EAGLE LTD,CR000200,Recycling Collections,Vehicle Parts & Fittings,625,
http://statistics.data.gov.uk/id/local-authority/12UE,Huntingdonshire District Council,13/09/2017,13/09/2017,217123,, 891.83 ,MORGAN HUNT PUBLIC UK LTD,CR415693,Benefits Management,Hired Staff,100,
http://statistics.data.gov.uk/id/local-authority/12UE,Huntingdonshire District Council,28/09/2017,28/09/2017,217870,8359, 891.20 ,OAKHAM ALES,CR422253,Burgess Bar,Bar Provisions,558,
http://statistics.data.gov.uk/id/local-authority/12UE,Huntingdonshire District Council,29/09/2017,29/09/2017,217889,39603, 891.20 ,OAKHAM ALES,CR422253,Burgess Bar,Bar Provisions,558,
http://statistics.data.gov.uk/id/local-authority/12UE,Huntingdonshire District Council,21/09/2017,25/09/2017,217395,3517843, 485.10 ,BIST,CR422733,Ccity Recharge Invoices,Other I T Hardware,203,
http://statistics.data.gov.uk/id/local-authority/12UE,Huntingdonshire District Council,21/09/2017,25/09/2017,217395,3517165, 274.60 ,BIST,CR422733,Ccity Recharge Invoices,Other I T Hardware,203,
http://statistics.data.gov.uk/id/local-authority/12UE,Huntingdonshire District Council,21/09/2017,25/09/2017,217395,3517165, 111.00 ,BIST,CR422733,Ccity Recharge Invoices,Other I T Hardware,203,
http://statistics.data.gov.uk/id/local-authority/12UE,Huntingdonshire District Council,18/09/2017,18/09/2017,217321,, 831.66 ,FREETHS  LLP,CR480787,Commercial Investment Strategy,Legal Fees,729,
http://statistics.data.gov.uk/id/local-authority/12UE,Huntingdonshire District Council,18/09/2017,18/09/2017,217321,, 39.00 ,FREETHS  LLP,CR480787,Commercial Investment Strategy,Legal Fees,729,
http://statistics.data.gov.uk/id/local-authority/12UE,Huntingdonshire District Council,20/09/2017,21/09/2017,217156,, 868.00 ,LONGMARSH LTD,CR424875,Street Cleansing,Vehicle Hire,607,
http://statistics.data.gov.uk/id/local-authority/12UE,Huntingdonshire District Council,20/09/2017,21/09/2017,217157,7130, 868.00 ,LONGMARSH LTD,CR424875,Street Cleansing,Vehicle Hire,607,
http://statistics.data.gov.uk/id/local-authority/12UE,Huntingdonshire District Council,06/09/2017,07/09/2017,216486,PERSONAL DATA REDACTED, 861.33 ,AAA INFLATABLES LTD,CR424750,Outdoor Sports,Charges (Income),A02,
http://statistics.data.gov.uk/id/local-authority/12UE,Huntingdonshire District Council,05/09/2017,05/09/2017,216551,, 859.00 ,FRONTLINE,CR480881,Hr & Payroll Services,Training,130,
http://statistics.data.gov.uk/id/local-authority/12UE,Huntingdonshire District Council,06/09/2017,07/09/2017,216567,, 856.00 ,ABEL ALARM COMPANY LTD,CR000201,Site & Centre Management,Fire & Security,450,
http://statistics.data.gov.uk/id/local-authority/12UE,Huntingdonshire District Council,19/09/2017,21/09/2017,217131,, 850.00 ,FIVEWAYS MUNICIPAL VEHICLE HIRE LTD,CR415496,Domestic Waste Collection,Vehicle Hire,607,
http://statistics.data.gov.uk/id/local-authority/12UE,Huntingdonshire District Council,19/09/2017,21/09/2017,217132,131410782, 850.00 ,FIVEWAYS MUNICIPAL VEHICLE HIRE LTD,CR415496,Domestic Waste Collection,Vehicle Hire,607,
http://statistics.data.gov.uk/id/local-authority/12UE,Huntingdonshire District Council,19/09/2017,21/09/2017,217133,131410784, 850.00 ,FIVEWAYS MUNICIPAL VEHICLE HIRE LTD,CR415496,Domestic Waste Collection,Vehicle Hire,607,
http://statistics.data.gov.uk/id/local-authority/12UE,Huntingdonshire District Council,19/09/2017,21/09/2017,217134,10854278, 850.00 ,FIVEWAYS MUNICIPAL VEHICLE HIRE LTD,CR415496,Domestic Waste Collection,Vehicle Hire,607,
http://statistics.data.gov.uk/id/local-authority/12UE,Huntingdonshire District Council,19/09/2017,21/09/2017,217135,972275941, 850.00 ,FIVEWAYS MUNICIPAL VEHICLE HIRE LTD,CR415496,Domestic Waste Collection,Vehicle Hire,607,
http://statistics.data.gov.uk/id/local-authority/12UE,Huntingdonshire District Council,26/09/2017,28/09/2017,217696,, 850.00 ,FIVEWAYS MUNICIPAL VEHICLE HIRE LTD,CR415496,Domestic Waste Collection,Vehicle Hire,607,
http://statistics.data.gov.uk/id/local-authority/12UE,Huntingdonshire District Council,26/09/2017,28/09/2017,217699,, 850.00 ,FIVEWAYS MUNICIPAL VEHICLE HIRE LTD,CR415496,Domestic Waste Collection,Vehicle Hire,607,
http://statistics.data.gov.uk/id/local-authority/12UE,Huntingdonshire District Council,28/09/2017,28/09/2017,217873,PERSONAL DATA REDACTED, 846.50 ,LEADERS-CAMBRIDGE,CR090520,Homelessness,Incentive Payment,816,
http://statistics.data.gov.uk/id/local-authority/12UE,Huntingdonshire District Council,19/09/2017,20/09/2017,217341,, 776.35 ,ROGER WILSON ELECTRONICS,CR028041,Site & Centre Management,Building Mtce,303,
http://statistics.data.gov.uk/id/local-authority/12UE,Huntingdonshire District Council,19/09/2017,20/09/2017,217341,18015, 70.00 ,ROGER WILSON ELECTRONICS,CR028041,Site & Centre Management,Building Mtce,303,
http://statistics.data.gov.uk/id/local-authority/12UE,Huntingdonshire District Council,06/09/2017,07/09/2017,216600,, 844.35 ,KONICA MINOLTA,CR478866,"Mfds -Local Print, Scan & Copy",Equipment Maintenance,511,
http://statistics.data.gov.uk/id/local-authority/12UE,Huntingdonshire District Council,07/09/2017,07/09/2017,216676,92, 210.00 ,GB GROUP PLC,CR455456,Site & Centre Management,Software,206,
http://statistics.data.gov.uk/id/local-authority/12UE,Huntingdonshire District Council,07/09/2017,07/09/2017,216676,32485335, 210.00 ,GB GROUP PLC,CR455456,Site & Centre Management,Software,206,
http://statistics.data.gov.uk/id/local-authority/12UE,Huntingdonshire District Council,07/09/2017,07/09/2017,216676,62888, 210.00 ,GB GROUP PLC,CR455456,Site & Centre Management,Software,206,
http://statistics.data.gov.uk/id/local-authority/12UE,Huntingdonshire District Council,07/09/2017,07/09/2017,216676,32485383, 105.00 ,GB GROUP PLC,CR455456,Site & Centre Management,Software,206,
http://statistics.data.gov.uk/id/local-authority/12UE,Huntingdonshire District Council,07/09/2017,07/09/2017,216676,33180, 105.00 ,GB GROUP PLC,CR455456,Site & Centre Management,Software,206,
http://statistics.data.gov.uk/id/local-authority/12UE,Huntingdonshire District Council,14/09/2017,14/09/2017,215784,CREDIT REF, 836.90 ,SPORTMAX,CR424813,Site & Centre Management,Materials For Resale,570,
http://statistics.data.gov.uk/id/local-authority/12UE,Huntingdonshire District Council,19/09/2017,21/09/2017,217411,10749857, 836.80 ,ARCHANT HERTS AND CAMBS,CR403271,Grounds Maintenance,Advertising/Promoting Services,255,
http://statistics.data.gov.uk/id/local-authority/12UE,Huntingdonshire District Council,13/09/2017,14/09/2017,217087,2104039241, 831.91 ,PILGRIM FOODSERVICE LTD,CR455695,Hinchingbrooke Park Cafe,Catering Materials,559,
http://statistics.data.gov.uk/id/local-authority/12UE,Huntingdonshire District Council,21/09/2017,22/09/2017,217407,125962, 825.00 ,IT TALENT SOLUTIONS LTD,CR482676,Imd Shared Service,Hired Staff,100,
http://statistics.data.gov.uk/id/local-authority/12UE,Huntingdonshire District Council,21/09/2017,22/09/2017,217452,125953, 825.00 ,IT TALENT SOLUTIONS LTD,CR482676,Imd Shared Service,Hired Staff,100,
http://statistics.data.gov.uk/id/local-authority/12UE,Huntingdonshire District Council,21/09/2017,25/09/2017,217381,91395753, 813.66 ,PHOENIX SOFTWARE LTD,CR031918,Scdc Recharge Invoices,Software,206,
http://statistics.data.gov.uk/id/local-authority/12UE,Huntingdonshire District Council,28/09/2017,28/09/2017,216858,24827, 812.71 ,WALKER FIRE UK LTD,CR455756,Eastfield House,Building Mtce,303,
http://statistics.data.gov.uk/id/local-authority/12UE,Huntingdonshire District Council,06/09/2017,07/09/2017,216565,IK1374695, 810.00 ,CLANPRESS KING'S LYNN LTD,CR413516,Burgess Hall,Advertising/Promoting Services,255,
http://statistics.data.gov.uk/id/local-authority/12UE,Huntingdonshire District Council,07/09/2017,07/09/2017,216693,, 810.00 ,CFL ESTATE SERVICES,CR455208,Property Development And Mgt,Hired Staff,100,
http://statistics.data.gov.uk/id/local-authority/12UE,Huntingdonshire District Council,27/09/2017,27/09/2017,217826,, 810.00 ,KNIGHTARCHITECTURAL DESIGN LIMITED,CR424944,Commercial Investment Strategy,Consultants,711,
http://statistics.data.gov.uk/id/local-authority/12UE,Huntingdonshire District Council,13/09/2017,14/09/2017,212358,4616, 490.00 ,NOVUS COMPLIANCE SERVICES LTD,CR423524,St Neots Market Square Ccc,Sitework,359,
http://statistics.data.gov.uk/id/local-authority/12UE,Huntingdonshire District Council,13/09/2017,14/09/2017,212358,4616, 210.00 ,NOVUS COMPLIANCE SERVICES LTD,CR423524,St Neots Tebbutts Road,Sitework,359,
http://statistics.data.gov.uk/id/local-authority/12UE,Huntingdonshire District Council,13/09/2017,14/09/2017,212358,COUNTRYSIDE, 104.00 ,NOVUS COMPLIANCE SERVICES LTD,CR423524,Parks & Open Spaces,Building Mtce,303,
http://statistics.data.gov.uk/id/local-authority/12UE,Huntingdonshire District Council,14/09/2017,14/09/2017,216996,SI-096592, 800.00 ,TRINITY ENGINEERING & COMPONENT SUPPLIES LTD,CR455479,Vehicle Maintenance,Materials,550,
http://statistics.data.gov.uk/id/local-authority/12UE,Huntingdonshire District Council,18/09/2017,21/09/2017,217334,SIN084557, 800.00 ,INITIATEC LIMITED,CR424931,Cctv Shared Service Hosting,Equipment Maintenance,511,
http://statistics.data.gov.uk/id/local-authority/12UE,Huntingdonshire District Council,26/09/2017,28/09/2017,217829,, 88.33 ,CWE TRAINING LIMITED,CR424914,Arboricultural Team,Training,130,
http://statistics.data.gov.uk/id/local-authority/12UE,Huntingdonshire District Council,26/09/2017,28/09/2017,217829,, 706.67 ,CWE TRAINING LIMITED,CR424914,Grounds Maintenance,Training,130,
http://statistics.data.gov.uk/id/local-authority/12UE,Huntingdonshire District Council,20/09/2017,20/09/2017,217446,8897077, 230.72 ,ANTALIS LTD,CR479468,Printing,Paper,562,
http://statistics.data.gov.uk/id/local-authority/12UE,Huntingdonshire District Council,20/09/2017,20/09/2017,217446,8897077, 55.74 ,ANTALIS LTD,CR479468,Printing,Paper,562,
http://statistics.data.gov.uk/id/local-authority/12UE,Huntingdonshire District Council,20/09/2017,20/09/2017,217446,7136630, 65.40 ,ANTALIS LTD,CR479468,Printing,Paper,562,
http://statistics.data.gov.uk/id/local-authority/12UE,Huntingdonshire District Council,20/09/2017,20/09/2017,217446,7136630, 60.36 ,ANTALIS LTD,CR479468,Printing,Paper,562,
http://statistics.data.gov.uk/id/local-authority/12UE,Huntingdonshire District Council,20/09/2017,20/09/2017,217446,7136630, 93.50 ,ANTALIS LTD,CR479468,Printing,Paper,562,
http://statistics.data.gov.uk/id/local-authority/12UE,Huntingdonshire District Council,20/09/2017,20/09/2017,217446,7136630, 49.00 ,ANTALIS LTD,CR479468,Printing,Paper,562,
http://statistics.data.gov.uk/id/local-authority/12UE,Huntingdonshire District Council,20/09/2017,20/09/2017,217446,7136630, 94.00 ,ANTALIS LTD,CR479468,Printing,Paper,562,
http://statistics.data.gov.uk/id/local-authority/12UE,Huntingdonshire District Council,20/09/2017,20/09/2017,217446,7136630, 101.70 ,ANTALIS LTD,CR479468,Printing,Paper,562,
http://statistics.data.gov.uk/id/local-authority/12UE,Huntingdonshire District Council,20/09/2017,20/09/2017,217446,7136630, 38.68 ,ANTALIS LTD,CR479468,Printing,Paper,562,
http://statistics.data.gov.uk/id/local-authority/12UE,Huntingdonshire District Council,12/09/2017,13/09/2017,216963,18426, 625.00 ,ROGER WILSON ELECTRONICS,CR028041,Site & Centre Management,Building Mtce,303,
http://statistics.data.gov.uk/id/local-authority/12UE,Huntingdonshire District Council,12/09/2017,13/09/2017,216963,CREDIT REF, 159.00 ,ROGER WILSON ELECTRONICS,CR028041,Site & Centre Management,Building Mtce,303,
http://statistics.data.gov.uk/id/local-authority/12UE,Huntingdonshire District Council,12/09/2017,13/09/2017,216884,114793, 752.85 ,ARTHUR IBBETT LTD,CR000430,Grounds Maintenance,Vehicle Parts & Fittings,625,
http://statistics.data.gov.uk/id/local-authority/12UE,Huntingdonshire District Council,11/09/2017,14/09/2017,216698,, 750.00 ,CHARTERED INSTITUTE OF ENVIRONMENTAL HEALTH,CR002987,Commercial Team,Recruitment Costs,120,
http://statistics.data.gov.uk/id/local-authority/12UE,Huntingdonshire District Council,21/09/2017,22/09/2017,217409,LA452754, 750.00 ,L A INTERNATIONAL COMPUTER CONSULTANTS LTD,CR424731,Imd Shared Service,Hired Staff,100,
http://statistics.data.gov.uk/id/local-authority/12UE,Huntingdonshire District Council,21/09/2017,22/09/2017,217410,PERSONAL DATA REDACTED, 750.00 ,L A INTERNATIONAL COMPUTER CONSULTANTS LTD,CR424731,Imd Shared Service,Hired Staff,100,
http://statistics.data.gov.uk/id/local-authority/12UE,Huntingdonshire District Council,21/09/2017,21/09/2017,217482,118244, 750.00 ,RAPLEYS LLP,CR157687,Industrial Properties,Consultants,711,
http://statistics.data.gov.uk/id/local-authority/12UE,Huntingdonshire District Council,26/09/2017,28/09/2017,217660,276598I, 743.11 ,DENNIS EAGLE LTD,CR000200,Domestic Waste Collection,Vehicle Parts & Fittings,625,
http://statistics.data.gov.uk/id/local-authority/12UE,Huntingdonshire District Council,21/09/2017,21/09/2017,217053,153937, 736.25 ,SHB HIRE LTD,CR416566,Grounds Maintenance,Vehicle Hire,607,
http://statistics.data.gov.uk/id/local-authority/12UE,Huntingdonshire District Council,13/09/2017,13/09/2017,216987,18008, 731.24 ,E-ON ENERGY,CR416430,Site & Centre Management,Gas,421,
http://statistics.data.gov.uk/id/local-authority/12UE,Huntingdonshire District Council,05/09/2017,07/09/2017,216489,3524627, 5.50 ,INSIGHT DIRECT UK LTD,CR000242,Financial Mgt System Replacmnt,Other I T Hardware,203,
http://statistics.data.gov.uk/id/local-authority/12UE,Huntingdonshire District Council,05/09/2017,07/09/2017,216489,3524627, 720.00 ,INSIGHT DIRECT UK LTD,CR000242,Financial Mgt System Replacmnt,Other I T Hardware,203,
http://statistics.data.gov.uk/id/local-authority/12UE,Huntingdonshire District Council,21/09/2017,21/09/2017,217051,10749857, 720.75 ,SHB HIRE LTD,CR416566,Grounds Maintenance,Vehicle Hire,607,
http://statistics.data.gov.uk/id/local-authority/12UE,Huntingdonshire District Council,05/09/2017,07/09/2017,216443,SINV00115855, 720.00 ,INSIGHT DIRECT UK LTD,CR000242,Scdc Recharge Invoices,Other I T Hardware,203,
http://statistics.data.gov.uk/id/local-authority/12UE,Huntingdonshire District Council,21/09/2017,25/09/2017,217396,3531789, 720.00 ,INSIGHT DIRECT UK LTD,CR000242,Ccity Recharge Invoices,Other I T Hardware,203,
http://statistics.data.gov.uk/id/local-authority/12UE,Huntingdonshire District Council,21/09/2017,25/09/2017,217401,, 720.00 ,INSIGHT DIRECT UK LTD,CR000242,Hdc Recharge Invoices,Other I T Hardware,203,
http://statistics.data.gov.uk/id/local-authority/12UE,Huntingdonshire District Council,21/09/2017,25/09/2017,217402,SINV00115430, 720.00 ,INSIGHT DIRECT UK LTD,CR000242,Ccity Recharge Invoices,Other I T Hardware,203,
http://statistics.data.gov.uk/id/local-authority/12UE,Huntingdonshire District Council,26/09/2017,26/09/2017,217709,, 720.00 ,ZEBRA TRAINING SERVICES,CR411687,Hr & Payroll Services,Training,130,
http://statistics.data.gov.uk/id/local-authority/12UE,Huntingdonshire District Council,27/09/2017,27/09/2017,217831,, 716.75 ,MORGAN HUNT PUBLIC UK LTD,CR415693,Benefits Management,Hired Staff,100,
http://statistics.data.gov.uk/id/local-authority/12UE,Huntingdonshire District Council,21/09/2017,21/09/2017,217499,14520, 714.00 ,GAWN ASSOCIATES,CR477552,Housing Private Sector Grants,Shared Service Savings,798,
http://statistics.data.gov.uk/id/local-authority/12UE,Huntingdonshire District Council,14/09/2017,14/09/2017,211341,, 713.94 ,PRISTINE CONDITION INTERNATIONAL LTD,CR482653,Domestic Waste Collection,Training,130,
http://statistics.data.gov.uk/id/local-authority/12UE,Huntingdonshire District Council,06/09/2017,07/09/2017,216548,Sep-17, 350.00 ,UKOS PROJECTS LTD,CR423164,Homelessness,Bed & Breakfast Payment,818,
http://statistics.data.gov.uk/id/local-authority/12UE,Huntingdonshire District Council,06/09/2017,07/09/2017,216548,384/793, 350.00 ,UKOS PROJECTS LTD,CR423164,Homelessness,Bed & Breakfast Payment,818,
http://statistics.data.gov.uk/id/local-authority/12UE,Huntingdonshire District Council,14/09/2017,14/09/2017,216944,RC-HDC018, 350.00 ,UKOS PROJECTS LTD,CR423164,Homelessness,Bed & Breakfast Payment,818,
http://statistics.data.gov.uk/id/local-authority/12UE,Huntingdonshire District Council,14/09/2017,14/09/2017,216944,298, 350.00 ,UKOS PROJECTS LTD,CR423164,Homelessness,Bed & Breakfast Payment,818,
http://statistics.data.gov.uk/id/local-authority/12UE,Huntingdonshire District Council,14/09/2017,14/09/2017,216946,2066484, 700.00 ,THE STATION HOTEL,CR453752,Homelessness,Bed & Breakfast Payment,818,
http://statistics.data.gov.uk/id/local-authority/12UE,Huntingdonshire District Council,21/09/2017,21/09/2017,217356,RC-HDC019, 350.00 ,UKOS PROJECTS LTD,CR423164,Homelessness,Bed & Breakfast Payment,818,
http://statistics.data.gov.uk/id/local-authority/12UE,Huntingdonshire District Council,21/09/2017,21/09/2017,217356,RC-HDC018, 350.00 ,UKOS PROJECTS LTD,CR423164,Homelessness,Bed & Breakfast Payment,818,
http://statistics.data.gov.uk/id/local-authority/12UE,Huntingdonshire District Council,28/09/2017,28/09/2017,217723,RC-HDC018, 700.00 ,THE STATION HOTEL,CR453752,Homelessness,Bed & Breakfast Payment,818,
http://statistics.data.gov.uk/id/local-authority/12UE,Huntingdonshire District Council,28/09/2017,28/09/2017,217726,RC-HDC019, 700.00 ,THE STATION HOTEL,CR453752,Homelessness,Bed & Breakfast Payment,818,
http://statistics.data.gov.uk/id/local-authority/12UE,Huntingdonshire District Council,28/09/2017,28/09/2017,217764,EC175, 350.00 ,UKOS PROJECTS LTD,CR423164,Homelessness,Bed & Breakfast Payment,818,
http://statistics.data.gov.uk/id/local-authority/12UE,Huntingdonshire District Council,28/09/2017,28/09/2017,217764,RC-HDC019, 350.00 ,UKOS PROJECTS LTD,CR423164,Homelessness,Bed & Breakfast Payment,818,
http://statistics.data.gov.uk/id/local-authority/12UE,Huntingdonshire District Council,12/09/2017,13/09/2017,217029,38303, 699.95 ,A C COMMERCIALS,CR000141,Vehicle Maintenance,Materials,550,
http://statistics.data.gov.uk/id/local-authority/12UE,Huntingdonshire District Council,04/09/2017,04/09/2017,216482,10669, 699.80 ,MORGAN HUNT PUBLIC UK LTD,CR415693,Benefits Management,Hired Staff,100,
http://statistics.data.gov.uk/id/local-authority/12UE,Huntingdonshire District Council,21/09/2017,21/09/2017,217464,, 698.86 ,FIRST RECRUITMENT GROUP LTD,CR424012,Finance,Hired Staff,100,
http://statistics.data.gov.uk/id/local-authority/12UE,Huntingdonshire District Council,14/09/2017,14/09/2017,215786,, 698.18 ,BRENNTAG UK LTD,CR015017,Swimming,Chemicals,551,
http://statistics.data.gov.uk/id/local-authority/12UE,Huntingdonshire District Council,29/09/2017,29/09/2017,218079,428922, 697.19 ,HEASELL ELECTROMECHANICAL SERVICES LTD,CR422407,St Ivo - General Improve (Cs),Building Mtce,303,
http://statistics.data.gov.uk/id/local-authority/12UE,Huntingdonshire District Council,06/09/2017,07/09/2017,216573,10235, 695.87 ,GRAYFOX LTD,CR480084,Ramsey L C - Gen Improve (Cs),Building Mtce,303,
http://statistics.data.gov.uk/id/local-authority/12UE,Huntingdonshire District Council,13/09/2017,14/09/2017,217126,PERSONAL DATA REDACTED, 695.34 ,R N J FABRICATIONS LTD,CR424916,Hinchingbrooke Park Management,Materials,550,
http://statistics.data.gov.uk/id/local-authority/12UE,Huntingdonshire District Council,13/09/2017,13/09/2017,216981,56912, 690.85 ,E-ON ENERGY,CR416430,Site & Centre Management,Gas,421,
http://statistics.data.gov.uk/id/local-authority/12UE,Huntingdonshire District Council,05/09/2017,07/09/2017,216530,S299112, 681.80 ,L A INTERNATIONAL COMPUTER CONSULTANTS LTD,CR424731,Imd Shared Service,Hired Staff,100,
http://statistics.data.gov.uk/id/local-authority/12UE,Huntingdonshire District Council,27/09/2017,28/09/2017,217818,923469-083B, 675.53 ,IRON MOUNTAIN UK LIMITED,CR424771,Ccity Recharge Invoices,Other I T Hardware,203,
http://statistics.data.gov.uk/id/local-authority/12UE,Huntingdonshire District Council,07/09/2017,07/09/2017,216580,900789533, 672.54 ,PORTAKABIN LTD,CR478566,Voluntary Sector Grants,Hire Of Rooms,411,
http://statistics.data.gov.uk/id/local-authority/12UE,Huntingdonshire District Council,19/09/2017,21/09/2017,216916,6999, 665.00 ,CAMBRIDGE DOOR SERVICES,CR415341,Huntingdon Multi-Storey,Building Mtce,303,
http://statistics.data.gov.uk/id/local-authority/12UE,Huntingdonshire District Council,21/09/2017,21/09/2017,217052,HDC002, 664.26 ,SHB HIRE LTD,CR416566,Grounds Maintenance,Vehicle Hire,607,
http://statistics.data.gov.uk/id/local-authority/12UE,Huntingdonshire District Council,21/09/2017,21/09/2017,217055,10854273, 664.26 ,SHB HIRE LTD,CR416566,Grounds Maintenance,Vehicle Hire,607,
http://statistics.data.gov.uk/id/local-authority/12UE,Huntingdonshire District Council,05/09/2017,07/09/2017,216522,LA448473, 663.04 ,STR GROUP,CR424704,Imd Shared Service,Hired Staff,100,
http://statistics.data.gov.uk/id/local-authority/12UE,Huntingdonshire District Council,05/09/2017,07/09/2017,216523,134881, 663.04 ,STR GROUP,CR424704,Imd Shared Service,Hired Staff,100,
http://statistics.data.gov.uk/id/local-authority/12UE,Huntingdonshire District Council,21/09/2017,22/09/2017,217423,LA452756, 663.04 ,STR GROUP,CR424704,Imd Shared Service,Hired Staff,100,
http://statistics.data.gov.uk/id/local-authority/12UE,Huntingdonshire District Council,27/09/2017,28/09/2017,217817,126099, 663.04 ,STR GROUP,CR424704,Imd Shared Service,Hired Staff,100,
http://statistics.data.gov.uk/id/local-authority/12UE,Huntingdonshire District Council,27/09/2017,28/09/2017,217755,2933, 663.00 ,THE POOL & SPA SPECIALISTS LTD,CR424623,Site & Centre Management,Building Mtce,303,
http://statistics.data.gov.uk/id/local-authority/12UE,Huntingdonshire District Council,06/09/2017,06/09/2017,216594,, 656.76 ,FIRST RECRUITMENT GROUP LTD,CR424012,Finance,Hired Staff,100,
http://statistics.data.gov.uk/id/local-authority/12UE,Huntingdonshire District Council,12/09/2017,25/09/2017,216947,13848, 654.75 ,GALTEC SOLUTIONS LTD,CR423396,Scdc Recharge Invoices,Other I T Hardware,203,
http://statistics.data.gov.uk/id/local-authority/12UE,Huntingdonshire District Council,06/09/2017,06/09/2017,216613,, 648.34 ,FIRST RECRUITMENT GROUP LTD,CR424012,Finance,Hired Staff,100,
http://statistics.data.gov.uk/id/local-authority/12UE,Huntingdonshire District Council,28/09/2017,28/09/2017,217048,276804I, 641.33 ,VEHICLE WEIGHTING SOLUTIONS LTD,CR423961,Domestic Waste Collection,Vehicle Parts & Fittings,625,
http://statistics.data.gov.uk/id/local-authority/12UE,Huntingdonshire District Council,27/09/2017,28/09/2017,217647,90227669, 628.80 ,GEZE  UK LTD,CR417073,Site & Centre Management,Building Mtce,303,
http://statistics.data.gov.uk/id/local-authority/12UE,Huntingdonshire District Council,07/09/2017,07/09/2017,216229,INV000006711, 619.80 ,EGBERT H TAYLOR AND CO LTD,CR004818,Wheeled Bins,Recycling Bins,525,
http://statistics.data.gov.uk/id/local-authority/12UE,Huntingdonshire District Council,26/09/2017,28/09/2017,217394,DE11045531, 617.67 ,DENNIS EAGLE LTD,CR000200,Recycling Collections,Vehicle Parts & Fittings,625,
http://statistics.data.gov.uk/id/local-authority/12UE,Huntingdonshire District Council,13/09/2017,22/09/2017,217004,, 610.00 ,L A INTERNATIONAL COMPUTER CONSULTANTS LTD,CR424731,Imd Shared Service,Hired Staff,100,
http://statistics.data.gov.uk/id/local-authority/12UE,Huntingdonshire District Council,21/09/2017,21/09/2017,217429,6948, 610.00 ,P.D. KEMP (BUILDER),CR422238,Disabled Facilities Grants,Mandatory Grants,801,
http://statistics.data.gov.uk/id/local-authority/12UE,Huntingdonshire District Council,27/09/2017,28/09/2017,217819,126083, 610.00 ,L A INTERNATIONAL COMPUTER CONSULTANTS LTD,CR424731,Imd Shared Service,Hired Staff,100,
http://statistics.data.gov.uk/id/local-authority/12UE,Huntingdonshire District Council,26/09/2017,28/09/2017,217702,113740, 604.51 ,GROUNDSMAN,CR422159,Grounds Maintenance,Equipment,500,
http://statistics.data.gov.uk/id/local-authority/12UE,Huntingdonshire District Council,05/09/2017,07/09/2017,216531,S299493, 600.00 ,L A INTERNATIONAL COMPUTER CONSULTANTS LTD,CR424731,Imd Shared Service,Hired Staff,100,
http://statistics.data.gov.uk/id/local-authority/12UE,Huntingdonshire District Council,13/09/2017,22/09/2017,217005,, 600.00 ,L A INTERNATIONAL COMPUTER CONSULTANTS LTD,CR424731,Imd Shared Service,Hired Staff,100,
http://statistics.data.gov.uk/id/local-authority/12UE,Huntingdonshire District Council,21/09/2017,22/09/2017,217451,90451108, 600.00 ,IT TALENT SOLUTIONS LTD,CR482676,Imd Shared Service,Hired Staff,100,
http://statistics.data.gov.uk/id/local-authority/12UE,Huntingdonshire District Council,28/09/2017,28/09/2017,217673,501680153, 600.00 ,WHITESPACE WORK SOFTWARE LIMITED,CR424883,Parks & Open Spaces,Equipment,500,
http://statistics.data.gov.uk/id/local-authority/12UE,Huntingdonshire District Council,13/09/2017,13/09/2017,615131,2016/17 10, 600.00 ,COPE,CR423903,Voluntary Sector Grants,Grants (Paid Out),800,
http://statistics.data.gov.uk/id/local-authority/12UE,Huntingdonshire District Council,07/09/2017,07/09/2017,216603,, 599.00 ,ROGER WILSON ELECTRONICS,CR028041,Indoor Sports,Equipment,500,
http://statistics.data.gov.uk/id/local-authority/12UE,Huntingdonshire District Council,20/09/2017,20/09/2017,217428,, 598.00 ,LIME LEGAL LTD,CR416714,Hr & Payroll Services,Training,130,
http://statistics.data.gov.uk/id/local-authority/12UE,Huntingdonshire District Council,06/09/2017,06/09/2017,615136,, 591.20 ,PERSONAL DATA REDACTED,CR416513,Benefits Management,Recruitment Costs,120,
http://statistics.data.gov.uk/id/local-authority/12UE,Huntingdonshire District Council,29/09/2017,29/09/2017,217666,1346147, 586.96 ,MEYER SCOTT RECRUITMENT LIMITED,CR422369,Customer Service Centres,Hired Staff,100,
http://statistics.data.gov.uk/id/local-authority/12UE,Huntingdonshire District Council,19/09/2017,21/09/2017,217495,972228270, 585.00 ,DAL-ROD (CAMRIDGESHIRE),CR413675,Eastfield House,Building Mtce,303,
http://statistics.data.gov.uk/id/local-authority/12UE,Huntingdonshire District Council,14/09/2017,14/09/2017,216231,58007969, 202.93 ,AEBI SCHMIDT,CR025706,Street Cleansing,Vehicle Parts & Fittings,625,
http://statistics.data.gov.uk/id/local-authority/12UE,Huntingdonshire District Council,14/09/2017,14/09/2017,216231,28758, 202.93 ,AEBI SCHMIDT,CR025706,Street Cleansing,Vehicle Parts & Fittings,625,
http://statistics.data.gov.uk/id/local-authority/12UE,Huntingdonshire District Council,14/09/2017,14/09/2017,216231,276692I, 173.94 ,AEBI SCHMIDT,CR025706,Street Cleansing,Vehicle Parts & Fittings,625,
http://statistics.data.gov.uk/id/local-authority/12UE,Huntingdonshire District Council,18/09/2017,18/09/2017,217322,1136, 579.20 ,PRIMESIGHT  LTD,CR132710,Bus Shelters,Building Cleaning,440,
http://statistics.data.gov.uk/id/local-authority/12UE,Huntingdonshire District Council,13/09/2017,14/09/2017,216674,18008, 576.78 ,MASKEARAID LTD,CR033423,Pathfinder House,Cleaning Materials,443,
http://statistics.data.gov.uk/id/local-authority/12UE,Huntingdonshire District Council,19/09/2017,21/09/2017,217372,8217, 570.00 ,BRITANNIA FIRE & SECURITY LTD,CR410090,Pathfinder House,Building Mtce,303,
http://statistics.data.gov.uk/id/local-authority/12UE,Huntingdonshire District Council,12/09/2017,12/09/2017,217012,, 564.60 ,RILEY DUNN & WILSON LTD,CR424619,Committee Management,Other Office Expenses,295,
http://statistics.data.gov.uk/id/local-authority/12UE,Huntingdonshire District Council,06/09/2017,07/09/2017,215295,63009, 552.00 ,HIRE OR BUY GROUP LTD,CR000707,Site & Centre Management,Equipment Hire,507,
http://statistics.data.gov.uk/id/local-authority/12UE,Huntingdonshire District Council,27/09/2017,28/09/2017,216908,65922, 552.00 ,HIRE OR BUY GROUP LTD,CR000707,Site & Centre Management,Equipment Hire,507,
http://statistics.data.gov.uk/id/local-authority/12UE,Huntingdonshire District Council,13/09/2017,22/09/2017,217037,R022949, 550.00 ,IT TALENT SOLUTIONS LTD,CR482676,Imd Shared Service,Hired Staff,100,
http://statistics.data.gov.uk/id/local-authority/12UE,Huntingdonshire District Council,27/09/2017,28/09/2017,217767,33180, 549.00 ,FLEET LINE MARKERS LTD,CR406897,Site & Centre Management,Grounds Mtce Contractors,351,
http://statistics.data.gov.uk/id/local-authority/12UE,Huntingdonshire District Council,07/09/2017,07/09/2017,216653,16116, 544.00 ,RLSS DIRECT,CR401615,Swimming,Materials,550,
http://statistics.data.gov.uk/id/local-authority/12UE,Huntingdonshire District Council,28/09/2017,28/09/2017,217047,59585, 68.00 ,VEHICLE WEIGHTING SOLUTIONS LTD,CR423961,Recycling Collections,Vehicle Maintenance External,619,
http://statistics.data.gov.uk/id/local-authority/12UE,Huntingdonshire District Council,28/09/2017,28/09/2017,217047,1551, 68.00 ,VEHICLE WEIGHTING SOLUTIONS LTD,CR423961,Recycling Collections,Vehicle Maintenance External,619,
http://statistics.data.gov.uk/id/local-authority/12UE,Huntingdonshire District Council,28/09/2017,28/09/2017,217047,2017/058, 68.00 ,VEHICLE WEIGHTING SOLUTIONS LTD,CR423961,Recycling Collections,Vehicle Maintenance External,619,
http://statistics.data.gov.uk/id/local-authority/12UE,Huntingdonshire District Council,28/09/2017,28/09/2017,217047,131410793, 68.00 ,VEHICLE WEIGHTING SOLUTIONS LTD,CR423961,Domestic Waste Collection,Vehicle Maintenance External,619,
http://statistics.data.gov.uk/id/local-authority/12UE,Huntingdonshire District Council,28/09/2017,28/09/2017,217047,80618, 68.00 ,VEHICLE WEIGHTING SOLUTIONS LTD,CR423961,Domestic Waste Collection,Vehicle Maintenance External,619,
http://statistics.data.gov.uk/id/local-authority/12UE,Huntingdonshire District Council,28/09/2017,28/09/2017,217047,80673, 68.00 ,VEHICLE WEIGHTING SOLUTIONS LTD,CR423961,Domestic Waste Collection,Vehicle Maintenance External,619,
http://statistics.data.gov.uk/id/local-authority/12UE,Huntingdonshire District Council,28/09/2017,28/09/2017,217047,80502, 68.00 ,VEHICLE WEIGHTING SOLUTIONS LTD,CR423961,Domestic Waste Collection,Vehicle Maintenance External,619,
http://statistics.data.gov.uk/id/local-authority/12UE,Huntingdonshire District Council,28/09/2017,28/09/2017,217047,80388, 68.00 ,VEHICLE WEIGHTING SOLUTIONS LTD,CR423961,Domestic Waste Collection,Vehicle Maintenance External,619,
http://statistics.data.gov.uk/id/local-authority/12UE,Huntingdonshire District Council,20/09/2017,20/09/2017,217444,, 169.94 ,PREMIER PAPER GROUP LTD,CR424769,Printing,Paper,562,
http://statistics.data.gov.uk/id/local-authority/12UE,Huntingdonshire District Council,20/09/2017,20/09/2017,217444,7117285, 374.00 ,PREMIER PAPER GROUP LTD,CR424769,Printing,Paper,562,
http://statistics.data.gov.uk/id/local-authority/12UE,Huntingdonshire District Council,13/09/2017,14/09/2017,217093,67736, 539.17 ,PILGRIM FOODSERVICE LTD,CR455695,Hinchingbrooke Park Cafe,Catering Materials,559,
http://statistics.data.gov.uk/id/local-authority/12UE,Huntingdonshire District Council,11/09/2017,11/09/2017,216895,, 50.00 ,CALLCREDIT LTD,CR455548,Finance,Enquiries,723,
http://statistics.data.gov.uk/id/local-authority/12UE,Huntingdonshire District Council,11/09/2017,11/09/2017,216895,, 25.00 ,CALLCREDIT LTD,CR455548,Housing Needs & Resources,Enquiries,723,
http://statistics.data.gov.uk/id/local-authority/12UE,Huntingdonshire District Council,11/09/2017,11/09/2017,216895,, 464.00 ,CALLCREDIT LTD,CR455548,Benefits Management,Enquiries,723,
http://statistics.data.gov.uk/id/local-authority/12UE,Huntingdonshire District Council,19/09/2017,20/09/2017,217387,, 537.00 ,YOURMEMBERSHIP LTD,CR424930,Business & Enterprise Support,Consultants,711,
http://statistics.data.gov.uk/id/local-authority/12UE,Huntingdonshire District Council,07/09/2017,07/09/2017,216646,9841, 531.00 ,PLATFORM SERVICE & REPAIR LTD,CR424629,Site & Centre Management,Equipment Maintenance,511,
http://statistics.data.gov.uk/id/local-authority/12UE,Huntingdonshire District Council,14/09/2017,14/09/2017,217174,, 530.46 ,FIRST RECRUITMENT GROUP LTD,CR424012,Finance,Hired Staff,100,
http://statistics.data.gov.uk/id/local-authority/12UE,Huntingdonshire District Council,06/09/2017,06/09/2017,216611,941403268, 529.04 ,NAVIGATORS & GENERAL,CR455204,Paxton Pits,Vehicle Insurance,610,
http://statistics.data.gov.uk/id/local-authority/12UE,Huntingdonshire District Council,13/09/2017,22/09/2017,217006,, 528.64 ,STR GROUP,CR424704,Imd Shared Service,Hired Staff,100,
http://statistics.data.gov.uk/id/local-authority/12UE,Huntingdonshire District Council,26/09/2017,28/09/2017,217363,, 525.00 ,APSE,CR479836,Head Of Operations,Conferences,137,
http://statistics.data.gov.uk/id/local-authority/12UE,Huntingdonshire District Council,29/09/2017,29/09/2017,218077,65919, 523.78 ,KONICA MINOLTA,CR478866,Site & Centre Management,Equipment,500,
http://statistics.data.gov.uk/id/local-authority/12UE,Huntingdonshire District Council,06/09/2017,07/09/2017,216658,19899, 520.00 ,ALEXANDERS,CR415843,Homelessness,Removal/Storage,750,
http://statistics.data.gov.uk/id/local-authority/12UE,Huntingdonshire District Council,18/09/2017,18/09/2017,217324,119438, 510.00 ,ENVIROCURE LTD,CR424614,St Ives Enterprise Centre,Building Mtce,303,
http://statistics.data.gov.uk/id/local-authority/12UE,Huntingdonshire District Council,28/09/2017,28/09/2017,217706,, 510.00 ,SMI GROUP,CR423139,Domestic Waste Collection,Protective Clothing & Uniforms,163,
http://statistics.data.gov.uk/id/local-authority/12UE,Huntingdonshire District Council,27/09/2017,27/09/2017,217786,1132885561, 499.50 ,NEOPOST,CR400652,Post Handling,Equipment Maintenance,511,
http://statistics.data.gov.uk/id/local-authority/12UE,Huntingdonshire District Council,19/09/2017,20/09/2017,216608,28792, 499.00 ,STERLING HYDROTECH LTD,CR422914,Hunt Leis C -Gen Improve (Cs),Consultants,711,
http://statistics.data.gov.uk/id/local-authority/12UE,Huntingdonshire District Council,14/09/2017,14/09/2017,216993,B000000016269, 495.41 ,TOTAL KARE HDWS LTD,CR408287,Vehicle Maintenance,Materials,550,
http://statistics.data.gov.uk/id/local-authority/12UE,Huntingdonshire District Council,07/09/2017,07/09/2017,216502,, 488.03 ,STAFFLINE GROUP,CR416827,Recycling Collections,Hired Staff,100,
http://statistics.data.gov.uk/id/local-authority/12UE,Huntingdonshire District Council,07/09/2017,07/09/2017,216506,, 488.03 ,STAFFLINE GROUP,CR416827,Recycling Collections,Hired Staff,100,
http://statistics.data.gov.uk/id/local-authority/12UE,Huntingdonshire District Council,14/09/2017,14/09/2017,215502,2017059037, 486.00 ,RLSS DIRECT,CR401615,Site & Centre Management,Materials,550,
http://statistics.data.gov.uk/id/local-authority/12UE,Huntingdonshire District Council,05/09/2017,07/09/2017,216527,LA453905, 480.00 ,IT TALENT SOLUTIONS LTD,CR482676,Imd Shared Service,Hired Staff,100,
http://statistics.data.gov.uk/id/local-authority/12UE,Huntingdonshire District Council,07/09/2017,07/09/2017,216625,4578648, 480.00 ,LEISURE INNOVATIONS LIMITED,CR422869,Site & Centre Management,Building Mtce,303,
http://statistics.data.gov.uk/id/local-authority/12UE,Huntingdonshire District Council,14/09/2017,14/09/2017,216873,532173, 480.00 ,BSG PROPERTY SERVICES LTD,CR089905,Disabled Facilities Grants,Mandatory Grants,801,
http://statistics.data.gov.uk/id/local-authority/12UE,Huntingdonshire District Council,05/09/2017,07/09/2017,216449,, 475.00 ,IDOX,CR481134,Imd Shared Service,Consultants,711,
http://statistics.data.gov.uk/id/local-authority/12UE,Huntingdonshire District Council,06/09/2017,07/09/2017,216654,519888, 475.00 ,BRIDGE FIBRE LIMITED,CR424041,The Club Alconbury Weald,Building Mtce,303,
http://statistics.data.gov.uk/id/local-authority/12UE,Huntingdonshire District Council,27/09/2017,28/09/2017,217800,IEG4001501, 475.00 ,IDOX,CR481134,Ccity Recharge Invoices,Consultants,711,
http://statistics.data.gov.uk/id/local-authority/12UE,Huntingdonshire District Council,07/09/2017,07/09/2017,216458,17-051-001, 471.68 ,BCW OFFICE PRODUCTS LTD,CR480889,Huntingdon Market,Signs,565,
http://statistics.data.gov.uk/id/local-authority/12UE,Huntingdonshire District Council,20/09/2017,21/09/2017,217069,11453287, 156.52 ,MURKETTS OF CAMBRIDGE LTD,CR145919,Car Parks Operational Mgt,Vehicle Parts & Fittings,625,
http://statistics.data.gov.uk/id/local-authority/12UE,Huntingdonshire District Council,20/09/2017,21/09/2017,217069,11453287, 156.52 ,MURKETTS OF CAMBRIDGE LTD,CR145919,Car Parks Operational Mgt,Vehicle Parts & Fittings,625,
http://statistics.data.gov.uk/id/local-authority/12UE,Huntingdonshire District Council,20/09/2017,21/09/2017,217069,SEP17/18PRECEPT, 156.52 ,MURKETTS OF CAMBRIDGE LTD,CR145919,Trade Refuse,Vehicle Parts & Fittings,625,
http://statistics.data.gov.uk/id/local-authority/12UE,Huntingdonshire District Council,06/09/2017,06/09/2017,216612,, 469.16 ,FIRST RECRUITMENT GROUP LTD,CR424012,Finance,Hired Staff,100,
http://statistics.data.gov.uk/id/local-authority/12UE,Huntingdonshire District Council,21/09/2017,21/09/2017,217469,, 469.16 ,FIRST RECRUITMENT GROUP LTD,CR424012,Finance,Hired Staff,100,
http://statistics.data.gov.uk/id/local-authority/12UE,Huntingdonshire District Council,28/09/2017,28/09/2017,217756,372509, 468.93 ,LACONS,CR422174,Hospitality,Bar Provisions,558,
http://statistics.data.gov.uk/id/local-authority/12UE,Huntingdonshire District Council,29/09/2017,29/09/2017,218078,82762609, 467.05 ,PERSONAL DATA REDACTED,CR455646,Burgess Hall,Equipment Maintenance,511,
http://statistics.data.gov.uk/id/local-authority/12UE,Huntingdonshire District Council,14/09/2017,14/09/2017,216845,131410742, 462.74 ,CHASSIS-CAB LTD,CR422248,Street Cleansing,Vehicle Accident Damage,623,
http://statistics.data.gov.uk/id/local-authority/12UE,Huntingdonshire District Council,12/09/2017,13/09/2017,216860,262044, 121.12 ,SLUSH PUPPIE LTD,CR455958,Hospitality,Materials,550,
http://statistics.data.gov.uk/id/local-authority/12UE,Huntingdonshire District Council,12/09/2017,13/09/2017,216860,62281, 341.55 ,SLUSH PUPPIE LTD,CR455958,Hospitality,Catering Materials,559,
http://statistics.data.gov.uk/id/local-authority/12UE,Huntingdonshire District Council,21/09/2017,21/09/2017,217513,90306214, 454.29 ,CAMBRIDGESHIRE COUNTY COUNCIL,CR006678,Markets Management,Advertising/Promoting Services,255,
http://statistics.data.gov.uk/id/local-authority/12UE,Huntingdonshire District Council,07/09/2017,07/09/2017,615213,, 452.30 ,ST IVES TOWN COUNCIL,CR000701,St Ives Bus Station,Building Cleaning,440,
http://statistics.data.gov.uk/id/local-authority/12UE,Huntingdonshire District Council,18/09/2017,21/09/2017,217326,SIN084556, 450.00 ,CBS SECURITY & REMOTE MONITORING LTD,CR424785,Cctv Shared Service Hosting,Equipment Maintenance,511,
http://statistics.data.gov.uk/id/local-authority/12UE,Huntingdonshire District Council,19/09/2017,20/09/2017,217360,82768422, 450.00 ,READING AGRICULTURAL CONSULTANTS,CR404991,Dm Application Processing,Consultants,711,
http://statistics.data.gov.uk/id/local-authority/12UE,Huntingdonshire District Council,13/09/2017,14/09/2017,217095,18015, 447.68 ,THE CHILDREN'S PLAYGROUND CO LTD,CR455321,Parks & Open Spaces,Playground Equipment,360,
http://statistics.data.gov.uk/id/local-authority/12UE,Huntingdonshire District Council,21/09/2017,25/09/2017,217399,3498763, 34.65 ,BIST,CR422733,Imd Shared Service,Other I T Hardware,203,
http://statistics.data.gov.uk/id/local-authority/12UE,Huntingdonshire District Council,21/09/2017,25/09/2017,217399,489652, 412.00 ,BIST,CR422733,Imd Shared Service,Other I T Hardware,203,
http://statistics.data.gov.uk/id/local-authority/12UE,Huntingdonshire District Council,19/09/2017,20/09/2017,217357,375729, 410.71 ,LACONS,CR422174,Hospitality,Bar Provisions,558,
http://statistics.data.gov.uk/id/local-authority/12UE,Huntingdonshire District Council,19/09/2017,20/09/2017,217357,372509, 32.00 ,LACONS,CR422174,Hospitality,Gas Cylinders (Incl. Bars),567,
http://statistics.data.gov.uk/id/local-authority/12UE,Huntingdonshire District Council,06/09/2017,07/09/2017,216258,7-08 975, 288.65 ,COMPLETE BOWLING SERVICES LTD,CR424631,St Ivo - General Improve (Cs),Building Mtce,303,
http://statistics.data.gov.uk/id/local-authority/12UE,Huntingdonshire District Council,06/09/2017,07/09/2017,216258,7-08 975, 154.00 ,COMPLETE BOWLING SERVICES LTD,CR424631,St Ivo - General Improve (Cs),Equipment,500,
http://statistics.data.gov.uk/id/local-authority/12UE,Huntingdonshire District Council,21/09/2017,22/09/2017,217459,91395741, 441.00 ,NORTHGATEPUBLIC SERVICES UK LTD,CR028925,Scdc Recharge Invoices,Software,206,
http://statistics.data.gov.uk/id/local-authority/12UE,Huntingdonshire District Council,06/09/2017,07/09/2017,216620,4578648, 336.00 ,ARCHANT COMMUNITY MEDIA LTD,CR452143,Leisure Centre Corporate Mngmt,Advertising/Promoting Services,255,
http://statistics.data.gov.uk/id/local-authority/12UE,Huntingdonshire District Council,06/09/2017,07/09/2017,216620,IK1364683, 101.45 ,ARCHANT COMMUNITY MEDIA LTD,CR452143,Burgess Hall,Advertising/Promoting Services,255,
http://statistics.data.gov.uk/id/local-authority/12UE,Huntingdonshire District Council,26/09/2017,28/09/2017,216904,62276, 434.69 ,ECOCLEEN SERVICES LIMITED,CR406985,Hinchingbrooke Park Management,Building Cleaning,440,
http://statistics.data.gov.uk/id/local-authority/12UE,Huntingdonshire District Council,04/09/2017,07/09/2017,216280,401278, 433.95 ,BROOKES,CR422866,Pathfinder House,Catering,710,
http://statistics.data.gov.uk/id/local-authority/12UE,Huntingdonshire District Council,06/09/2017,07/09/2017,215499,957726, 430.00 ,BIGPRINTING,CR416383,Leisure Centre Corporate Mngmt,Advertising/Promoting Services,255,
http://statistics.data.gov.uk/id/local-authority/12UE,Huntingdonshire District Council,27/09/2017,28/09/2017,217634,1700149, 429.25 ,BRENNTAG UK LTD,CR015017,Swimming,Chemicals,551,
http://statistics.data.gov.uk/id/local-authority/12UE,Huntingdonshire District Council,05/09/2017,07/09/2017,216485,PS10035657, 425.00 ,NORTHGATEPUBLIC SERVICES UK LTD,CR028925,Ccity Recharge Invoices,Consultants,711,
http://statistics.data.gov.uk/id/local-authority/12UE,Huntingdonshire District Council,12/09/2017,13/09/2017,216898,COURSE 20/9, 420.70 ,B. S. GRAVES ELECTRICAL LTD,CR000363,Pathfinder House,Building Mtce,303,
http://statistics.data.gov.uk/id/local-authority/12UE,Huntingdonshire District Council,13/09/2017,22/09/2017,217016,, 420.00 ,COVERGOLD,CR032731,Hdc Recharge Invoices,Equipment Maintenance,511,
http://statistics.data.gov.uk/id/local-authority/12UE,Huntingdonshire District Council,14/09/2017,14/09/2017,216893,, 419.80 ,SMI GROUP,CR423139,Grounds Maintenance,Protective Clothing & Uniforms,163,
http://statistics.data.gov.uk/id/local-authority/12UE,Huntingdonshire District Council,06/09/2017,07/09/2017,216487,1373, 104.17 ,WAMO SPORTS LTD,CR423559,Indoor Sports,Licences,730,
http://statistics.data.gov.uk/id/local-authority/12UE,Huntingdonshire District Council,06/09/2017,07/09/2017,216487,, 104.17 ,WAMO SPORTS LTD,CR423559,Indoor Sports,Licences,730,
http://statistics.data.gov.uk/id/local-authority/12UE,Huntingdonshire District Council,06/09/2017,07/09/2017,216487,17010457, 104.17 ,WAMO SPORTS LTD,CR423559,Indoor Sports,Licences,730,
http://statistics.data.gov.uk/id/local-authority/12UE,Huntingdonshire District Council,06/09/2017,07/09/2017,216487,, 52.08 ,WAMO SPORTS LTD,CR423559,Indoor Sports,Licences,730,
http://statistics.data.gov.uk/id/local-authority/12UE,Huntingdonshire District Council,06/09/2017,07/09/2017,216487,, 52.08 ,WAMO SPORTS LTD,CR423559,Indoor Sports,Licences,730,
http://statistics.data.gov.uk/id/local-authority/12UE,Huntingdonshire District Council,06/09/2017,07/09/2017,216488,38SI 3853329, 104.17 ,WAMO SPORTS LTD,CR423559,Indoor Sports,Licences,730,
http://statistics.data.gov.uk/id/local-authority/12UE,Huntingdonshire District Council,06/09/2017,07/09/2017,216488,, 104.17 ,WAMO SPORTS LTD,CR423559,Indoor Sports,Licences,730,
http://statistics.data.gov.uk/id/local-authority/12UE,Huntingdonshire District Council,06/09/2017,07/09/2017,216488,17009985, 104.17 ,WAMO SPORTS LTD,CR423559,Indoor Sports,Licences,730,
http://statistics.data.gov.uk/id/local-authority/12UE,Huntingdonshire District Council,06/09/2017,07/09/2017,216488,, 52.08 ,WAMO SPORTS LTD,CR423559,Indoor Sports,Licences,730,
http://statistics.data.gov.uk/id/local-authority/12UE,Huntingdonshire District Council,06/09/2017,07/09/2017,216488,219, 52.08 ,WAMO SPORTS LTD,CR423559,Indoor Sports,Licences,730,
http://statistics.data.gov.uk/id/local-authority/12UE,Huntingdonshire District Council,27/09/2017,28/09/2017,217752,I173134, 415.48 ,ABEL ALARM COMPANY LTD,CR000201,Site & Centre Management,Fire & Security,450,
http://statistics.data.gov.uk/id/local-authority/12UE,Huntingdonshire District Council,27/09/2017,27/09/2017,217839,7136630, 284.88 ,ANTALIS LTD,CR479468,Printing,Paper,562,
http://statistics.data.gov.uk/id/local-authority/12UE,Huntingdonshire District Council,27/09/2017,27/09/2017,217839,7136630, 60.36 ,ANTALIS LTD,CR479468,Printing,Paper,562,
http://statistics.data.gov.uk/id/local-authority/12UE,Huntingdonshire District Council,27/09/2017,27/09/2017,217839,15504, 68.06 ,ANTALIS LTD,CR479468,Printing,Envelopes,224,
http://statistics.data.gov.uk/id/local-authority/12UE,Huntingdonshire District Council,12/09/2017,13/09/2017,217061,, 22.34 ,BOOKER CASH AND CARRY,CR027611,Hinchingbrooke Park Cafe,Materials,550,
http://statistics.data.gov.uk/id/local-authority/12UE,Huntingdonshire District Council,12/09/2017,13/09/2017,217061,301509, 183.42 ,BOOKER CASH AND CARRY,CR027611,Hinchingbrooke Park Cafe,Catering Materials,559,
http://statistics.data.gov.uk/id/local-authority/12UE,Huntingdonshire District Council,12/09/2017,13/09/2017,217061,921110, 206.70 ,BOOKER CASH AND CARRY,CR027611,Hinchingbrooke Park Cafe,Catering Materials,559,
http://statistics.data.gov.uk/id/local-authority/12UE,Huntingdonshire District Council,06/09/2017,07/09/2017,216623,, 410.00 ,CLUBNET LIMITED,CR422543,Leisure Centre Corporate Mngmt,Advertising/Promoting Services,255,
http://statistics.data.gov.uk/id/local-authority/12UE,Huntingdonshire District Council,06/09/2017,06/09/2017,216588,248826, 17.50 ,ENVIROCURE LTD,CR424614,Eastfield House,Building Mtce,303,
http://statistics.data.gov.uk/id/local-authority/12UE,Huntingdonshire District Council,06/09/2017,06/09/2017,216588,, 35.00 ,ENVIROCURE LTD,CR424614,Site & Centre Management,Building Mtce,303,
http://statistics.data.gov.uk/id/local-authority/12UE,Huntingdonshire District Council,06/09/2017,06/09/2017,216588,IK1367414, 52.50 ,ENVIROCURE LTD,CR424614,Site & Centre Management,Building Mtce,303,
http://statistics.data.gov.uk/id/local-authority/12UE,Huntingdonshire District Council,06/09/2017,06/09/2017,216588,84374, 35.00 ,ENVIROCURE LTD,CR424614,Site & Centre Management,Building Mtce,303,
http://statistics.data.gov.uk/id/local-authority/12UE,Huntingdonshire District Council,06/09/2017,06/09/2017,216588,379545, 35.00 ,ENVIROCURE LTD,CR424614,Site & Centre Management,Building Mtce,303,
http://statistics.data.gov.uk/id/local-authority/12UE,Huntingdonshire District Council,06/09/2017,06/09/2017,216588,PERSONAL DATA REDACTED, 35.00 ,ENVIROCURE LTD,CR424614,Site & Centre Management,Building Mtce,303,
http://statistics.data.gov.uk/id/local-authority/12UE,Huntingdonshire District Council,06/09/2017,06/09/2017,216588,INV-0075, 35.00 ,ENVIROCURE LTD,CR424614,Site & Centre Management,Building Mtce,303,
http://statistics.data.gov.uk/id/local-authority/12UE,Huntingdonshire District Council,06/09/2017,06/09/2017,216588,16946, 17.50 ,ENVIROCURE LTD,CR424614,Hinchingbrooke Park Cafe,Building Mtce,303,
http://statistics.data.gov.uk/id/local-authority/12UE,Huntingdonshire District Council,06/09/2017,06/09/2017,216588,08-Aug-17, 35.00 ,ENVIROCURE LTD,CR424614,Paxton Pits,Building Mtce,303,
http://statistics.data.gov.uk/id/local-authority/12UE,Huntingdonshire District Council,06/09/2017,06/09/2017,216588,, 17.50 ,ENVIROCURE LTD,CR424614,Parks & Open Spaces,Building Mtce,303,
http://statistics.data.gov.uk/id/local-authority/12UE,Huntingdonshire District Council,06/09/2017,06/09/2017,216588,HUNTSDC, 17.50 ,ENVIROCURE LTD,CR424614,Parks & Open Spaces,Building Mtce,303,
http://statistics.data.gov.uk/id/local-authority/12UE,Huntingdonshire District Council,06/09/2017,06/09/2017,216588,CN-4772, 17.50 ,ENVIROCURE LTD,CR424614,Parks & Open Spaces,Building Mtce,303,
http://statistics.data.gov.uk/id/local-authority/12UE,Huntingdonshire District Council,06/09/2017,06/09/2017,216588,MC15381989/01, 52.50 ,ENVIROCURE LTD,CR424614,Pathfinder House,Building Mtce,303,
http://statistics.data.gov.uk/id/local-authority/12UE,Huntingdonshire District Council,06/09/2017,06/09/2017,216589,24825, 17.50 ,ENVIROCURE LTD,CR424614,Eastfield House,Building Mtce,303,
http://statistics.data.gov.uk/id/local-authority/12UE,Huntingdonshire District Council,06/09/2017,06/09/2017,216589,PERSONAL DATA REDACTED, 35.00 ,ENVIROCURE LTD,CR424614,Site & Centre Management,Building Mtce,303,
http://statistics.data.gov.uk/id/local-authority/12UE,Huntingdonshire District Council,06/09/2017,06/09/2017,216589,IK1368899, 52.50 ,ENVIROCURE LTD,CR424614,Site & Centre Management,Building Mtce,303,
http://statistics.data.gov.uk/id/local-authority/12UE,Huntingdonshire District Council,06/09/2017,06/09/2017,216589,84509, 35.00 ,ENVIROCURE LTD,CR424614,Site & Centre Management,Building Mtce,303,
http://statistics.data.gov.uk/id/local-authority/12UE,Huntingdonshire District Council,06/09/2017,06/09/2017,216589,362683, 35.00 ,ENVIROCURE LTD,CR424614,Site & Centre Management,Building Mtce,303,
http://statistics.data.gov.uk/id/local-authority/12UE,Huntingdonshire District Council,06/09/2017,06/09/2017,216589,1349669, 35.00 ,ENVIROCURE LTD,CR424614,Site & Centre Management,Building Mtce,303,
http://statistics.data.gov.uk/id/local-authority/12UE,Huntingdonshire District Council,06/09/2017,06/09/2017,216589,INV0084, 35.00 ,ENVIROCURE LTD,CR424614,Site & Centre Management,Building Mtce,303,
http://statistics.data.gov.uk/id/local-authority/12UE,Huntingdonshire District Council,06/09/2017,06/09/2017,216589,, 17.50 ,ENVIROCURE LTD,CR424614,Hinchingbrooke Park Cafe,Building Mtce,303,
http://statistics.data.gov.uk/id/local-authority/12UE,Huntingdonshire District Council,06/09/2017,06/09/2017,216589,PERSONAL DATA REDACTED, 35.00 ,ENVIROCURE LTD,CR424614,Paxton Pits,Building Mtce,303,
http://statistics.data.gov.uk/id/local-authority/12UE,Huntingdonshire District Council,06/09/2017,06/09/2017,216589,COUNTRYSIDE, 17.50 ,ENVIROCURE LTD,CR424614,Parks & Open Spaces,Building Mtce,303,
http://statistics.data.gov.uk/id/local-authority/12UE,Huntingdonshire District Council,06/09/2017,06/09/2017,216589,HUNTSDC, 17.50 ,ENVIROCURE LTD,CR424614,Parks & Open Spaces,Building Mtce,303,
http://statistics.data.gov.uk/id/local-authority/12UE,Huntingdonshire District Council,06/09/2017,06/09/2017,216589,18008, 17.50 ,ENVIROCURE LTD,CR424614,Parks & Open Spaces,Building Mtce,303,
http://statistics.data.gov.uk/id/local-authority/12UE,Huntingdonshire District Council,06/09/2017,06/09/2017,216589,299704401, 52.50 ,ENVIROCURE LTD,CR424614,Pathfinder House,Building Mtce,303,
http://statistics.data.gov.uk/id/local-authority/12UE,Huntingdonshire District Council,27/09/2017,28/09/2017,217642,18015, 199.90 ,ESPO,CR006566,Site & Centre Management,Cleaning Materials,443,
http://statistics.data.gov.uk/id/local-authority/12UE,Huntingdonshire District Council,27/09/2017,28/09/2017,217642,1132785794, 84.17 ,ESPO,CR006566,Site & Centre Management,Materials,550,
http://statistics.data.gov.uk/id/local-authority/12UE,Huntingdonshire District Council,27/09/2017,28/09/2017,217642,42291, 111.74 ,ESPO,CR006566,Site & Centre Management,Stationery,225,
http://statistics.data.gov.uk/id/local-authority/12UE,Huntingdonshire District Council,08/09/2017,08/09/2017,216453,, 395.70 ,MEYER SCOTT RECRUITMENT LIMITED,CR422369,Customer Service Centres,Hired Staff,100,
http://statistics.data.gov.uk/id/local-authority/12UE,Huntingdonshire District Council,21/09/2017,21/09/2017,217488,, 391.85 ,LIFE FITNESS UK LTD,CR004396,Impressions,Equipment Maintenance,511,
http://statistics.data.gov.uk/id/local-authority/12UE,Huntingdonshire District Council,13/09/2017,14/09/2017,217081,2103865390, 383.59 ,KING BROS,CR411339,Hinchingbrooke Park Cafe,Catering Materials,559,
http://statistics.data.gov.uk/id/local-authority/12UE,Huntingdonshire District Council,13/09/2017,13/09/2017,216979,282753, 382.31 ,E-ON ENERGY,CR416430,Pathfinder House,Gas,421,
http://statistics.data.gov.uk/id/local-authority/12UE,Huntingdonshire District Council,06/09/2017,07/09/2017,216539,296, 379.17 ,JAZ YORKS LTD,CR160753,Homelessness,Bed & Breakfast Payment,818,
http://statistics.data.gov.uk/id/local-authority/12UE,Huntingdonshire District Council,14/09/2017,14/09/2017,216956,297, 379.17 ,JAZ YORKS LTD,CR160753,Homelessness,Bed & Breakfast Payment,818,
http://statistics.data.gov.uk/id/local-authority/12UE,Huntingdonshire District Council,12/09/2017,13/09/2017,216903,, 378.00 ,HI-SPEC FACILITIES SERVICES PLC,CR423413,Pathfinder House,Building Cleaning,440,
http://statistics.data.gov.uk/id/local-authority/12UE,Huntingdonshire District Council,13/09/2017,13/09/2017,216986,9860, 375.00 ,E-ON ENERGY,CR416430,Site & Centre Management,Gas,421,
http://statistics.data.gov.uk/id/local-authority/12UE,Huntingdonshire District Council,14/09/2017,14/09/2017,217173,, 374.06 ,FIRST RECRUITMENT GROUP LTD,CR424012,Finance,Hired Staff,100,
http://statistics.data.gov.uk/id/local-authority/12UE,Huntingdonshire District Council,20/09/2017,21/09/2017,217150,80063623, 146.91 ,RED FORGE LTD,CR405690,Street Cleansing,Vehicle Parts & Fittings,625,
http://statistics.data.gov.uk/id/local-authority/12UE,Huntingdonshire District Council,20/09/2017,21/09/2017,217150,9941, 146.91 ,RED FORGE LTD,CR405690,Domestic Waste Collection,Vehicle Parts & Fittings,625,
http://statistics.data.gov.uk/id/local-authority/12UE,Huntingdonshire District Council,20/09/2017,21/09/2017,217150,DE11069806, 77.91 ,RED FORGE LTD,CR405690,Domestic Waste Collection,Vehicle Parts & Fittings,625,
http://statistics.data.gov.uk/id/local-authority/12UE,Huntingdonshire District Council,19/09/2017,21/09/2017,217416,116157, 370.00 ,IAN'S TYRE & EXHAUST CENTRE,CR405836,Grounds Maintenance,Vehicle Parts & Fittings,625,
http://statistics.data.gov.uk/id/local-authority/12UE,Huntingdonshire District Council,04/09/2017,07/09/2017,216473,INV17408, 110.50 ,G&C COACHWORKS LTD,CR455755,Recycling Collections,Vehicle Parts & Fittings,625,
http://statistics.data.gov.uk/id/local-authority/12UE,Huntingdonshire District Council,04/09/2017,07/09/2017,216473,INV17408, 257.81 ,G&C COACHWORKS LTD,CR455755,Domestic Waste Collection,Vehicle Parts & Fittings,625,
http://statistics.data.gov.uk/id/local-authority/12UE,Huntingdonshire District Council,12/09/2017,13/09/2017,217030,17914, 366.78 ,A C COMMERCIALS,CR000141,Grounds Maintenance,Vehicle Parts & Fittings,625,
http://statistics.data.gov.uk/id/local-authority/12UE,Huntingdonshire District Council,26/09/2017,28/09/2017,216456,DE11070145, 366.04 ,DENNIS EAGLE LTD,CR000200,Domestic Waste Collection,Vehicle Parts & Fittings,625,
http://statistics.data.gov.uk/id/local-authority/12UE,Huntingdonshire District Council,14/09/2017,14/09/2017,216424,, 365.88 ,ARTHUR IBBETT LTD,CR000430,Facilities,Materials,550,
http://statistics.data.gov.uk/id/local-authority/12UE,Huntingdonshire District Council,13/09/2017,22/09/2017,217002,, 360.00 ,IT TALENT SOLUTIONS LTD,CR482676,Imd Shared Service,Hired Staff,100,
http://statistics.data.gov.uk/id/local-authority/12UE,Huntingdonshire District Council,27/09/2017,28/09/2017,217745,177911, 360.00 ,BIGPRINTING,CR416383,Leisure Centre Corporate Mngmt,Advertising/Promoting Services,255,
http://statistics.data.gov.uk/id/local-authority/12UE,Huntingdonshire District Council,27/09/2017,28/09/2017,217791,, 356.00 ,INSIGHT DIRECT UK LTD,CR000242,Imd Shared Service,I T Line Rental,248,
http://statistics.data.gov.uk/id/local-authority/12UE,Huntingdonshire District Council,29/09/2017,29/09/2017,218082,138094, 356.00 ,BARNET POOL MAINTENANCE LTD,CR412070,Site & Centre Management,Building Mtce,303,
http://statistics.data.gov.uk/id/local-authority/12UE,Huntingdonshire District Council,26/09/2017,28/09/2017,217390,DE11068838, 353.40 ,DENNIS EAGLE LTD,CR000200,Domestic Waste Collection,Vehicle Parts & Fittings,625,
http://statistics.data.gov.uk/id/local-authority/12UE,Huntingdonshire District Council,14/09/2017,14/09/2017,215768,17866, 353.34 ,KONICA MINOLTA,CR478866,Leisure Centre Corporate Mngmt,Equipment,500,
http://statistics.data.gov.uk/id/local-authority/12UE,Huntingdonshire District Council,21/09/2017,25/09/2017,217484,14293, 352.39 ,PLAYFORDS LTD,CR479055,St Ivo Lc-Outdoor Gen Mtce(Cs),Equipment Maintenance,511,
http://statistics.data.gov.uk/id/local-authority/12UE,Huntingdonshire District Council,04/09/2017,07/09/2017,216227,9941, 70.00 ,BARTON PETROLEUM,CR409205,Recycling Collections,Vehicle Oil & Lubricants,626,
http://statistics.data.gov.uk/id/local-authority/12UE,Huntingdonshire District Council,04/09/2017,07/09/2017,216227,309123, 280.00 ,BARTON PETROLEUM,CR409205,Domestic Waste Collection,Vehicle Oil & Lubricants,626,
http://statistics.data.gov.uk/id/local-authority/12UE,Huntingdonshire District Council,26/09/2017,28/09/2017,217373,DE11056249, 105.00 ,BARTON PETROLEUM,CR409205,Recycling Collections,Vehicle Oil & Lubricants,626,
http://statistics.data.gov.uk/id/local-authority/12UE,Huntingdonshire District Council,26/09/2017,28/09/2017,217373,INV17409, 245.00 ,BARTON PETROLEUM,CR409205,Domestic Waste Collection,Vehicle Oil & Lubricants,626,
http://statistics.data.gov.uk/id/local-authority/12UE,Huntingdonshire District Council,06/09/2017,07/09/2017,615135,298, 348.25 ,STEVES TAXIS & PRIVATE HIRE,CR155956,Homelessness,Travel Expenses,636,
http://statistics.data.gov.uk/id/local-authority/12UE,Huntingdonshire District Council,11/09/2017,11/09/2017,216875,62917, 23.99 ,DIGITAL ID LIMITED,CR453985,Pathfinder House,Equipment,500,
http://statistics.data.gov.uk/id/local-authority/12UE,Huntingdonshire District Council,11/09/2017,11/09/2017,216875,, 7.95 ,DIGITAL ID LIMITED,CR453985,Pathfinder House,Equipment,500,
http://statistics.data.gov.uk/id/local-authority/12UE,Huntingdonshire District Council,11/09/2017,11/09/2017,216875,, 59.50 ,DIGITAL ID LIMITED,CR453985,Pathfinder House,Equipment,500,
http://statistics.data.gov.uk/id/local-authority/12UE,Huntingdonshire District Council,11/09/2017,11/09/2017,216875,65912, 83.98 ,DIGITAL ID LIMITED,CR453985,Pathfinder House,Equipment,500,
http://statistics.data.gov.uk/id/local-authority/12UE,Huntingdonshire District Council,11/09/2017,11/09/2017,216875,, 161.94 ,DIGITAL ID LIMITED,CR453985,Pathfinder House,Equipment,500,
http://statistics.data.gov.uk/id/local-authority/12UE,Huntingdonshire District Council,11/09/2017,11/09/2017,216875,13313569100, 8.95 ,DIGITAL ID LIMITED,CR453985,Pathfinder House,Postage,231,
http://statistics.data.gov.uk/id/local-authority/12UE,Huntingdonshire District Council,01/09/2017,01/09/2017,216435,IN16PS17004743, 344.74 ,JACOBS,CR422350,Closedcounciltax Mgmt-Use Hb85,Bailiffs,703,
http://statistics.data.gov.uk/id/local-authority/12UE,Huntingdonshire District Council,12/09/2017,13/09/2017,216905,564408, 343.53 ,ECOCLEEN SERVICES LIMITED,CR406985,Huntingdon Multi-Storey,Building Cleaning,440,
http://statistics.data.gov.uk/id/local-authority/12UE,Huntingdonshire District Council,12/09/2017,13/09/2017,217100,561907, 343.53 ,ECOCLEEN SERVICES LIMITED,CR406985,Huntingdon Multi-Storey,Building Cleaning,440,
http://statistics.data.gov.uk/id/local-authority/12UE,Huntingdonshire District Council,28/09/2017,28/09/2017,217707,, 338.60 ,SMI GROUP,CR423139,Domestic Waste Collection,Protective Clothing & Uniforms,163,
http://statistics.data.gov.uk/id/local-authority/12UE,Huntingdonshire District Council,06/09/2017,07/09/2017,216181,, 11.62 ,SOUTH LINCS FOOD SERVICE,CR033415,Hospitality,Cleaning Materials,443,
http://statistics.data.gov.uk/id/local-authority/12UE,Huntingdonshire District Council,06/09/2017,07/09/2017,216181,QLA 19H006-0013, 56.21 ,SOUTH LINCS FOOD SERVICE,CR033415,Hospitality,Materials,550,
http://statistics.data.gov.uk/id/local-authority/12UE,Huntingdonshire District Council,06/09/2017,07/09/2017,216181,10516284, 267.94 ,SOUTH LINCS FOOD SERVICE,CR033415,Hospitality,Catering Materials,559,
http://statistics.data.gov.uk/id/local-authority/12UE,Huntingdonshire District Council,13/09/2017,22/09/2017,217014,INV1993, 333.57 ,NORTHGATEPUBLIC SERVICES UK LTD,CR028925,Scdc Recharge Invoices,Software,206,
http://statistics.data.gov.uk/id/local-authority/12UE,Huntingdonshire District Council,19/09/2017,20/09/2017,217338,683429, 330.00 ,WARBOYS SERVICES LTD,CR000841,Outdoor Sports,Equipment Maintenance,511,
http://statistics.data.gov.uk/id/local-authority/12UE,Huntingdonshire District Council,26/09/2017,28/09/2017,217659,34915, 328.46 ,DENNIS EAGLE LTD,CR000200,Recycling Collections,Vehicle Parts & Fittings,625,
http://statistics.data.gov.uk/id/local-authority/12UE,Huntingdonshire District Council,19/09/2017,21/09/2017,216910,24855, 328.00 ,B. S. GRAVES ELECTRICAL LTD,CR000363,Huntingdon Multi-Storey,Building Mtce,303,
http://statistics.data.gov.uk/id/local-authority/12UE,Huntingdonshire District Council,12/09/2017,13/09/2017,217059,301236, 290.63 ,BOOKER CASH AND CARRY,CR027611,Hinchingbrooke Park Cafe,Catering Materials,559,
http://statistics.data.gov.uk/id/local-authority/12UE,Huntingdonshire District Council,12/09/2017,13/09/2017,217059,301300, 35.78 ,BOOKER CASH AND CARRY,CR027611,Hinchingbrooke Park Cafe,Catering Materials,559,
http://statistics.data.gov.uk/id/local-authority/12UE,Huntingdonshire District Council,27/09/2017,28/09/2017,217804,3551546, 6.00 ,IRON MOUNTAIN UK LIMITED,CR424771,Ccity Recharge Invoices,Other I T Hardware,203,
http://statistics.data.gov.uk/id/local-authority/12UE,Huntingdonshire District Council,27/09/2017,28/09/2017,217804,3553406, 320.00 ,IRON MOUNTAIN UK LIMITED,CR424771,Ccity Recharge Invoices,Other I T Hardware,203,
http://statistics.data.gov.uk/id/local-authority/12UE,Huntingdonshire District Council,20/09/2017,21/09/2017,217136,, 315.00 ,MERRIDALE MIS FUEL MONITORING LTD,CR478577,Vehicle Maintenance,Equipment,500,
http://statistics.data.gov.uk/id/local-authority/12UE,Huntingdonshire District Council,20/09/2017,21/09/2017,217136,38304, 10.00 ,MERRIDALE MIS FUEL MONITORING LTD,CR478577,Vehicle Maintenance,Postage,231,
http://statistics.data.gov.uk/id/local-authority/12UE,Huntingdonshire District Council,19/09/2017,19/09/2017,615353,, 322.40 ,PERSONAL DATA REDACTED,CR168712,Markets Management,Equipment,500,
http://statistics.data.gov.uk/id/local-authority/12UE,Huntingdonshire District Council,14/09/2017,14/09/2017,216221,INV17408, 320.27 ,TERBERG MATEC UK LTD,CR402183,Domestic Waste Collection,Vehicle Accident Damage,623,
http://statistics.data.gov.uk/id/local-authority/12UE,Huntingdonshire District Council,26/09/2017,28/09/2017,217653,28757, 319.22 ,DENNIS EAGLE LTD,CR000200,Recycling Collections,Vehicle Parts & Fittings,625,
http://statistics.data.gov.uk/id/local-authority/12UE,Huntingdonshire District Council,21/09/2017,21/09/2017,217517,33217, 319.00 ,DATACENTRE UK,CR424739,Pathfinder House,Plant & Equipment Maintenance,380,
http://statistics.data.gov.uk/id/local-authority/12UE,Huntingdonshire District Council,12/09/2017,13/09/2017,217034,DE11067659, 318.41 ,A C COMMERCIALS,CR000141,Domestic Waste Collection,Vehicle Parts & Fittings,625,
http://statistics.data.gov.uk/id/local-authority/12UE,Huntingdonshire District Council,14/09/2017,14/09/2017,216849,10854276, 316.66 ,CHASSIS-CAB LTD,CR422248,Street Cleansing,Vehicle Accident Damage,623,
http://statistics.data.gov.uk/id/local-authority/12UE,Huntingdonshire District Council,28/09/2017,28/09/2017,217890,90450163, 316.56 ,MEYER SCOTT RECRUITMENT LIMITED,CR422369,Customer Service Centres,Hired Staff,100,
http://statistics.data.gov.uk/id/local-authority/12UE,Huntingdonshire District Council,19/09/2017,20/09/2017,217166,EI19H006-0017, 111.47 ,SLUSH PUPPIE LTD,CR455958,Hospitality,Materials,550,
http://statistics.data.gov.uk/id/local-authority/12UE,Huntingdonshire District Council,19/09/2017,20/09/2017,217166,10519896, 204.93 ,SLUSH PUPPIE LTD,CR455958,Hospitality,Catering Materials,559,
http://statistics.data.gov.uk/id/local-authority/12UE,Huntingdonshire District Council,14/09/2017,14/09/2017,213183,ASI47551, 313.60 ,TERBERG MATEC UK LTD,CR402183,Recycling Collections,Vehicle Accident Damage,623,
http://statistics.data.gov.uk/id/local-authority/12UE,Huntingdonshire District Council,28/09/2017,28/09/2017,217683,DE11063989, 313.60 ,TERBERG MATEC UK LTD,CR402183,Domestic Waste Collection,Vehicle Parts & Fittings,625,
http://statistics.data.gov.uk/id/local-authority/12UE,Huntingdonshire District Council,29/09/2017,29/09/2017,218083,80199, 313.14 ,OMEGA RED GROUP,CR411029,Site & Centre Management,Building Mtce,303,
http://statistics.data.gov.uk/id/local-authority/12UE,Huntingdonshire District Council,20/09/2017,21/09/2017,217149,10854274, 312.80 ,NIXON HIRE,CR424832,Grounds Maintenance,Vehicle Hire,607,
http://statistics.data.gov.uk/id/local-authority/12UE,Huntingdonshire District Council,19/09/2017,20/09/2017,217313,18008, 307.50 ,JSA LEISURE LTD,CR40187,Site & Centre Management,Building Mtce,303,
http://statistics.data.gov.uk/id/local-authority/12UE,Huntingdonshire District Council,04/09/2017,07/09/2017,216129,309629, 305.28 ,DENNIS EAGLE LTD,CR000200,Domestic Waste Collection,Vehicle Parts & Fittings,625,
http://statistics.data.gov.uk/id/local-authority/12UE,Huntingdonshire District Council,19/09/2017,20/09/2017,215409,373512, 305.13 ,SNACKLINE DIRECT LTD,CR478090,Hospitality,Vending Materials,560,
http://statistics.data.gov.uk/id/local-authority/12UE,Huntingdonshire District Council,13/09/2017,14/09/2017,217074,83005992, 303.31 ,MARSHALL MOTOR GROUP LTD,CR009641,Street Cleansing,Vehicle Parts & Fittings,625,
http://statistics.data.gov.uk/id/local-authority/12UE,Huntingdonshire District Council,21/09/2017,21/09/2017,217516,82150, 302.50 ,WARBOYS SERVICES LTD,CR000841,Outdoor Sports,Building Mtce,303,
http://statistics.data.gov.uk/id/local-authority/12UE,Huntingdonshire District Council,28/09/2017,28/09/2017,217854,15322074, 18.00 ,WESTMINSTER FOODSERVICE,CR455156,Hospitality,Materials,550,
http://statistics.data.gov.uk/id/local-authority/12UE,Huntingdonshire District Council,28/09/2017,28/09/2017,217854,10521892, 180.07 ,WESTMINSTER FOODSERVICE,CR455156,Hospitality,Bar Provisions,558,
http://statistics.data.gov.uk/id/local-authority/12UE,Huntingdonshire District Council,28/09/2017,28/09/2017,217854,376669, 104.22 ,WESTMINSTER FOODSERVICE,CR455156,Hospitality,Catering Materials,559,
http://statistics.data.gov.uk/id/local-authority/12UE,Huntingdonshire District Council,14/09/2017,14/09/2017,216638,328503102, 301.76 ,J P LENNARD LTD,CR028595,Indoor Sports,Equipment,500,
http://statistics.data.gov.uk/id/local-authority/12UE,Huntingdonshire District Council,12/09/2017,13/09/2017,216965,82609, 300.00 ,LOCAL WORLD LTD,CR000072,Burgess Hall,Advertising/Promoting Services,255,
http://statistics.data.gov.uk/id/local-authority/12UE,Huntingdonshire District Council,27/09/2017,27/09/2017,217825,10749783, 300.00 ,HELLIER LANGSTON LIMITED,CR424943,Commercial Investment Strategy,Consultants,711,
http://statistics.data.gov.uk/id/local-authority/12UE,Huntingdonshire District Council,28/09/2017,28/09/2017,217850,IK1367409, 299.05 ,SNACKLINE DIRECT LTD,CR478090,Hospitality,Vending Materials,560,
http://statistics.data.gov.uk/id/local-authority/12UE,Huntingdonshire District Council,05/09/2017,07/09/2017,615126,3541314, 299.00 ,PERSONAL DATA REDACTED,CR415497,Hdc Recharge Invoices,Software,206,
http://statistics.data.gov.uk/id/local-authority/12UE,Huntingdonshire District Council,08/09/2017,08/09/2017,216701,, 296.78 ,MEYER SCOTT RECRUITMENT LIMITED,CR422369,Customer Service Centres,Hired Staff,100,
http://statistics.data.gov.uk/id/local-authority/12UE,Huntingdonshire District Council,04/09/2017,07/09/2017,216461,957269599, 296.72 ,B. S. GRAVES ELECTRICAL LTD,CR000363,Eastfield House,Building Mtce,303,
http://statistics.data.gov.uk/id/local-authority/12UE,Huntingdonshire District Council,04/09/2017,07/09/2017,216463,4544932, 7.49 ,BOOKER CASH AND CARRY,CR027611,Hinchingbrooke Park Cafe,Materials,550,
http://statistics.data.gov.uk/id/local-authority/12UE,Huntingdonshire District Council,04/09/2017,07/09/2017,216463,59348, 286.25 ,BOOKER CASH AND CARRY,CR027611,Hinchingbrooke Park Cafe,Catering Materials,559,
http://statistics.data.gov.uk/id/local-authority/12UE,Huntingdonshire District Council,25/09/2017,28/09/2017,216943,, 293.16 ,P & M CUSTOM CLOTHING LTD,CR422681,Environmental Enforcement,Protective Clothing & Uniforms,163,
http://statistics.data.gov.uk/id/local-authority/12UE,Huntingdonshire District Council,28/09/2017,28/09/2017,217865,INV0084, 10.95 ,BOOKER CASH AND CARRY,CR027611,Hospitality,Materials,550,
http://statistics.data.gov.uk/id/local-authority/12UE,Huntingdonshire District Council,28/09/2017,28/09/2017,217865,375631, 15.66 ,BOOKER CASH AND CARRY,CR027611,Hospitality,Catering Materials,559,
http://statistics.data.gov.uk/id/local-authority/12UE,Huntingdonshire District Council,28/09/2017,28/09/2017,217865,41367, 49.28 ,BOOKER CASH AND CARRY,CR027611,Hospitality,Materials,550,
http://statistics.data.gov.uk/id/local-authority/12UE,Huntingdonshire District Council,28/09/2017,28/09/2017,217865,378691, 173.53 ,BOOKER CASH AND CARRY,CR027611,Hospitality,Bar Provisions,558,
http://statistics.data.gov.uk/id/local-authority/12UE,Huntingdonshire District Council,28/09/2017,28/09/2017,217865,84520, 43.35 ,BOOKER CASH AND CARRY,CR027611,Hospitality,Catering Materials,559,
http://statistics.data.gov.uk/id/local-authority/12UE,Huntingdonshire District Council,14/09/2017,14/09/2017,217120,HBKA 17/9, 291.19 ,SWALEC,CR407130,Paxton Pits,Electricity,420,
http://statistics.data.gov.uk/id/local-authority/12UE,Huntingdonshire District Council,07/09/2017,07/09/2017,216509,427792, 290.18 ,STAFFLINE GROUP,CR416827,Domestic Waste Collection,Hired Staff,100,
http://statistics.data.gov.uk/id/local-authority/12UE,Huntingdonshire District Council,28/09/2017,28/09/2017,216889,IN0619417, 290.18 ,STAFFLINE GROUP,CR416827,Recycling Collections,Hired Staff,100,
http://statistics.data.gov.uk/id/local-authority/12UE,Huntingdonshire District Council,13/09/2017,13/09/2017,216703,, 144.00 ,JAMES BUTTON & CO,CR405456,Hc & Ph Drivers Licences,Training,130,
http://statistics.data.gov.uk/id/local-authority/12UE,Huntingdonshire District Council,13/09/2017,13/09/2017,216703,, 144.00 ,JAMES BUTTON & CO,CR405456,Ph & Hc Vechicles,Training,130,
http://statistics.data.gov.uk/id/local-authority/12UE,Huntingdonshire District Council,21/09/2017,21/09/2017,217507,65916, 278.00 ,HYTRAC LIFTS LTD,CR030618,Site & Centre Management,Equipment Maintenance,511,
http://statistics.data.gov.uk/id/local-authority/12UE,Huntingdonshire District Council,27/09/2017,28/09/2017,217635,376619, 273.71 ,LUCOZADE RIBENA SUNTORY LTD,CR422660,Hospitality,Vending Materials,560,
http://statistics.data.gov.uk/id/local-authority/12UE,Huntingdonshire District Council,08/09/2017,08/09/2017,216451,, 273.34 ,ADVANTAGE RESOURCING,CR424715,Customer Service Centres,Hired Staff,100,
http://statistics.data.gov.uk/id/local-authority/12UE,Huntingdonshire District Council,28/09/2017,28/09/2017,217310,366982, 271.39 ,LUCOZADE RIBENA SUNTORY LTD,CR422660,Hospitality,Bar Provisions,558,
http://statistics.data.gov.uk/id/local-authority/12UE,Huntingdonshire District Council,29/09/2017,29/09/2017,218085,4553880, 271.02 ,PLATFORM SERVICE & REPAIR LTD,CR424629,Site & Centre Management,Equipment Maintenance,511,
http://statistics.data.gov.uk/id/local-authority/12UE,Huntingdonshire District Council,06/09/2017,07/09/2017,216540,296, 270.84 ,JAZ YORKS LTD,CR160753,Homelessness,Bed & Breakfast Payment,818,
http://statistics.data.gov.uk/id/local-authority/12UE,Huntingdonshire District Council,19/09/2017,19/09/2017,217304,, 270.40 ,MEYER SCOTT RECRUITMENT LIMITED,CR422369,Customer Service Centres,Hired Staff,100,
http://statistics.data.gov.uk/id/local-authority/12UE,Huntingdonshire District Council,19/09/2017,19/09/2017,216854,18015, 270.00 ,M & D FLOORING LTD,CR455531,Eastfield House,Building Mtce,303,
http://statistics.data.gov.uk/id/local-authority/12UE,Huntingdonshire District Council,13/09/2017,14/09/2017,216998,INV-4259, 270.00 ,B. S. GRAVES ELECTRICAL LTD,CR000363,Eastfield House,Building Mtce,303,
http://statistics.data.gov.uk/id/local-authority/12UE,Huntingdonshire District Council,07/09/2017,07/09/2017,216606,4578508, 269.11 ,BRENNTAG UK LTD,CR015017,Swimming,Chemicals,551,
http://statistics.data.gov.uk/id/local-authority/12UE,Huntingdonshire District Council,20/09/2017,20/09/2017,217443,136453, 154.00 ,FINGERPRINT,CR001165,Printing,Materials,550,
http://statistics.data.gov.uk/id/local-authority/12UE,Huntingdonshire District Council,20/09/2017,20/09/2017,217443,136452, 17.92 ,FINGERPRINT,CR001165,Printing,Materials,550,
http://statistics.data.gov.uk/id/local-authority/12UE,Huntingdonshire District Council,20/09/2017,20/09/2017,217443,Jul-81, 10.34 ,FINGERPRINT,CR001165,Printing,Materials,550,
http://statistics.data.gov.uk/id/local-authority/12UE,Huntingdonshire District Council,20/09/2017,20/09/2017,217443,Jul-81, 13.95 ,FINGERPRINT,CR001165,Printing,Materials,550,
http://statistics.data.gov.uk/id/local-authority/12UE,Huntingdonshire District Council,20/09/2017,20/09/2017,217443,Jul-81, 22.97 ,FINGERPRINT,CR001165,Printing,Materials,550,
http://statistics.data.gov.uk/id/local-authority/12UE,Huntingdonshire District Council,20/09/2017,20/09/2017,217443,Jul-81, 49.56 ,FINGERPRINT,CR001165,Printing,Materials,550,
http://statistics.data.gov.uk/id/local-authority/12UE,Huntingdonshire District Council,14/09/2017,14/09/2017,216644,80555, 266.10 ,MASKEARAID LTD,CR033423,Site & Centre Management,Cleaning Materials,443,
http://statistics.data.gov.uk/id/local-authority/12UE,Huntingdonshire District Council,07/09/2017,07/09/2017,216641,1700149, 95.84 ,MASKEARAID LTD,CR033423,Impressions,Cleaning Materials,443,
http://statistics.data.gov.uk/id/local-authority/12UE,Huntingdonshire District Council,07/09/2017,07/09/2017,216641,IK1372394, 92.10 ,MASKEARAID LTD,CR033423,Burgess Hall,Cleaning Materials,443,
http://statistics.data.gov.uk/id/local-authority/12UE,Huntingdonshire District Council,07/09/2017,07/09/2017,216641,59663, 78.07 ,MASKEARAID LTD,CR033423,Site & Centre Management,Cleaning Materials,443,
http://statistics.data.gov.uk/id/local-authority/12UE,Huntingdonshire District Council,12/09/2017,13/09/2017,216974,HUN01904, 265.40 ,LUCOZADE RIBENA SUNTORY LTD,CR422660,Hospitality,Vending Materials,560,
http://statistics.data.gov.uk/id/local-authority/12UE,Huntingdonshire District Council,06/09/2017,07/09/2017,216541,295, 262.50 ,JAZ YORKS LTD,CR160753,Homelessness,Bed & Breakfast Payment,818,
http://statistics.data.gov.uk/id/local-authority/12UE,Huntingdonshire District Council,06/09/2017,07/09/2017,216543,EC175, 262.50 ,JAZ YORKS LTD,CR160753,Homelessness,Bed & Breakfast Payment,818,
http://statistics.data.gov.uk/id/local-authority/12UE,Huntingdonshire District Council,14/09/2017,14/09/2017,216952,296, 262.50 ,JAZ YORKS LTD,CR160753,Homelessness,Bed & Breakfast Payment,818,
http://statistics.data.gov.uk/id/local-authority/12UE,Huntingdonshire District Council,14/09/2017,14/09/2017,216954,RC-HDC018, 262.50 ,JAZ YORKS LTD,CR160753,Homelessness,Bed & Breakfast Payment,818,
http://statistics.data.gov.uk/id/local-authority/12UE,Huntingdonshire District Council,14/09/2017,14/09/2017,216957,EC1716, 262.50 ,JAZ YORKS LTD,CR160753,Homelessness,Bed & Breakfast Payment,818,
http://statistics.data.gov.uk/id/local-authority/12UE,Huntingdonshire District Council,19/09/2017,19/09/2017,217328,, 262.50 ,PERSONAL DATA REDACTED,CR424925,Benefits Management,Legal Fees,729,
http://statistics.data.gov.uk/id/local-authority/12UE,Huntingdonshire District Council,13/09/2017,13/09/2017,216985,88335153, 261.43 ,E-ON ENERGY,CR416430,Site & Centre Management,Gas,421,
http://statistics.data.gov.uk/id/local-authority/12UE,Huntingdonshire District Council,19/09/2017,21/09/2017,217419,276619I, 260.00 ,FREIGHT TRANSPORT ASSOCIATION,CR003104,Vehicle Maintenance,Licences,730,
http://statistics.data.gov.uk/id/local-authority/12UE,Huntingdonshire District Council,19/09/2017,19/09/2017,615352,KAD 6551, 260.00 ,PERSONAL DATA REDACTED,CR424737,St Ives Bank Holiday Market,Equipment Hire,507,
http://statistics.data.gov.uk/id/local-authority/12UE,Huntingdonshire District Council,08/09/2017,08/09/2017,216704,, 259.75 ,ADVANTAGE RESOURCING,CR424715,Customer Service Centres,Hired Staff,100,
http://statistics.data.gov.uk/id/local-authority/12UE,Huntingdonshire District Council,28/09/2017,28/09/2017,217886,, 257.92 ,COMPUTERSHARE VOUCHERS LTD,CR412205,Hr & Payroll Services,Childcare Admin Vouchers,144,
http://statistics.data.gov.uk/id/local-authority/12UE,Huntingdonshire District Council,19/09/2017,20/09/2017,217335,, 256.33 ,ARCHANT HERTS & CAMBS,CR415764,Burgess Hall,Advertising/Promoting Services,255,
http://statistics.data.gov.uk/id/local-authority/12UE,Huntingdonshire District Council,13/09/2017,14/09/2017,217085,2104045914, 255.57 ,PILGRIM FOODSERVICE LTD,CR455695,Hinchingbrooke Park Cafe,Catering Materials,559,
http://statistics.data.gov.uk/id/local-authority/12UE,Huntingdonshire District Council,07/09/2017,07/09/2017,216648,1, 255.38 ,LES MILLS UK,CR025826,Indoor Sports,Licences,730,
http://statistics.data.gov.uk/id/local-authority/12UE,Huntingdonshire District Council,26/09/2017,28/09/2017,217388,103273, 255.13 ,DENNIS EAGLE LTD,CR000200,Recycling Collections,Vehicle Parts & Fittings,625,
http://statistics.data.gov.uk/id/local-authority/12UE,Huntingdonshire District Council,14/09/2017,14/09/2017,216192,861696, 255.00 ,THURLOW NUNN STANDEN LTD,CR001534,Site & Centre Management,Equipment Maintenance,511,
http://statistics.data.gov.uk/id/local-authority/12UE,Huntingdonshire District Council,28/09/2017,28/09/2017,217812,HBKA 15/9, 255.00 ,ROYAL INDUSTRIAL DOORS LTD,CR424892,Paxton Pits,Building Mtce,303,
http://statistics.data.gov.uk/id/local-authority/12UE,Huntingdonshire District Council,07/09/2017,07/09/2017,216631,553, 252.58 ,LYRECO UK LTD,CR400700,Site & Centre Management,Cleaning Materials,443,
http://statistics.data.gov.uk/id/local-authority/12UE,Huntingdonshire District Council,19/09/2017,20/09/2017,217371,2087770, 252.00 ,BIGPRINTING,CR416383,Leisure Centre Corporate Mngmt,Advertising/Promoting Services,255,
http://statistics.data.gov.uk/id/local-authority/12UE,Huntingdonshire District Council,14/09/2017,14/09/2017,216883,114366, 251.52 ,ARTHUR IBBETT LTD,CR000430,Grounds Maintenance,Vehicle Parts & Fittings,625,
http://statistics.data.gov.uk/id/local-authority/12UE,Huntingdonshire District Council,14/09/2017,14/09/2017,216881,82762618, 251.42 ,ARTHUR IBBETT LTD,CR000430,Grounds Maintenance,Equipment,500,
http://statistics.data.gov.uk/id/local-authority/12UE,Huntingdonshire District Council,12/09/2017,13/09/2017,217107,17974, 250.00 ,IAN'S TYRE & EXHAUST CENTRE,CR405836,Grounds Maintenance,Tyres,630,
http://statistics.data.gov.uk/id/local-authority/12UE,Huntingdonshire District Council,14/09/2017,14/09/2017,217146,SI-64, 250.00 ,HD PROPERTY SERVICES,CR422148,Housing Private Sector Grants,Shared Service Savings,798,
http://statistics.data.gov.uk/id/local-authority/12UE,Huntingdonshire District Council,13/09/2017,14/09/2017,217079,COUNTRYSIDE,-352.00 ,NOVUS COMPLIANCE SERVICES LTD,CR423524,Parks & Open Spaces,Building Mtce,303,
http://statistics.data.gov.uk/id/local-authority/12UE,Huntingdonshire District Council,28/09/2017,28/09/2017,217871,BOB6022092017,-570.94 ,LACONS,CR422174,Burgess Bar,Bar Provisions,558,
http://statistics.data.gov.uk/id/local-authority/12UE,Huntingdonshire District Council,18/09/2017,21/09/2017,217170,722023,-572.86 ,AIR LIQUIDE UK LTD,CR412121,Air Quality,Equipment Maintenance,511,
http://statistics.data.gov.uk/id/local-authority/12UE,Huntingdonshire District Council,13/09/2017,14/09/2017,217078,CN-4773,-490.00 ,NOVUS COMPLIANCE SERVICES LTD,CR423524,St Neots Market Square Ccc,Sitework,359,
http://statistics.data.gov.uk/id/local-authority/12UE,Huntingdonshire District Council,13/09/2017,14/09/2017,217078,,-104.00 ,NOVUS COMPLIANCE SERVICES LTD,CR423524,Parks & Open Spaces,Building Mtce,303,
http://statistics.data.gov.uk/id/local-authority/12UE,Huntingdonshire District Council,13/09/2017,14/09/2017,217077,18015,-370.00 ,NOVUS COMPLIANCE SERVICES LTD,CR423524,Parks & Open Spaces,Building Mtce,303,
http://statistics.data.gov.uk/id/local-authority/12UE,Huntingdonshire District Council,13/09/2017,14/09/2017,217077,238503,-311.00 ,NOVUS COMPLIANCE SERVICES LTD,CR423524,Bus Station Pc - Huntingdon,Building Mtce,303,
http://statistics.data.gov.uk/id/local-authority/12UE,Huntingdonshire District Council,21/09/2017,22/09/2017,217457,91395106,"-1,038.46 ",TWOFOLD CONSULTING,CR453929,Hdc Recharge Invoices,Equipment Maintenance,511,
http://statistics.data.gov.uk/id/local-authority/12UE,Huntingdonshire District Council,13/09/2017,13/09/2017,217109,9841,"-1,702.03 ",HAVEN POWER LTD,CR455940,Site & Centre Management,Electricity,420,
http://statistics.data.gov.uk/id/local-authority/12UE,Huntingdonshire District Council,27/09/2017,27/09/2017,217783,9055045442,"-1,737.61 ",ROYAL MAIL,CR027083,Parliamentary  Elections,Postage,231,
http://statistics.data.gov.uk/id/local-authority/12UE,Huntingdonshire District Council,18/09/2017,21/09/2017,217316,,"-1,873.00 ",APSE,CR479836,Head Of Community,Corporate Subscriptions,754,
http://statistics.data.gov.uk/id/local-authority/12UE,Huntingdonshire District Council,13/09/2017,13/09/2017,217108,OLSI0109,"-4,564.31 ",HAVEN POWER LTD,CR455940,Site & Centre Management,Electricity,420,
http://statistics.data.gov.uk/id/local-authority/12UE,Huntingdonshire District Council,05/09/2017,07/09/2017,216537,91395742,"-70,500.00 ",CIVICA UK LTD,CR415826,Scdc Recharge Invoices,Software,206,
